{"text_format":"1","workbook":"xlsx","n_sheets":4,"sheets":["Purchases","RebateSummary","Rebate_Summary","Pkge"],"not_rendered":{"charts":0,"images":44,"macros":1,"external_links":0,"defined_names":3,"comments":0,"pivot_tables":0},"unopened":[],"bounds":{"document_bytes":16777216,"sheet_cells":100000,"rows_first":2000,"rows_last":500,"rows_between":2000,"halvings":0,"cell_chars":16384,"cell_head_chars":4096},"cells_cut":0,"cells_raw":0,"read":"whole","date_system":"1900"}

{"sheet":"Purchases","index":0,"n_rows":393,"n_cols":35,"rows_kept":393,"cut":false,"hidden":false,"merged":[[190,24,191,24],[190,25,191,25],[119,1,120,4],[119,10,119,11],[121,10,121,11],[26,9,26,11],[23,13,24,13],[89,11,89,12],[117,10,117,11],[95,11,95,12],[96,11,96,12],[99,9,99,10],[23,12,24,12],[77,14,78,14],[79,14,80,14],[85,14,86,14],[87,14,88,14],[33,14,34,14],[35,14,36,14],[37,14,38,14],[39,14,40,14],[41,14,42,14],[96,9,96,10],[97,9,97,10],[174,24,175,24],[174,25,175,25],[1,3,1,5],[112,6,112,7],[114,6,114,7],[25,9,25,11],[2,3,3,5],[3,9,3,10],[5,2,5,5],[1,12,1,13],[2,12,2,13],[4,12,4,13],[5,12,5,13],[68,14,69,14],[70,14,71,14],[72,14,73,14],[54,14,55,14],[56,14,57,14],[58,14,59,14],[45,14,46,14],[48,14,49,14],[50,14,51,14],[12,14,14,14],[15,14,16,14],[52,0,74,0],[86,0,154,0],[102,9,102,10],[86,9,86,10],[94,9,94,10],[107,6,107,7],[107,8,107,9],[107,10,107,11],[109,6,109,7],[110,6,110,7],[109,10,109,11],[111,6,111,7],[75,0,85,0],[86,11,86,12],[87,11,87,12],[88,11,88,12],[99,11,99,12],[100,11,100,12],[85,11,85,12],[102,11,102,12],[83,7,83,10],[83,1,83,4],[123,1,124,4],[91,11,91,12],[7,0,8,0],[15,0,33,0],[6,5,7,5],[6,6,7,9],[6,10,7,13],[7,1,8,4],[8,6,9,9],[8,10,9,13],[12,9,12,11],[14,9,14,11],[13,9,13,11],[15,9,16,11],[17,9,18,11],[19,9,20,11],[21,9,22,11],[17,12,18,12],[19,12,20,12],[23,9,24,11],[21,12,22,12],[31,5,32,5],[17,14,18,14],[21,14,22,14],[23,14,24,14],[25,14,26,14],[19,14,20,14],[29,14,30,14],[31,14,32,14],[10,14,11,14],[15,12,16,12],[27,14,28,14],[6,14,7,14],[8,14,9,14],[43,14,44,14],[158,14,159,14],[93,14,94,14],[95,14,96,14],[97,14,98,14],[132,14,152,14],[157,1,157,13],[156,5,156,6],[153,14,154,14],[156,14,157,14],[105,6,105,7],[104,5,104,10],[108,5,108,10],[106,6,106,7],[113,6,113,7],[115,6,115,7],[117,6,117,7],[115,8,115,9],[117,8,117,9],[99,14,100,14],[97,11,97,12],[98,11,98,12],[98,9,98,10],[94,11,94,12],[126,1,127,4],[51,7,51,8],[89,14,90,14],[87,9,87,10],[88,9,88,10],[89,9,89,10],[90,9,90,10],[85,9,85,10],[64,14,65,14],[66,14,67,14],[74,14,75,14],[52,14,53,14],[60,14,61,14],[62,14,63,14],[92,9,92,10],[93,11,93,12],[88,24,89,24],[101,14,102,14],[103,14,104,14],[112,14,131,14],[106,8,106,9],[106,10,106,11],[105,8,105,9],[105,10,105,11],[109,8,109,9],[110,8,110,9],[111,8,111,9],[112,8,112,9],[113,8,113,9],[114,8,114,9],[111,10,111,11],[113,10,113,11],[115,10,115,11],[93,9,93,10],[90,11,90,12],[91,9,91,10],[100,9,100,10],[95,9,95,10],[92,11,92,12],[91,14,92,14]]}
[]
[null,null,null,"2021 BayerValue Rebate Calculator "]
[null,null,null,"for Western Canada - for Estimate Purposes Only Version 21.10P"]
[null,null,null,null,null,null,null,null,{"$f":"+B157","v":"Total Rebate"},{"$f":"+RebateSummary!P56","v":0}]
[null,null,null,null,null,null,null,null,null,null,null,null,"(enter the date)"]
[null,"Name of Grower:"," ",null,null,null,null,null,null,null,"Date of Calculation:",null,"2020-08-18"]
[]
[null,"Select the data entry type you prefer: ACRES or UNITS"]
[]
[null,"A. BayerValue  Segment Rewards - Enter Purchases"]
[null,null,"Enter",null,null,null,"Enter"]
[null,"Product","Acres","Units","SRP Value","Product","Acres","Units","SRP Value",null,null,null,"Total Acres","% Rebate"]
[null,"ADMIRE (3.785L) ",0,{"$f":"+Pkge!G5","v":0},{"$f":"+Pkge!I5","v":0},"*ROUNDUP WEATHERMAX (10 L)",0,{"$f":"+Pkge!G51","v":0},{"$f":"+Pkge!I51","v":0},"Segment 1 - Seed Treatments",null,null,{"$f":"+IF(Pkge!$B$3=0,(+C13+C19+C20+C31+C42+C43+C44+C45+C46+G24+G25+G30+G31+G32+G43),(+D13+D19+D20+D31+D42+D43+D44+D45+D46+H24+H25+H30+H31+H32+H43))","v":0},{"$f":" IF( M13 >= 300, IF(Purchases!$M$16 = 3, 10, IF(Purchases!$M$16=2, 5,0)), 0)","v":0}]
[null,"BUCTRIL M (8L) ",0,{"$f":"+Pkge!G8","v":0},{"$f":"+Pkge!I8","v":0},"ROUNDUP WEATHERMAX (115 L)",0,{"$f":"+Pkge!G52","v":0},{"$f":"Pkge!I52","v":0},"Segment 2 - Herbicides",null,null,{"$f":"+IF(Pkge!$B$3=0,(C14+C15+C16+C22+C23+C24+C25+C26+C27+C30+C32+C33+C34+C39+C40+C41+G17+G18+G26+G27+G28+G34+G35+G36+G37+G38+G39+G41+G42+G21),( D14+D15+D16+D22+D23+D24+D25+D26+D27+D30+D32+D33+D34+D39+D40+D41 +H17+H18+H26+H27+H28+H34+H35+H36+H37+H38+H39+H41+H42+ H21))","v":0},{"$f":" IF( M14 >= 300, IF(Purchases!$M$16 = 3, 10, IF(Purchases!$M$16=2, 5,0)), 0)","v":0}]
[null,{"$f":"+Pkge!B9","v":"BUCTRIL M (128 L)"},0,{"$f":"+Pkge!G9","v":0},{"$f":"+Pkge!I9","v":0},"ROUNDUP WEATHERMAX (450 L)",0,{"$f":"Pkge!G53","v":0},{"$f":"+Pkge!I53","v":0},"Segment 3 - Fungicides",null,null,{"$f":"+IF( Pkge!B3 =0, (+C17+C18+C21+C28+C29+C35+C36+C37+C38+G19+G20+G22+G23+G40+G29), ( +D17+D18+D21+D28+D29+D35+D36+D37+D38+H19+H20+H22+H23+H40 +H29))","v":0},{"$f":" IF( M15 >= 300, IF(Purchases!$M$16 = 3, 12, IF(Purchases!$M$16=2, 7,0)), 0)","v":0}]
["<<<<-- Scroll Down for more products  <<<",{"$f":"+Pkge!B10","v":"BUCTRIL M (400 L)"},0,{"$f":"+Pkge!G10","v":0},{"$f":"+Pkge!I10","v":0},"ROUNDUP WEATHERMAX (800 L)",0,{"$f":"+Pkge!G54","v":0},{"$f":"+Pkge!I54","v":0},"Qualifying Segments of 300 acres or more",null,null,{"$f":"IF(M13 >=300,1,0) + IF(M14>=300,1,0) + IF(M15>=300,1,0)","v":0}]
[null,{"$f":"+Pkge!B12","v":"DELARO (7.1 L)"},0,{"$f":"+Pkge!G12","v":0},{"$f":"+Pkge!I12","v":0},"ROUNDUP XTEND (10 L)",0,{"$f":"+Pkge!G49","v":0},{"$f":"+Pkge!I49","v":0}]
[null,"DELARO (113.6 L)",0,{"$f":"+Pkge!G13","v":0},{"$f":"+Pkge!I13","v":0},"ROUNDUP XTEND (405 L)",0,{"$f":"+Pkge!G50","v":0},{"$f":"+Pkge!I50","v":0},"Eligible traits are 300 acres or more",null,null,{"$f":"IF(K$108>=300,\"Yes\", \"No\")","v":"No"}]
[null,"EMESTO SILVER (3.85 L)",0,{"$f":"+Pkge!G14","v":0},{"$f":"+Pkge!I14","v":0},"SCALA (2 L)",0,{"$f":"+Pkge!G57","v":0},{"$f":"+Pkge!I57","v":0}]
[null,"EVERGOL ENERGY (33.75 L)",0,{"$f":"+Pkge!G15","v":0},{"$f":"+Pkge!I15","v":0},"SCALA (6.07 L)",0,{"$f":"+Pkge!G58","v":0},{"$f":"+Pkge!I58","v":0},"Seed Treatments are 600 acres or more ",null,null,{"$f":"IF(M$13>=600,\"Yes\", \"No\")","v":"No"}]
[null,"FOLICUR EW (8.1 L)",0,{"$f":"+Pkge!G16","v":0},{"$f":"+Pkge!I16","v":0},"SENCOR 75 DF (2.5 KG)",0,{"$f":"+Pkge!G60","v":0},{"$f":"+Pkge!I60","v":0}]
[null,"INFINITY (6.7 L)",0,{"$f":"+Pkge!G17","v":0},{"$f":"+Pkge!I17","v":0},"SERENADE SOIL (9.46 L)",0,{"$f":"+Pkge!G56","v":0},{"$f":"+Pkge!I56","v":0},"Emesto Silver are 300 acres or more",null,null,{"$f":"IF(Pkge!$L14 >=300, \"Yes\", \"No\")","v":"No"}]
[null,"INFINITY (107.2 L)",0,{"$f":"+Pkge!G18","v":0},{"$f":"+Pkge!I18","v":0},"SERENADE SOIL (511 L)",0,{"$f":"+Pkge!G55","v":0},{"$f":"+Pkge!I55","v":0}]
[null,"INFINITY (335 L)",0,{"$f":"+Pkge!G19","v":0},{"$f":"+Pkge!I19","v":0},"SIVANTO PRIME (2 L)",0,{"$f":"+Pkge!G62","v":0},{"$f":"+Pkge!I62","v":0},"Season Starter Bonus",null,null,{"$f":"IF(K$108>=300,\"Yes\",IF(M$13>=600, \"Yes\",IF(Pkge!$L14 >=300, \"Yes\", \"No\")))","v":"No"},{"$f":"IF(K$108>=300, 5,IF(M13>=600,5,IF(Pkge!L$14>=300,5,0)))","v":0}]
[null,{"$f":"+Pkge!B21","v":"INFINITY FX (8.1 L)"},0,{"$f":"+Pkge!G21","v":0},{"$f":"+Pkge!I21","v":0},"STRESS SHIELD ( 27 L)",0,{"$f":"+Pkge!G61","v":0},{"$f":"+Pkge!I61","v":0}]
[null,{"$f":"+Pkge!B23","v":"INFINITY FX (129.6 L)"},0,{"$f":"+Pkge!G23","v":0},{"$f":"+Pkge!I23","v":0},"THUMPER (8 L)",0,{"$f":"+Pkge!G63","v":0},{"$f":"+Pkge!I63","v":0},"Qualifies for BUTEO start Bonus of 2%**",null,null,{"$f":"IF($Y112>=300,\"Yes\", \"No\")","v":"No"},{"$f":"IF($Y112>=300,0.02,0) * 100","v":0}]
[null,{"$f":"+Pkge!B22","v":"INFINITY FX (405 L)"},0,{"$f":"+Pkge!G22","v":0},{"$f":"+Pkge!I22","v":0},"THUMPER (128 L)",0,{"$f":"+Pkge!G64","v":0},{"$f":"+Pkge!I64","v":0},"Qualifies for Incredible Bayer Offer",null,null,{"$f":"IF(RebateSummary!N49 >0, \"Yes\", \"No\")","v":"No"}]
[null,"LUNA TRANQUILITY (2 L)",0,{"$f":"+Pkge!G24","v":0},{"$f":"+Pkge!I24","v":0},"THUMPER (400 L)",0,{"$f":"+Pkge!G65","v":0},{"$f":"+Pkge!I65","v":0}]
[null,"LUNA TRANQUILITY (4.86 L)",0,{"$f":"+Pkge!G25","v":0},{"$f":"+Pkge!I25","v":0},"TILMORE (10.12 L)",0,{"$f":"+Pkge!G66","v":0},{"$f":"+Pkge!I66","v":0}]
[null,"LUXXUR (8L+243G)",0,{"$f":"+Pkge!G26","v":0},{"$f":"+Pkge!I26","v":0},"TRILEX EVERGOL (1.5L+0.96L)",0,{"$f":"+Pkge!G67","v":0},{"$f":"+Pkge!I67","v":0}]
[null,"MOVENTO (2 L)",0,{"$f":"+Pkge!G28","v":0},{"$f":"+Pkge!I28","v":0},"TRILEX EVERGOL (6.49L+4.15L)",0,{"$f":"+Pkge!G68","v":0},{"$f":"+Pkge!I68","v":0}]
[null,"OLYMPUS (463G)",0,{"$f":"+Pkge!G30","v":0},{"$f":"+Pkge!I30","v":0},"TRILEX EVERGOL  SHIELD (1.5L+0.96L+6.25L)",0,{"$f":"+Pkge!G69","v":0},{"$f":"+Pkge!I69","v":0}]
[null,"PARDNER (8 L)",0,{"$f":"+Pkge!G32","v":0},{"$f":"+Pkge!I32","v":0}]
[null,"PARDNER (128 L)",0,{"$f":"+Pkge!G33","v":0},{"$f":"+Pkge!I33","v":0},"TUNDRA (8.1 L)",0,{"$f":"+Pkge!G70","v":0},{"$f":"+Pkge!I70","v":0}]
[null,"PROLINE (5.1 L)",0,{"$f":"+Pkge!G34","v":0},{"$f":"+Pkge!I34","v":0},"TUNDRA (129.6 L)",0,{"$f":"+Pkge!G71","v":0},{"$f":"+Pkge!I71","v":0}]
[null,{"$f":"+Pkge!B35","v":"PROLINE GOLD (10.12 L)"},0,{"$f":"+Pkge!G35","v":0},{"$f":"+Pkge!I35","v":0},"TUNDRA (405 L)",0,{"$f":"+Pkge!G72","v":0},{"$f":"+Pkge!I72","v":0}]
[null,"PROSARO XTR (6.5 L)",0,{"$f":"+Pkge!G38","v":0},{"$f":"+Pkge!I38","v":0},"VARRO (8 L)",0,{"$f":"+Pkge!G73","v":0},{"$f":"+Pkge!I73","v":0}]
[null,"PROSARO XTR (104 L)",0,{"$f":"+Pkge!G39","v":0},{"$f":"+Pkge!I39","v":0},"VELOCITY M3 (8.1 L)",0,{"$f":"+Pkge!G76","v":0},{"$f":"+Pkge!I76","v":0}]
[null,"PUMA ADVANCE (8.25 L)",0,{"$f":"+Pkge!G40","v":0},{"$f":"+Pkge!I40","v":0},"VELOCITY M3 (129.6 L)",0,{"$f":"+Pkge!G77","v":0},{"$f":"+Pkge!I77","v":0}]
[null,"PUMA ADVANCE (123.75 L)",0,{"$f":"+Pkge!G41","v":0},{"$f":"+Pkge!I41","v":0},"VELUM PRIME (4.04 L)",0,{"$f":"+Pkge!G75","v":0},{"$f":"+Pkge!I75","v":0}]
[null,"PUMA ADVANCE (412.5 L)",0,{"$f":"+Pkge!G42","v":0},{"$f":"+Pkge!I42","v":0},"XTENDIMAX (10 L)",0,{"$f":"+Pkge!G78","v":0},{"$f":"+Pkge!I78","v":0}]
[null,"RAXIL PRO (10 L)",0,{"$f":"+Pkge!G43","v":0},{"$f":"+Pkge!I43","v":0},"XTENDIMAX (405 L)",0,{"$f":"+Pkge!G79","v":0},{"$f":"+Pkge!I79","v":0}]
[null,"RAXIL PRO (58.5 L)",0,{"$f":"+Pkge!G44","v":0},{"$f":"+Pkge!I44","v":0},"VAYEGO (3 L)",0,{"$f":"+Pkge!G80","v":0},{"$f":"+Pkge!I80","v":0}]
[null,"RAXIL PRO (175.5 L)",0,{"$f":"+Pkge!G45","v":0},{"$f":"+Pkge!I45","v":0}]
[null,"RAXIL PRO (1000 L)",0,{"$f":"+Pkge!G46","v":0},{"$f":"+Pkge!I46","v":0},"Other Payable & Qualifying Products"]
[null,"RAXIL PRO SHIELD (10L+1.54L)",0,{"$f":"+Pkge!G47","v":0},{"$f":"+Pkge!I47","v":0},"BUTEO™ start + Prosper® EverGol®",{"$f":"+F125","v":0}]
[null,null,null,null,null,"Entered below under DEKALB Bonus data input area."]
[null,null,null,null,null,"* The brand, ROUNDUP WEATHERMAX, is eligible for DEKALB Bonus Rebates only."]
[]
[]
[]
[null,null,null,null,null,"Total Crop Protection Purchases",null,{"$f":"+Pkge!I113","v":0}]
[]
[]
[]
[]
[]
[]
[]
[]
[]
[]
[]
[]
[]
[]
[]
[]
[]
[]
[]
[]
[]
[]
[]
["Scroll Up for more products ----->>>>"]
[]
[null,null,null,null,null,null,null,null,null,null,null,null,null,null,null,null,null,"Yes"]
[null,null,null,null,null,null,null,null,null,null,null,null,null,null,null,null,null,1]
[null,"B.  DEKALB BONUS - Purchases of Seed Eligible for DEKALB Bonus  - Enter Bookings/Purchases",null,null,null,null,null,null,null,null,null,null,null,null,null,null,null,"Yes",null,"No, only purchases made"]
[null,"These varieties and hybrids of Canola, Corn and Soybeans are eligible for the DEKALB Bonus.",null,null,null,null,null,null,null,null,null,null,null,null,null,null,null,"No"]
[null,null,null,null,null,null,null,null,null,null,null,null,null,null,null,null,null,"No",0]
[null,"Enter these varieties or hybrids that you have booked. Bookings are required prior to or on December 15, 2020.",null,null,null,null,null,null,null,null,null,null,null,null,null,null,null,"Yes"]
[null,"Were these bookings made prior to or on December 15, 2020?",null,null,null,null,null,"Was FieldView activated and data uploaded prior to or on December 31, 2020?",null,null,null,null,null,null,null,null,null,"No"]
[null,null,null,null,null,null,"Enter",null,null,null,null,null,null,null,null,null,null,null,"Crop Type"]
[null,"Choose Crop, Hybrid/Variety, Seed Treatment Combination",null,null,null,null,"Acres","Units","SRP Value/Unit","SRP Value",null,"Matching BUTEO™ start Acres",null,null,null,null,null,null,"Canola"]
["Scroll Up for more products ----->>>>",null,null,null,null,null,0,{"$f":"+Pkge!G140","v":0},{"$f":"+Pkge!E140","v":0},{"$f":"+Pkge!I140","v":0},null,{"$f":"+Y92","v":0},null,null,null,null,null,null,"Corn"]
[null,null,null,null,null,null,0,{"$f":"+Pkge!G141","v":0},{"$f":"+Pkge!E141","v":0},{"$f":"+Pkge!I141","v":0},null,{"$f":"+Y93","v":0},null,null,null,null,null,null,"Soybeans"]
[null,null,null,null,null,null,0,{"$f":"+Pkge!G142","v":0},{"$f":"+Pkge!E142","v":0},{"$f":"+Pkge!I142","v":0},null,0,null,null,null,null,null,null,"None",null,null,null,null,null,"BUTEO™ start' acres","Canola","Corn","Soybean","Canola","Corn","Soybean"]
[null,null,null,null,null,null,0,{"$f":"+Pkge!G143","v":0},{"$f":"+Pkge!E143","v":0},{"$f":"+Pkge!I143","v":0},null,0,null,null,null,null,null,null,null,null,null,null,null,null,null,"Value ($)","Value($)","Value($)","Acres","Acres","Acres"]
[null,null,null,null,null,null,0,{"$f":"+Pkge!G144","v":0},{"$f":"+Pkge!E144","v":0},{"$f":"+Pkge!I144","v":0},null,0,null,null,null,null,"entry",null,"crop name","hybrid","seedtreatM","ConcatCrp_Hybrid_STreat","acres/unit","Srp_PerUnit"]
[null,null,null,null,null,null,0,{"$f":"+Pkge!G145","v":0},{"$f":"+Pkge!E145","v":0},{"$f":"+Pkge!I145","v":0},null,0,null,null,null,null,1,null,"None","None",null,{"$f":"  IF( $S92 <> \" \",  $S92 & \"_\"  &  $T92 & \"_\" & $U92,\" \")","v":"None_None_"},{"$f":"IF($V92  <> \"___\",VLOOKUP($V92,$T$163:$V$390,3,FALSE),0)","v":{"$error":"#N/A"}},{"$f":"IF($V92<>\"___\",VLOOKUP($V92,$T$163:$V$390,2,FALSE),0)","v":{"$error":"#N/A"}},{"$f":"IF(ISNUMBER(FIND(\"BUTEO\",$V92)),  +Pkge!$L140, 0)","v":0},{"$f":"IF(ISNUMBER(FIND(\"Canola\",$S92)),  +$J87, 0)","v":0},{"$f":"IF(ISNUMBER(FIND(\"Corn\",$S92)),  +$J87, 0)","v":0},{"$f":"IF(ISNUMBER(FIND(\"Soybeans\",$S92)),  +$J87, 0)","v":0},{"$f":"IF(ISNUMBER(FIND(\"Canola\",$S92)),  +Pkge!$L140, 0)","v":0},{"$f":"IF(ISNUMBER(FIND(\"Corn\",$S92)),  +Pkge!$L140, 0)","v":0},{"$f":"IF(ISNUMBER(FIND(\"Soybeans\",$S92)),  +Pkge!$L140, 0)","v":0}]
[null,null,null,null,null,null,0,{"$f":"+Pkge!G146","v":0},{"$f":"+Pkge!E146","v":0},{"$f":"+Pkge!I146","v":0},null,0,null,null,null,null,2,null,"None","None",null,{"$f":"  IF( $S93 <> \" \",  $S93 & \"_\"  &  $T93 & \"_\" & $U93,\" \")","v":"None_None_"},{"$f":"IF($V93  <> \"___\",VLOOKUP($V93,$T$163:$V$390,3,FALSE),0)","v":{"$error":"#N/A"}},{"$f":"IF($V93<>\"___\",VLOOKUP($V93,$T$163:$V$390,2,FALSE),0)","v":{"$error":"#N/A"}},{"$f":"IF(ISNUMBER(FIND(\"BUTEO\",$V93)),  +Pkge!$L141, 0)","v":0},{"$f":"IF(ISNUMBER(FIND(\"Canola\",$S93)),  +$J88, 0)","v":0},{"$f":"IF(ISNUMBER(FIND(\"Corn\",$S93)),  +$J88, 0)","v":0},{"$f":"IF(ISNUMBER(FIND(\"Soybeans\",$S93)),  +$J88, 0)","v":0},{"$f":"IF(ISNUMBER(FIND(\"Canola\",$S93)),  +Pkge!$L141, 0)","v":0},{"$f":"IF(ISNUMBER(FIND(\"Corn\",$S93)),  +Pkge!$L141, 0)","v":0},{"$f":"IF(ISNUMBER(FIND(\"Soybeans\",$S93)),  +Pkge!$L141, 0)","v":0}]
[null,null,null,null,null,null,0,{"$f":"+Pkge!G147","v":0},{"$f":"+Pkge!E147","v":0},{"$f":"+Pkge!I147","v":0},null,0,null,null,null,null,3,null,"None","None",null,{"$f":"   $S94 & \"_\"  &  $T94 & \"_\" & $U94","v":"None_None_"},{"$error":"#N/A"},{"$error":"#N/A"},{"$f":"IF(ISNUMBER(FIND(\"BUTEO\",$V94)),  +Pkge!$L142, 0)","v":0},0,0,0,{"$f":"IF(ISNUMBER(FIND(\"Canola\",$S94)),  +Pkge!$L142, 0)","v":0},{"$f":"IF(ISNUMBER(FIND(\"Corn\",$S94)),  +Pkge!$L142, 0)","v":0},{"$f":"IF(ISNUMBER(FIND(\"Soybeans\",$S94)),  +Pkge!$L142, 0)","v":0}]
[null,null,null,null,null,null,0,{"$f":"+Pkge!G148","v":0},{"$f":"+Pkge!E148","v":0},{"$f":"+Pkge!I148","v":0},null,0,null,null,null,null,4,null,"None","None",null,"None_None_",{"$error":"#N/A"},{"$error":"#N/A"},{"$f":"IF(ISNUMBER(FIND(\"BUTEO\",$V95)),  +Pkge!$L143, 0)","v":0},0,0,0,{"$f":"IF(ISNUMBER(FIND(\"Canola\",$S95)),  +Pkge!$L143, 0)","v":0},{"$f":"IF(ISNUMBER(FIND(\"Corn\",$S95)),  +Pkge!$L143, 0)","v":0},{"$f":"IF(ISNUMBER(FIND(\"Soybeans\",$S95)),  +Pkge!$L143, 0)","v":0}]
[null,null,null,null,null,null,0,{"$f":"+Pkge!G149","v":0},{"$f":"+Pkge!E149","v":0},{"$f":"+Pkge!I149","v":0},null,0,null,null,null,null,5,null,"None","None",null,"None_None_",{"$error":"#N/A"},{"$error":"#N/A"},{"$f":"IF(ISNUMBER(FIND(\"BUTEO\",$V96)),  +Pkge!$L144, 0)","v":0},0,0,0,{"$f":"IF(ISNUMBER(FIND(\"Canola\",$S96)),  +Pkge!$L144, 0)","v":0},{"$f":"IF(ISNUMBER(FIND(\"Corn\",$S96)),  +Pkge!$L144, 0)","v":0},{"$f":"IF(ISNUMBER(FIND(\"Soybeans\",$S96)),  +Pkge!$L144, 0)","v":0}]
[null,null,null," ",null,null,0,{"$f":"+Pkge!G150","v":0},{"$f":"+Pkge!E150","v":0},{"$f":"+Pkge!I150","v":0},null,0,null,null,null,null,6,null,"None","None",null,"None_None_",{"$error":"#N/A"},{"$error":"#N/A"},{"$f":"IF(ISNUMBER(FIND(\"BUTEO\",$V97)),  +Pkge!$L145, 0)","v":0},0,0,0,{"$f":"IF(ISNUMBER(FIND(\"Canola\",$S97)),  +Pkge!$L145, 0)","v":0},{"$f":"IF(ISNUMBER(FIND(\"Corn\",$S97)),  +Pkge!$L145, 0)","v":0},{"$f":"IF(ISNUMBER(FIND(\"Soybeans\",$S97)),  +Pkge!$L145, 0)","v":0}]
[null,null,null,null,null,null,0,{"$f":"+Pkge!G151","v":0},{"$f":"+Pkge!E151","v":0},{"$f":"+Pkge!I151","v":0},null,0,null,null,null,null,7,null,"None","None",null,"None_None_",{"$error":"#N/A"},{"$error":"#N/A"},{"$f":"IF(ISNUMBER(FIND(\"BUTEO\",$V98)),  +Pkge!$L146, 0)","v":0},0,0,0,{"$f":"IF(ISNUMBER(FIND(\"Canola\",$S98)),  +Pkge!$L146, 0)","v":0},{"$f":"IF(ISNUMBER(FIND(\"Corn\",$S98)),  +Pkge!$L146, 0)","v":0},{"$f":"IF(ISNUMBER(FIND(\"Soybeans\",$S98)),  +Pkge!$L146, 0)","v":0}]
[null,null,null,null,null,null,0,{"$f":"+Pkge!G152","v":0},{"$f":"+Pkge!E152","v":0},{"$f":"+Pkge!I152","v":0},null,0,null,null,null,null,8,null,"None","None",null,"None_None_",{"$error":"#N/A"},{"$error":"#N/A"},{"$f":"IF(ISNUMBER(FIND(\"BUTEO\",$V99)),  +Pkge!$L147, 0)","v":0},0,0,0,{"$f":"IF(ISNUMBER(FIND(\"Canola\",$S99)),  +Pkge!$L147, 0)","v":0},{"$f":"IF(ISNUMBER(FIND(\"Corn\",$S99)),  +Pkge!$L147, 0)","v":0},{"$f":"IF(ISNUMBER(FIND(\"Soybeans\",$S99)),  +Pkge!$L147, 0)","v":0}]
[null,null,null,null,null,null,0,{"$f":"+Pkge!G153","v":0},{"$f":"+Pkge!E153","v":0},{"$f":"+Pkge!I153","v":0},null,0,null,null,null,null,9,null,"None","None",null,"None_None_",{"$error":"#N/A"},{"$error":"#N/A"},{"$f":"IF(ISNUMBER(FIND(\"BUTEO\",$V100)),  +Pkge!$L148, 0)","v":0},0,0,0,{"$f":"IF(ISNUMBER(FIND(\"Canola\",$S100)),  +Pkge!$L148, 0)","v":0},{"$f":"IF(ISNUMBER(FIND(\"Corn\",$S100)),  +Pkge!$L148, 0)","v":0},{"$f":"IF(ISNUMBER(FIND(\"Soybeans\",$S100)),  +Pkge!$L148, 0)","v":0}]
[null,null,null,null,null,null,0,{"$f":"+Pkge!G154","v":0},{"$f":"+Pkge!E154","v":0},{"$f":"+Pkge!I154","v":0},null,0,null,null,null,null,10,null,"None","None",null,"None_None_",{"$error":"#N/A"},{"$error":"#N/A"},{"$f":"IF(ISNUMBER(FIND(\"BUTEO\",$V101)),  +Pkge!$L149, 0)","v":0},0,0,0,{"$f":"IF(ISNUMBER(FIND(\"Canola\",$S101)),  +Pkge!$L149, 0)","v":0},{"$f":"IF(ISNUMBER(FIND(\"Corn\",$S101)),  +Pkge!$L149, 0)","v":0},{"$f":"IF(ISNUMBER(FIND(\"Soybeans\",$S101)),  +Pkge!$L149, 0)","v":0}]
[null,null,null,null,null,null,null,null,null,null,null,null,null,null,null,null,11,null,"None","None",null,"None_None_",{"$error":"#N/A"},{"$error":"#N/A"},{"$f":"IF(ISNUMBER(FIND(\"BUTEO\",$V102)),  +Pkge!$L150, 0)","v":0},0,0,0,{"$f":"IF(ISNUMBER(FIND(\"Canola\",$S102)),  +Pkge!$L150, 0)","v":0},{"$f":"IF(ISNUMBER(FIND(\"Corn\",$S102)),  +Pkge!$L150, 0)","v":0},{"$f":"IF(ISNUMBER(FIND(\"Soybeans\",$S102)),  +Pkge!$L150, 0)","v":0}]
[null,null,null,null,null,"Totals",{"$f":"SUM(G87:G102)","v":0},{"$f":"SUM(H87:H101)","v":0},null,{"$f":"SUM(J87:K101)","v":0},null,{"$f":"SUM(L87:M101)","v":0},null,null,null,null,12,null,"None","None",null,"None_None_",{"$error":"#N/A"},{"$error":"#N/A"},{"$f":"IF(ISNUMBER(FIND(\"BUTEO\",$V103)),  +Pkge!$L151, 0)","v":0},0,0,0,{"$f":"IF(ISNUMBER(FIND(\"Canola\",$S103)),  +Pkge!$L151, 0)","v":0},{"$f":"IF(ISNUMBER(FIND(\"Corn\",$S103)),  +Pkge!$L151, 0)","v":0},{"$f":"IF(ISNUMBER(FIND(\"Soybeans\",$S103)),  +Pkge!$L151, 0)","v":0}]
[null,null,null,null,null,null,null,null,null,null,null,null,null,null,null,null,13,null,"None","None",null,"None_None_",{"$error":"#N/A"},{"$error":"#N/A"},{"$f":"IF(ISNUMBER(FIND(\"BUTEO\",$V104)),  +Pkge!$L152, 0)","v":0},0,0,0,{"$f":"IF(ISNUMBER(FIND(\"Canola\",$S104)),  +Pkge!$L152, 0)","v":0},{"$f":"IF(ISNUMBER(FIND(\"Corn\",$S104)),  +Pkge!$L152, 0)","v":0},{"$f":"IF(ISNUMBER(FIND(\"Soybeans\",$S104)),  +Pkge!$L152, 0)","v":0}]
[null,null,null,null,null,"Total Seed Trait Purchases",null,null,null,null,null,null,null,null,null,null,14,null,"None","None",null,"None_None_",{"$error":"#N/A"},{"$error":"#N/A"},{"$f":"IF(ISNUMBER(FIND(\"BUTEO\",$V105)),  +Pkge!$L153, 0)","v":0},0,0,0,{"$f":"IF(ISNUMBER(FIND(\"Canola\",$S105)),  +Pkge!$L153, 0)","v":0},{"$f":"IF(ISNUMBER(FIND(\"Corn\",$S105)),  +Pkge!$L153, 0)","v":0},{"$f":"IF(ISNUMBER(FIND(\"Soybeans\",$S105)),  +Pkge!$L153, 0)","v":0}]
[null,null,null,null,null,"DEKALB Canola","DEKALB Corn",null,"DEKALB Soybean",null,"Totals",null,null,null,null,null,15,null,"None","None",null,"None_None_",{"$error":"#N/A"},{"$error":"#N/A"},{"$f":"IF(ISNUMBER(FIND(\"BUTEO\",$V106)),  +Pkge!$L154, 0)","v":0},0,0,0,{"$f":"IF(ISNUMBER(FIND(\"Canola\",$S106)),  +Pkge!$L154, 0)","v":0},{"$f":"IF(ISNUMBER(FIND(\"Corn\",$S106)),  +Pkge!$L154, 0)","v":0},{"$f":"IF(ISNUMBER(FIND(\"Soybeans\",$S106)),  +Pkge!$L154, 0)","v":0}]
[null,null,null,null,"Value",{"$f":"+Z112","v":0},{"$f":"+AA112","v":0},null,{"$f":"+AB112","v":0},null,{"$f":"+F107+G107+I107","v":0},null,null,null,null,null,16,null,"SPARE",null,null,"SPARE__",null,null,{"$f":"IF(ISNUMBER(FIND(\"BUTEO\",$V107)),  +Pkge!$L155, 0)","v":0},0,0,0,{"$f":"IF(ISNUMBER(FIND(\"Canola\",$S107)),  +Pkge!$L155, 0)","v":0},{"$f":"IF(ISNUMBER(FIND(\"Corn\",$S107)),  +Pkge!$L155, 0)","v":0},{"$f":"IF(ISNUMBER(FIND(\"Soybeans\",$S107)),  +Pkge!$L155, 0)","v":0}]
[null,null,null,null,"Acres",{"$f":"+AC112","v":0},{"$f":"+AD112","v":0},null,{"$f":"+AE112","v":0},null,{"$f":"+F108+G108+I108","v":0},null,null,null,null,null,17,null,"SPARE",null,null,"SPARE__",null,null,{"$f":"IF(ISNUMBER(FIND(\"BUTEO\",$V108)),  +Pkge!$L156, 0)","v":0},0,0,0,{"$f":"IF(ISNUMBER(FIND(\"Canola\",$S108)),  +Pkge!$L156, 0)","v":0},{"$f":"IF(ISNUMBER(FIND(\"Corn\",$S108)),  +Pkge!$L156, 0)","v":0},{"$f":"IF(ISNUMBER(FIND(\"Soybeans\",$S108)),  +Pkge!$L156, 0)","v":0}]
[null,null,null,null,null,"Early Book Savings",null,null,null,null,null,null,null,null,null,null,18,null,"SPARE",null,null,"SPARE__",null,null,{"$f":"IF(ISNUMBER(FIND(\"BUTEO\",$V109)),  +Pkge!$L157, 0)","v":0},0,0,0,{"$f":"IF(ISNUMBER(FIND(\"Canola\",$S109)),  +Pkge!$L157, 0)","v":0},{"$f":"IF(ISNUMBER(FIND(\"Corn\",$S109)),  +Pkge!$L157, 0)","v":0},{"$f":"IF(ISNUMBER(FIND(\"Soybeans\",$S109)),  +Pkge!$L157, 0)","v":0}]
[null,null,null,null,null,"DEKALB Canola","DEKALB Corn",null,"DEKALB Soybean",null,"Totals",null,null,null,null,null,19,null,"SPARE",null,null,"SPARE__",null,null,{"$f":"IF(ISNUMBER(FIND(\"BUTEO\",$V110)),  +Pkge!$L158, 0)","v":0},0,0,0,{"$f":"IF(ISNUMBER(FIND(\"Canola\",$S110)),  +Pkge!$L158, 0)","v":0},{"$f":"IF(ISNUMBER(FIND(\"Corn\",$S110)),  +Pkge!$L158, 0)","v":0},{"$f":"IF(ISNUMBER(FIND(\"Soybeans\",$S110)),  +Pkge!$L158, 0)","v":0}]
[null,"Early Book Bonus  (Book by December 15, 2020) ",null,null,"(Minimum 300 acres)",{"$f":"IF($R79 = 1, IF( F107 > 0, IF(K$108 >= 300, 0.04, 0),0 ), 0)","v":0},{"$f":"IF($R79 = 1, IF( G107 > 0, IF(K$108 >= 300, 0.08, 0),0 ), 0)","v":0},null,{"$f":"IF($R79 = 1, IF( I107 > 0, IF(K$108 >= 300, 0.04, 0),0 ), 0)","v":0},null,null,null,null,null,null,null,20,null,"SPARE",null,null,"SPARE__",null,null,{"$f":"IF(ISNUMBER(FIND(\"BUTEO\",$V111)),  +Pkge!$L159, 0)","v":0},0,0,0,{"$f":"IF(ISNUMBER(FIND(\"Canola\",$S111)),  +Pkge!$L159, 0)","v":0},{"$f":"IF(ISNUMBER(FIND(\"Corn\",$S111)),  +Pkge!$L159, 0)","v":0},{"$f":"IF(ISNUMBER(FIND(\"Soybeans\",$S111)),  +Pkge!$L159, 0)","v":0}]
[null,null,null,null,null,{"$f":"+F111*F107","v":0},{"$f":"+G111*G107","v":0},null,{"$f":"+I111*I107","v":0},null,{"$f":"+F112+G112+I112","v":0},null,null,null,null,null,null,null,null,null,null,null,"Totals",null,{"$f":"SUM(Y91:Y111)","v":0},{"$f":"SUM(Z91:Z111)","v":0},0,0,{"$f":"SUM(AC91:AC111)","v":0},0,0]
[null,"Purchases of Seed Treatment matching seed trait acres",null,null,null,{"$f":"IF( (Pkge!$L$15+Pkge!$L$46+Pkge!$L$47+Pkge!$L$68+Pkge!$L$69) >= 300, IF(Purchases!K$108 >= 300,0.03,0),0)","v":0},{"$f":"IF( (Pkge!$L$15+Pkge!$L$46+Pkge!$L$47+Pkge!$L$68+Pkge!$L$69) >= 300, IF(Purchases!K$108 >= 300,0.03,0),0)","v":0},null,{"$f":"IF( (Pkge!$L$15+Pkge!$L$46+Pkge!$L$47+Pkge!$L$68+Pkge!$L$69) >= 300, IF(Purchases!K$108 >= 300,0.03,0),0)","v":0}]
[null,"(Raxil Pro brands, Trilex EverGol brands, Evergol Energy)",null,null,"(Minimum 300 acres)",{"$f":"IF((Pkge!$L$15+Pkge!$L$46+Pkge!$L$47+Pkge!$L$68+Pkge!$L$69)>=Purchases!AC112,1,(Pkge!$L$15+Pkge!$L$46+Pkge!$L$47+Pkge!$L$68+Pkge!$L$69)/Purchases!AC112) *F$107 * F$113","v":0},{"$f":"IF((Pkge!$L$15+Pkge!$L$46+Pkge!$L$47+Pkge!$L$68+Pkge!$L$69)>=Purchases!AD112,1,(Pkge!$L$15+Pkge!$L$46+Pkge!$L$47+Pkge!$L$68+Pkge!$L$69)/Purchases!AD112) *G$107 *G$113","v":0},{"$f":"IF((Pkge!$L$15+Pkge!$L$46+Pkge!$L$47+Pkge!$L$68+Pkge!$L$69)>=Purchases!AE112,1,(Pkge!$L$15+Pkge!$L$46+Pkge!$L$47+Pkge!$L$68+Pkge!$L$69)/Purchases!AE112) *H$107","v":0},{"$f":"IF((Pkge!$L$15+Pkge!$L$46+Pkge!$L$47+Pkge!$L$68+Pkge!$L$69)>=Purchases!AE112,1,(Pkge!$L$15+Pkge!$L$46+Pkge!$L$47+Pkge!$L$68+Pkge!$L$69)/Purchases!AE112) *I$107 *I$113","v":0},{"$f":"IF((Pkge!$L$15+Pkge!$L$46+Pkge!$L$47+Pkge!$L$68+Pkge!$L$69)>=Purchases!AG112,1,(Pkge!$L$15+Pkge!$L$46+Pkge!$L$47+Pkge!$L$68+Pkge!$L$69)/Purchases!AG112) *J$107","v":0},{"$f":"+F114+G114+I114","v":0}]
[null,"Purchases of Trait Herbicides matching seed trait acres",null,null,null,{"$f":"IF( (Pkge!$L$50+Pkge!$L$54+Pkge!$L$79) >= 300, IF(Purchases!$K$108 >= 300, 0.01,0),0)","v":0},{"$f":"IF( (Pkge!$L$50+Pkge!$L$54+Pkge!$L$79) >= 300, IF(Purchases!$K$108 >= 300, 0.01,0),0)","v":0},{"$f":"IF( (Pkge!$L$50+Pkge!$L$54+Pkge!$L$79) >= 300, IF(Purchases!M$108 >= 300, 0.01,0),0)","v":0},{"$f":"IF( (Pkge!$L$50+Pkge!$L$54+Pkge!$L$79) >= 300, IF(Purchases!$K$108 >= 300, 0.01,0),0)","v":0},{"$f":"IF( (Pkge!$L$50+Pkge!$L$54+Pkge!$L$79) >= 300, IF(Purchases!O$108 >= 300, 0.01,0),0)","v":0}]
[null,"(Roundup WeatherMAX, Roundup Xtend, XtendiMax )",null,null,"(Minimum 300 acres)",{"$f":"IF((Pkge!$L$50 + Pkge!$L$54 + Pkge!$L$79)>=Purchases!AC112,1,(Pkge!$L$50 + Pkge!$L$54+Pkge!$L$79)/AC112)*F107*F$115","v":0},{"$f":"IF((Pkge!$L$50 + Pkge!$L$54+ Pkge!$L$79)>=Purchases!AD112,1,(Pkge!$L$50+ Pkge!$L$54+Pkge!$L$79)/AD112)*G107*G$115","v":0},{"$f":"IF((Pkge!$L$54+ Pkge!$L$79)>=Purchases!AE112,1,(Pkge!$L$54+Pkge!$L$79)/AE112)*H107*H$115","v":0},{"$f":"IF((Pkge!$L$50 +Pkge!$L$54+ Pkge!$L$79)>=Purchases!AE112,1,(Pkge!$L$50 + Pkge!$L$54+Pkge!$L$79)/AE112)*I107*I$115","v":0},{"$f":"IF((Pkge!$L$54+ Pkge!$L$79)>=Purchases!AG112,1,(Pkge!$L$54+Pkge!$L$79)/AG112)*J107*J$115","v":0},{"$f":"+F116+G116+I116","v":0}]
[]
[null,null,null,null,"Total Rebate for Each Crop",{"$f":"+F112+F114+F116","v":0},{"$f":"+G112+G114+G116","v":0},null,0,null,{"$f":"SUM(K112:L116)","v":0}]
[]
[null,"Additional Rebate on Roundup WeatherMAX for activating FieldView and uploading Data (Requires 300 acres of DEKALB seed early booked)",null,null,null,null,null,null,null,null,{"$f":"IF( R$79=1, IF(K108>=300,IF(S$82=1,IF(Pkge!L54>=500,500,Pkge!L54),0),0),0) * 1","v":0}]
[]
[null,null,null,null,null,null,null,"Total DEKALB BONUS ($)",null,null,{"$f":"+K112+K114+K116+K120","v":0}]
[null,null,null,null,null,null,null,"Overall % Savings in DEKALB Traits",null,null,null,{"$f":"+IF(K107 =0, 0, K122/K107)","v":0}]
[null,"Acres of BUTEO™ start + Prosper® EverGol® matched to Canola Seed Traits acres"]
[null,null,null,null,null,{"$f":"+Y112","v":0},null,"(Minimum 300 acres)"]
[null,"BUTEO™ start Bonus (%)",null,null,null,{"$f":"IF(F125 >=300, 0.02,0)","v":0}]
[null,"** To be eligible for the Buteo start Bonus, 300 acres of eligible trait canola + BUTEO™ start + Prosper® EverGol® must be purchased"]
[]
[]
[null,null,"Total BayerValue Rebate",null,null,{"$f":"+RebateSummary!P56","v":0}]
[]
[]
[]
[]
[]
[]
[]
[]
[]
[]
[]
[]
[]
[]
[]
[]
[]
[]
[]
[]
[]
[]
[]
[]
[]
[]
[null,"Total Rebate",null,"(A+B+C)",null,{"$f":"+RebateSummary!P51+Purchases!I155+Purchases!#REF!","v":{"$error":"#REF!"}},null,null,null,null,null,null,null,null,null,null,null,null,"Soybeans"]
[]
[]
[]
[null,null,null,null,null,null,null,null,null,null,null,null,null,null,null,null,null,"Crop",null,null,null,null,null,null,null,null,"St Lsts IF Hybrid is\"","List Prior to August 27, 2020"]
[null,null,null,null,null,null,null,null,null,null,null,null,"LIST",null,null,null,"Crop","Hybrid","Seed Treatment","Crop_Hyb_SeedTrt","SRP Value","Acres/Unit","Active",null,"Canola Hybrid Lst1","Canola Hybrid Lst2",{"$f":"+AB162","v":"ST list1"},"ST list1","Notes"]
[null,null,null,null,null,null,null,null,null,null,null,null,1,1,null,null,"Canola","DKTFLL 21 SC","Prosper® EverGol®/Jumpstart® XL",{"$f":"+Q163 & \"_\" & R163 & \"_\" & S163","v":"Canola_DKTFLL 21 SC_Prosper® EverGol®/Jumpstart® XL"},805,10,"Yes"," ",{"$f":"+R205","v":"None"},"Not","DKTFLL 21 SC","Prosper® EverGol®/Jumpstart® XL"]
[null,null,null,null,null,null,null,null,null,null,null,null,1,2,null,null,"Canola","DKTFLL 21 SC","Prosper® EverGol®/Jumpstart® XL/BUTEO™ start",{"$f":"+Q164 & \"_\" & R164 & \"_\" & S164","v":"Canola_DKTFLL 21 SC_Prosper® EverGol®/Jumpstart® XL/BUTEO™ start"},885,10,"Yes",null,"DKTFLL 21 SC","Required","DKTF 98 CR","Prosper® EverGol®/Jumpstart® XL/BUTEO™ start"]
[null,null,null,null,null,null,null,null,null,null,null,null,1,3,null,null,"Canola","DKTFLL 21 SC","Prosper® EverGol®/Jumpstart® XL/BUTEO™ start/Fortenza®","Canola_DKTFLL 21 SC_Prosper® EverGol®/Jumpstart® XL/BUTEO™ start/Fortenza®",920,10,"Yes",null,"DKTF 99 SC",null,"DKTF 96 SC","Prosper® EverGol®/Jumpstart® XL/BUTEO™ start/Fortenza®"]
[null,null,null,null,null,null,null,null,null,null,null,null,1,4,null,null,"Canola","DKTFLL 21 SC","Prosper® EverGol®/Jumpstart® XL/Fortenza® Advanced","Canola_DKTFLL 21 SC_Prosper® EverGol®/Jumpstart® XL/Fortenza® Advanced",904.5,10,"Yes",null,"DKTF 98 CR",null,"DKLL 82 SC","Prosper® EverGol®/Jumpstart® XL/Fortenza® Advanced"]
[null,null,null,null,null,null,null,null,null,null,null,null,2,5,null,null,"Canola","DKTF 99 SC","Prosper® EverGol®/Jumpstart® XL","Canola_DKTF 99 SC_Prosper® EverGol®/Jumpstart® XL",780,10,"Yes",null,"DKTF 97 CRSC",null,"DKTF 96 SC"]
[null,null,null,null,null,null,null,null,null,null,null,null,2,6,null,null,"Canola","DKTF 99 SC","Prosper® EverGol®/Jumpstart® XL/BUTEO™ start","Canola_DKTF 99 SC_Prosper® EverGol®/Jumpstart® XL/BUTEO™ start",860,10,"Yes",null,"DKTF 96 SC",null,"None",null,"no need for \"NONE\" in choices"]
[null,null,null,null,null,null,null,null,null,null,null,null,2,7,null,null,"Canola","DKTF 99 SC","Prosper® EverGol®/Jumpstart® XL/BUTEO™ start/Fortenza®","Canola_DKTF 99 SC_Prosper® EverGol®/Jumpstart® XL/BUTEO™ start/Fortenza®",895,10,"Yes",null,"DKLL 82 SC",null,{"$f":"+AB169","v":"ST list2"},"ST list2"]
[null,null,null,null,null,null,null,null,null,null,null,null,1,8,null,null,"Canola","DKTF 98 CR","Prosper® EverGol®/Jumpstart® XL","Canola_DKTF 98 CR_Prosper® EverGol®/Jumpstart® XL",745,10,"Yes",null,"DKLL 81 BL",null,"None","Prosper® EverGol®/Jumpstart® XL","no need for \"NONE\" in choices"]
[null,null,null,null,null,null,null,null,null,null,null,null,1,9,null,null,"Canola","DKTF 98 CR","Prosper® EverGol®/Jumpstart® XL/BUTEO™ start","Canola_DKTF 98 CR_Prosper® EverGol®/Jumpstart® XL/BUTEO™ start",825,10,"Yes",null,"75-65 RR",null,"DKTF 99 SC","Prosper® EverGol®/Jumpstart® XL/BUTEO™ start"]
[null,null,null,null,null,null,null,null,null,null,null,null,1,10,null,null,"Canola","DKTF 98 CR","Prosper® EverGol®/Jumpstart® XL/BUTEO™ start/Fortenza®","Canola_DKTF 98 CR_Prosper® EverGol®/Jumpstart® XL/BUTEO™ start/Fortenza®",860,10,"Yes",null,"75-45 RR",null,"DKTF 97 CRSC","Prosper® EverGol®/Jumpstart® XL/BUTEO™ start/Fortenza®"]
[null,null,null,null,null,null,null,null,null,null,null,null,1,11,null,null,"Canola","DKTF 98 CR","Prosper® EverGol®/Jumpstart® XL/Fortenza® Advanced","Canola_DKTF 98 CR_Prosper® EverGol®/Jumpstart® XL/Fortenza® Advanced",844.5,10,"Yes",null,"75-42 CR",null,"DKLL 81 BL"]
[null,null,null,null,null,null,null,null,null,null,null,null,2,12,null,null,"Canola","DKTF 97 CRSC","Prosper® EverGol®/Jumpstart® XL","Canola_DKTF 97 CRSC_Prosper® EverGol®/Jumpstart® XL",785,10,"Yes",null,"74-44 BL",null,{"$f":"+AB174","v":"ST list3"},"ST list3"]
[null,null,null,null,null,null,null,null,null,null,null,null,2,13,null,null,"Canola","DKTF 97 CRSC","Prosper® EverGol®/Jumpstart® XL/BUTEO™ start","Canola_DKTF 97 CRSC_Prosper® EverGol®/Jumpstart® XL/BUTEO™ start",865,10,"Yes",null,"Soybean Variety/Hybrid Lst1","Old Soybean Variety/Hybrid Lst2","None","Prosper® EverGol®"]
[null,null,null,null,null,null,null,null,null,null,null,null,2,14,null,null,"Canola","DKTF 97 CRSC","Prosper® EverGol®/Jumpstart® XL/BUTEO™ start/Fortenza®","Canola_DKTF 97 CRSC_Prosper® EverGol®/Jumpstart® XL/BUTEO™ start/Fortenza®",900,10,"Yes",null,null,null,{"$f":"+R188","v":"75-65 RR"},"Prosper® EverGol®/Jumpstart® XL"]
[null,null,null,null,null,null,null,null,null,null,null,null,1,15,null,null,"Canola","DKTF 96 SC","Prosper® EverGol®/Jumpstart® XL","Canola_DKTF 96 SC_Prosper® EverGol®/Jumpstart® XL",775,10,"Yes",null,"None","None",{"$f":"+R197","v":"75-42 CR"},"Prosper® EverGol®/BUTEO™ start"]
[null,null,null,null,null,null,null,null,null,null,null,null,1,16,null,null,"Canola","DKTF 96 SC","Prosper® EverGol®/Jumpstart® XL/BUTEO™ start","Canola_DKTF 96 SC_Prosper® EverGol®/Jumpstart® XL/BUTEO™ start",855,10,"Yes",null,"24-10RY","24-10RY",null,"Prosper® EverGol®/BUTEO™ start/Fortenza®"]
[null,null,null,null,null,null,null,null,null,null,null,null,1,17,null,null,"Canola","DKTF 96 SC","Prosper® EverGol®/Jumpstart® XL/BUTEO™ start/Fortenza®","Canola_DKTF 96 SC_Prosper® EverGol®/Jumpstart® XL/BUTEO™ start/Fortenza®",890,10,"Yes",null,"25-10RY","25-10RY",null,"Prosper® EverGol®/Fortenza® Advanced"]
[null,null,null,null,null,null,null,null,null,null,null,null,1,18,null,null,"Canola","DKTF 96 SC","Prosper® EverGol®/Jumpstart® XL/Fortenza® Advanced","Canola_DKTF 96 SC_Prosper® EverGol®/Jumpstart® XL/Fortenza® Advanced",874.5,10,"Yes",null,"DKB0005-44","DKB0003-24","None",null,"no need for \"NONE\" in choices"]
[null,null,null,null,null,null,null,null,null,null,null,null,1,19,null,null,"Canola","DKLL 82 SC","Prosper® EverGol®/Jumpstart® XL","Canola_DKLL 82 SC_Prosper® EverGol®/Jumpstart® XL",745,10,"Yes",null,"DKB0009-89","DKB0005-44",{"$f":"+AB181","v":"ST list4"},"ST list4"]
[null,null,null,null,null,null,null,null,null,null,null,null,1,20,null,null,"Canola","DKLL 82 SC","Prosper® EverGol®/Jumpstart® XL/BUTEO™ start","Canola_DKLL 82 SC_Prosper® EverGol®/Jumpstart® XL/BUTEO™ start",825,10,"Yes",null,"DKB002-32","DKB0008-87","None","Prosper® EverGol®"]
[null,null,null,null,null,null,null,null,null,null,null,null,1,21,null,null,"Canola","DKLL 82 SC","Prosper® EverGol®/Jumpstart® XL/BUTEO™ start/Fortenza®","Canola_DKLL 82 SC_Prosper® EverGol®/Jumpstart® XL/BUTEO™ start/Fortenza®",860,10,"Yes",null,"DKB003-29","DKB0009-89",{"$f":"+R193","v":"75-45 RR"},"Prosper® EverGol®/Jumpstart® XL"]
[null,null,null,null,null,null,null,null,null,null,null,null,1,22,null,null,"Canola","DKLL 82 SC","Prosper® EverGol®/Jumpstart® XL/Fortenza® Advanced","Canola_DKLL 82 SC_Prosper® EverGol®/Jumpstart® XL/Fortenza® Advanced",844.5,10,"Yes",null,"DKB005-52","DKB002-32",null,"Prosper® EverGol®/BUTEO™ start"]
[null,null,null,null,null,null,null,null,null,null,null,null,2,23,null,null,"Canola","DKLL 81 BL","Prosper® EverGol®/Jumpstart® XL","Canola_DKLL 81 BL_Prosper® EverGol®/Jumpstart® XL",715,10,"Yes",null,"DKB006-29","DKB003-29",null,"Prosper® EverGol®/BUTEO™ start/Fortenza®"]
[null,null,null,null,null,null,null,null,null,null,null,null,2,24,null,null,"Canola","DKLL 81 BL","Prosper® EverGol®/Jumpstart® XL/BUTEO™ start","Canola_DKLL 81 BL_Prosper® EverGol®/Jumpstart® XL/BUTEO™ start",795,10,"Yes",null,null,"DKB003-95","None",null,"no need for \"NONE\" in choices"]
[null,null,null,null,null,null,null,null,null,null,null,null,2,25,null,null,"Canola","DKLL 81 BL","Prosper® EverGol®/Jumpstart® XL/BUTEO™ start/Fortenza®","Canola_DKLL 81 BL_Prosper® EverGol®/Jumpstart® XL/BUTEO™ start/Fortenza®",830,10,"Yes",null,null,"DKB005-52",{"$f":"+AB187","v":"ST list5"},"ST list5"]
[null,null,null,null,null,null,null,null,null,null,null,null,3,26,null,null,"Canola","75-65 RR","Prosper® EverGol®","Canola_75-65 RR_Prosper® EverGol®",720,10,"Yes",null,null,"DKB006-29","None","Helix® Vibrance®"]
[null,null,null,null,null,null,null,null,null,null,null,null,3,27,null,null,"Canola","75-65 RR","Prosper® EverGol®/Jumpstart® XL","Canola_75-65 RR_Prosper® EverGol®/Jumpstart® XL",769.5,10,"Yes",null,null,"DKB008-48",{"$f":"+R202","v":"74-44 BL"},"Helix® Vibrance®/Jumpstart® XL"]
[null,null,null,null,null,null,null,null,null,null,null,null,3,28,null,null,"Canola","75-65 RR","Prosper® EverGol®/BUTEO™ start","Canola_75-65 RR_Prosper® EverGol®/BUTEO™ start",800,10,"Yes",null,null,"DKB008-72",null,"Helix® Vibrance®/Fortenza® Advanced"]
[null,null,null,null,null,null,null,null,null,null,null,null,3,29,null,null,"Canola","75-65 RR","Prosper® EverGol®/BUTEO™ start/Fortenza®","Canola_75-65 RR_Prosper® EverGol®/BUTEO™ start/Fortenza®",835,10,"Yes",null,"Corn Hybrid Lst1","Old Corn Hybrid Lst2",null,null,"no need for \"NONE\" in choices"]
[null,null,null,null,null,null,null,null,null,null,null,null,3,30,null,null,"Canola","75-65 RR","Prosper® EverGol®/Fortenza® Advanced","Canola_75-65 RR_Prosper® EverGol®/Fortenza® Advanced",819.5,10,"Yes",null,null,null,{"$f":"+AB192","v":"ST list6 Soybeans"},"ST list6 Soybeans"]
[null,null,null,null,null,null,null,null,null,null,null,null,4,31,null,null,"Canola","75-45 RR","Prosper® EverGol®","Canola_75-45 RR_Prosper® EverGol®",700,10,"Yes",null,"None","None","Untreated","Untreated"]
[null,null,null,null,null,null,null,null,null,null,null,null,4,32,null,null,"Canola","75-45 RR","Prosper® EverGol®/Jumpstart® XL","Canola_75-45 RR_Prosper® EverGol®/Jumpstart® XL",749.5,10,"Yes",null,"DKC21-36RIB","DKC21-36RIB","All Soy varieties have this same list"," Acceleron® fungicide + Optimize®"]
[null,null,null,null,null,null,null,null,null,null,null,null,4,33,null,null,"Canola","75-45 RR","Prosper® EverGol®/BUTEO™ start","Canola_75-45 RR_Prosper® EverGol®/BUTEO™ start",780,10,"Yes",null,"DKC23-17RIB","DKC23-17RIB",null,"Optimize® / Acceleron® Fungicides with imidacloprid insecticide"]
[null,null,null,null,null,null,null,null,null,null,null,null,4,34,null,null,"Canola","75-45 RR","Prosper® EverGol®/BUTEO™ start/Fortenza®","Canola_75-45 RR_Prosper® EverGol®/BUTEO™ start/Fortenza®",815,10,"Yes",null,"DKC24-05","DKC23-21","None",null,"no need for \"NONE\" in choices"]
[null,null,null,null,null,null,null,null,null,null,null,null,3,35,null,null,"Canola","75-42 CR","Prosper® EverGol®","Canola_75-42 CR_Prosper® EverGol®",710,10,"Yes",null,"DKC24-06RIB","DKC24-05"]
[null,null,null,null,null,null,null,null,null,null,null,null,3,36,null,null,"Canola","75-42 CR","Prosper® EverGol®/Jumpstart® XL","Canola_75-42 CR_Prosper® EverGol®/Jumpstart® XL",759.5,10,"Yes",null,"DKC26-40RIB","DKC24-06RIB","ST list8 None","ST list8 None"]
[null,null,null,null,null,null,null,null,null,null,null,null,3,37,null,null,"Canola","75-42 CR","Prosper® EverGol®/BUTEO™ start","Canola_75-42 CR_Prosper® EverGol®/BUTEO™ start",790,10,"Yes",null,"DKC29-89RIB","DKC26-25","None",null,"changed from \"None\", for No Crop choice default"]
[null,null,null,null,null,null,null,null,null,null,null,null,3,38,null,null,"Canola","75-42 CR","Prosper® EverGol®/BUTEO™ start/Fortenza®","Canola_75-42 CR_Prosper® EverGol®/BUTEO™ start/Fortenza®",825,10,"Yes",null,"DKC30-07RIB","DKC26-40RIB",null,null,null,null,null,"New Hybrid to ST ist Combos - Aug 21, 2020"]
[null,null,null,null,null,null,null,null,null,null,null,null,3,39,null,null,"Canola","75-42 CR","Prosper® EverGol®/Fortenza® Advanced","Canola_75-42 CR_Prosper® EverGol®/Fortenza® Advanced",809.5,10,"Yes",null,"DKC31-85RIB","DKC27-29RIB",{"$f":"+AB201","v":"ST list7 Corn"},"ST list7 Corn","MyCode List","BayerSourced No",null,"New Data List Aug 21 - Hybrids in Group pertaing to ST Drop-Down"]
[null,null,null,null,null,null,null,null,null,null,null,null,5,40,null,null,"Canola","74-44 BL","Helix® Vibrance®","Canola_74-44 BL_Helix® Vibrance®",660,10,"Yes",null,"DKC32-12RIB","DKC29-89RIB","DKC24-05","Acceleron (fungicide only) with Lumivia™ insecticide","Corn List 1",3,null,"DKC24-05",null,null,"Means currently active. Else NOT ACTIVE"]
[null,null,null,null,null,null,null,null,null,null,null,null,5,41,null,null,"Canola","74-44 BL","Helix® Vibrance®/Jumpstart® XL","Canola_74-44 BL_Helix® Vibrance®/Jumpstart® XL",709.5,10,"Yes",null,"DKC33-37RIB","DKC30-07RIB","DKC31-07","Acceleron (fungicides & insecticide-Poncho)",null,null,null,"DKC37-85RIB"]
[null,null,null,null,null,null,null,null,null,null,null,null,5,42,null,null,"Canola","74-44 BL","Helix® Vibrance®/Fortenza® Advanced","Canola_74-44 BL_Helix® Vibrance®/Fortenza® Advanced",759.5,10,"Yes",null,"DKC33-78RIB","DKC31-07","DKC36-86RIB",null,"no need for \"NONE\" in choices",null,null,"DKC31-07"]
[null,null,null,null,null,null,null,null,null,null,null,null,null,43,null,null,"Canola","None","None","Canola_None_None",0,0,"Yes",null,"DKC34-57RIB","DKC31-85RIB","DKC37-73RIB",null,null,null,null,"DKC36-86RIB"]
[null,null,null,null,null,null,null,null,null,null,null,null,null,44,null,null,"Corn","None","None","Corn_None_None",0,0,"Yes",null,"DKC35-37RIB","DKC32-12RIB","DKC37-85RIB",null,null,null,null,"DKC37-73RIB"]
[null,null,null,null,null,null,null,null,null,null,null,null,null,45,null,null,"Soybeans","None","None","Soybeans_None_None",0,0,"Yes",null,"DKC35-88RIB","DKC33-37RIB","DKC42-60RIB",null,null,null,null,"DKC42-60RIB"]
[null,null,null,null,null,null,null,null,null,null,null,null,null,46,null,null,"None","None","None","None_None_None",0,0,"Yes",null,"DKC37-85RIB","DKC33-78RIB","DKC63-60RIB",null,null,null,null,"DKC63-60RIB"]
[null,null,null,null,null,null,null,null,null,null,null,null,null,47,null,null,"Corn","DKC21-36RIB","Acceleron® fungicide + Lumivia™ insecticide",{"$f":"+Q209 & \"_\" & R209 & \"_\" & S209","v":"Corn_DKC21-36RIB_Acceleron® fungicide + Lumivia™ insecticide"},276,2.5,"Yes",null,"DKC38-55RIB","DKC34-48",{"$f":"+AB209","v":"ST list8 Corn"},"ST list8 Corn","Corn List 2",1]
[null,null,null,null,null,null,null,null,null,null,null,null,null,48,null,null,"Corn","DKC21-36RIB","Acceleron® fungicide + Poncho® insecticide","Corn_DKC21-36RIB_Acceleron® fungicide + Poncho® insecticide",266,2.5,"Yes",null,null,"DKC34-57RIB","DKC21-36RIB","Acceleron (fungicide only)",null,null,null,"DKC21-36RIB","DKC35-20"]
[null,null,null,null,null,null,null,null,null,null,null,null,null,49,null,null,"Corn","DKC23-17RIB","Acceleron® fungicide + Lumivia™ insecticide","Corn_DKC23-17RIB_Acceleron® fungicide + Lumivia™ insecticide",271,2.5,"Yes",null,null,"DKC35-20","DKC23-17RIB","Acceleron (fungicide only) with Lumivia™ insecticide",null,null,null,"DKC23-17RIB","DKC50-78RIB"]
[null,null,null,null,null,null,null,null,null,null,null,null,null,50,null,null,"Corn","DKC23-17RIB","Acceleron® fungicide + Poncho® insecticide","Corn_DKC23-17RIB_Acceleron® fungicide + Poncho® insecticide",261,2.5,"Yes",null,null,"DKC35-37RIB","DKC24-06RIB","Acceleron (fungicides & insecticide-Poncho 1250)",null,null,null,"DKC24-06RIB","DKC55-05RIB"]
[null,null,null,null,null,null,null,null,null,null,null,null,null,51,null,null,"Corn","DKC24-05","Acceleron® fungicide + Lumivia™ insecticide","Corn_DKC24-05_Acceleron® fungicide + Lumivia™ insecticide",265,2.5,"Yes",null,null,"DKC35-88RIB","DKC26-40RIB","Acceleron (fungicides & insecticide-Poncho)",null,null,null,"DKC26-40RIB","DKC55-05RIB"]
[null,null,null,null,null,null,null,null,null,null,null,null,null,52,null,null,"Corn","DKC24-05","Acceleron® fungicide + Poncho® insecticide","Corn_DKC24-05_Acceleron® fungicide + Poncho® insecticide",255,2.5,"Yes",null,null,"DKC36-86RIB","DKC29-89RIB",null,"no need for \"NONE\" in choices",null,null,"DKC29-89RIB","DKC58-06RIB"]
[null,null,null,null,null,null,null,null,null,null,null,null,null,53,null,null,"Corn","DKC24-06RIB","Acceleron® fungicide + Lumivia™ insecticide","Corn_DKC24-06RIB_Acceleron® fungicide + Lumivia™ insecticide",285,2.5,"Yes",null,null,"DKC37-73RIB","DKC30-07RIB",null,null,null,null,"DKC30-07RIB"]
[null,null,null,null,null,null,null,null,null,null,null,null,null,54,null,null,"Corn","DKC24-06RIB","Acceleron® fungicide + Poncho® insecticide","Corn_DKC24-06RIB_Acceleron® fungicide + Poncho® insecticide",275,2.5,"Yes",null,null,"DKC37-85RIB","DKC31-85RIB",null,null,null,null,"DKC31-85RIB"]
[null,null,null,null,null,null,null,null,null,null,null,null,null,55,null,null,"Corn","DKC26-40RIB","Acceleron® fungicide + Lumivia™ insecticide","Corn_DKC26-40RIB_Acceleron® fungicide + Lumivia™ insecticide",287,2.5,"Yes",null,null,"DKC38-15RIB","DKC32-12RIB",null,null,null,null,"DKC32-12RIB"]
[null,null,null,null,null,null,null,null,null,null,null,null,null,56,null,null,"Corn","DKC26-40RIB","Acceleron® fungicide + Poncho® insecticide","Corn_DKC26-40RIB_Acceleron® fungicide + Poncho® insecticide",277,2.5,"Yes",null,null,"DKC39-55RIB","DKC33-37RIB",null,null,null,null,"DKC33-37RIB"]
[null,null,null,null,null,null,null,null,null,null,null,null,null,57,null,null,"Corn","DKC29-89RIB","Acceleron® fungicide + Lumivia™ insecticide","Corn_DKC29-89RIB_Acceleron® fungicide + Lumivia™ insecticide",298,2.5,"Yes",null,null,"DKC39-97RIB","DKC33-78RIB",null,null,null,null,"DKC33-78RIB"]
[null,null,null,null,null,null,null,null,null,null,null,null,null,58,null,null,"Corn","DKC29-89RIB","Acceleron® fungicide + Poncho® insecticide","Corn_DKC29-89RIB_Acceleron® fungicide + Poncho® insecticide",288,2.5,"Yes",null,null,"DKC41-95","DKC35-37RIB",null,null,null,null,"DKC34-57RIB"]
[null,null,null,null,null,null,null,null,null,null,null,null,null,59,null,null,"Corn","DKC30-07RIB","Acceleron® fungicide + Lumivia™ insecticide","Corn_DKC30-07RIB_Acceleron® fungicide + Lumivia™ insecticide",289,2.5,"Yes",null,null,"DKC41-99RIB","DKC35-88RIB",null,null,null,null,"DKC35-37RIB"]
[null,null,null,null,null,null,null,null,null,null,null,null,null,60,null,null,"Corn","DKC30-07RIB","Acceleron® fungicide + Poncho® insecticide","Corn_DKC30-07RIB_Acceleron® fungicide + Poncho® insecticide",279,2.5,"Yes",null,null,"DKC42-04RIB","DKC50-78RIB",null,null,null,null,"DKC35-88RIB"]
[null,null,null,null,null,null,null,null,null,null,null,null,null,61,null,null,"Corn","DKC31-85RIB","Acceleron® fungicide + Lumivia™ insecticide","Corn_DKC31-85RIB_Acceleron® fungicide + Lumivia™ insecticide",316,2.5,"Yes",null,null,"DKC42-05RIB","DKC55-05RIB"]
[null,null,null,null,null,null,null,null,null,null,null,null,null,62,null,null,"Corn","DKC31-85RIB","Acceleron® fungicide + Poncho® insecticide","Corn_DKC31-85RIB_Acceleron® fungicide + Poncho® insecticide",306,2.5,"Yes",null,null,"DKC42-59","DKC58-06RIB"]
[null,null,null,null,null,null,null,null,null,null,null,null,null,63,null,null,"Corn","DKC32-12RIB","Acceleron® fungicide + Lumivia™ insecticide","Corn_DKC32-12RIB_Acceleron® fungicide + Lumivia™ insecticide",309,2.5,"Yes",null,null,"DKC42-60RIB",{"$f":"+AB225","v":"ST list9 Corn"},"ST list9 Corn","Corn List 3",2]
[null,null,null,null,null,null,null,null,null,null,null,null,null,64,null,null,"Corn","DKC32-12RIB","Acceleron® fungicide + Poncho® insecticide","Corn_DKC32-12RIB_Acceleron® fungicide + Poncho® insecticide",299,2.5,"Yes",null,null,"DKC43-47RIB","DKC23-21","Acceleron (fungicides & insecticide-Poncho)",null,null,null,"DKC23-21"]
[null,null,null,null,null,null,null,null,null,null,null,null,null,65,null,null,"Corn","DKC33-37RIB","Acceleron® fungicide + Lumivia™ insecticide","Corn_DKC33-37RIB_Acceleron® fungicide + Lumivia™ insecticide",316,2.5,"Yes",null,null,"DKC44-80RIB","DKC26-25",null,"no need for \"NONE\" in choices",null,null,"DKC26-25"]
[null,null,null,null,null,null,null,null,null,null,null,null,null,66,null,null,"Corn","DKC33-37RIB","Acceleron® fungicide + Poncho® insecticide","Corn_DKC33-37RIB_Acceleron® fungicide + Poncho® insecticide",306,2.5,"Yes",null,null,"DKC45-65RIB","None"]
[null,null,null,null,null,null,null,null,null,null,null,null,null,67,null,null,"Corn","DKC33-78RIB","Acceleron® fungicide + Lumivia™ insecticide","Corn_DKC33-78RIB_Acceleron® fungicide + Lumivia™ insecticide",313,2.5,"Yes",null,null,"DKC46-17RIB",{"$f":"+AB229","v":"ST list10 Corn"},"ST list10 Corn","Corn List 4",7]
[null,null,null,null,null,null,null,null,null,null,null,null,null,68,null,null,"Corn","DKC33-78RIB","Acceleron® fungicide + Poncho® insecticide","Corn_DKC33-78RIB_Acceleron® fungicide + Poncho® insecticide",303,2.5,"Yes",null,null,"DKC46-40RIB","DKC41-99RIB","Acceleron (fungicide only)",null,null,null,"DKC41-99RIB"]
[null,null,null,null,null,null,null,null,null,null,null,null,null,69,null,null,"Corn","DKC34-57RIB","Acceleron® fungicide + Lumivia™ insecticide","Corn_DKC34-57RIB_Acceleron® fungicide + Lumivia™ insecticide",305,2.5,"Yes",null,null,"DKC47-55RIB","DKC42-04RIB","Acceleron (fungicide only) with Lumivia™ insecticide",null,null,null,"DKC42-04RIB"]
[null,null,null,null,null,null,null,null,null,null,null,null,null,70,null,null,"Corn","DKC34-57RIB","Acceleron® fungicide + Poncho® insecticide","Corn_DKC34-57RIB_Acceleron® fungicide + Poncho® insecticide",295,2.5,"Yes",null,null,"DKC48-28RIB","DKC42-05RIB",null,"no need for \"NONE\" in choices",null,null,"DKC42-05RIB"]
[null,null,null,null,null,null,null,null,null,null,null,null,null,71,null,null,"Corn","DKC35-37RIB","Acceleron® fungicide + Lumivia™ insecticide","Corn_DKC35-37RIB_Acceleron® fungicide + Lumivia™ insecticide",318,2.5,"Yes",null,null,"DKC48-56RIB","DKC44-80RIB",null,null,null,null,"DKC44-80RIB"]
[null,null,null,null,null,null,null,null,null,null,null,null,null,72,null,null,"Corn","DKC35-37RIB","Acceleron® fungicide + Poncho® insecticide","Corn_DKC35-37RIB_Acceleron® fungicide + Poncho® insecticide",308,2.5,"Yes",null,null,"DKC48-70RIB","DKC47-55RIB",null,null,null,null,"DKC48-28RIB"]
[null,null,null,null,null,null,null,null,null,null,null,null,null,73,null,null,"Corn","DKC35-88RIB","Acceleron® fungicide + Lumivia™ insecticide","Corn_DKC35-88RIB_Acceleron® fungicide + Lumivia™ insecticide",311,2.5,"Yes",null,null,"DKC49-09RIB","DKC48-28RIB",null,null,null,null,"DKC49-09RIB"]
[null,null,null,null,null,null,null,null,null,null,null,null,null,74,null,null,"Corn","DKC35-88RIB","Acceleron® fungicide + Poncho® insecticide","Corn_DKC35-88RIB_Acceleron® fungicide + Poncho® insecticide",301,2.5,"Yes",null,null,"DKC49-44RIB","DKC49-09RIB",null,null,null,null,"DKC49-44RIB"]
[null,null,null,null,null,null,null,null,null,null,null,null,null,75,null,null,"Corn","DKC37-85RIB","Acceleron® fungicide + Lumivia™ insecticide","Corn_DKC37-85RIB_Acceleron® fungicide + Lumivia™ insecticide",302,2.5,"Yes",null,null,"DKC49-81","DKC49-44RIB"]
[null,null,null,null,null,null,null,null,null,null,null,null,null,76,null,null,"Corn","DKC37-85RIB","Acceleron® fungicide + Poncho® insecticide","Corn_DKC37-85RIB_Acceleron® fungicide + Poncho® insecticide",292,2.5,"Yes",null,null,"DKC50-26RIB",{"$f":"+AB238","v":"ST list11 Corn"},"ST list11 Corn","Corn List 5",4]
[null,null,null,null,null,null,null,null,null,null,null,null,null,77,null,null,"Corn","DKC38-55RIB","Acceleron® fungicide + Lumivia™ insecticide","Corn_DKC38-55RIB_Acceleron® fungicide + Lumivia™ insecticide",315,2.5,"Yes",null,null,"DKC50-78RIB","DKC27-29RIB","Acceleron (fungicide only) with Lumivia™ insecticide",null,null,null,"DKC27-29RIB"]
[null,null,null,null,null,null,null,null,null,null,null,null,null,78,null,null,"Corn","DKC38-55RIB","Acceleron® fungicide + Poncho® insecticide","Corn_DKC38-55RIB_Acceleron® fungicide + Poncho® insecticide",305,2.5,"Yes",null,null,"DKC50-78RIB","None","Acceleron (fungicides & insecticide-Poncho 1250)"]
[null,null,null,null,null,null,null,null,null,null,null,null,null,79,null,null,"Soybeans","24-10RY","Untreated",{"$f":"+Q241 & \"_\" & R241 & \"_\" & S241","v":"Soybeans_24-10RY_Untreated"},60.75,0.74,"Yes",null,null,"DKC51-98RIB",null,"Acceleron (fungicides & insecticide-Poncho)"]
[null,null,null,null,null,null,null,null,null,null,null,null,null,80,null,null,"Soybeans","24-10RY"," Acceleron® fungicide + Optimize®","Soybeans_24-10RY_ Acceleron® fungicide + Optimize®",71.25,0.74,"No",null,null,"DKC52-34RIB",null,null,"no need for \"NONE\" in choices"]
[null,null,null,null,null,null,null,null,null,null,null,null,null,81,null,null,"Soybeans","24-10RY"," Acceleron® Fungicide, Insecticide + Optimize®","Soybeans_24-10RY_ Acceleron® Fungicide, Insecticide + Optimize®",81.25,0.74,"No",null,null,"DKC53-56RIB",{"$f":"+AB243","v":"ST list12 Corn"},"ST list12 Corn"]
[null,null,null,null,null,null,null,null,null,null,null,null,null,82,null,null,"Soybeans","25-10RY","Untreated","Soybeans_25-10RY_Untreated",60.75,0.74,"Yes",null,null,"DKC53-87RIB","None","Acceleron (fungicide only) with Lumivia™ insecticide","Corn List 6",5]
[null,null,null,null,null,null,null,null,null,null,null,null,null,83,null,null,"Soybeans","25-10RY"," Acceleron® fungicide + Optimize®","Soybeans_25-10RY_ Acceleron® fungicide + Optimize®",71.25,0.74,"No",null,null,"DKC54-45RIB","DKC34-48",null,"no need for \"NONE\" in choices",null,null,"DKC34-48"]
[null,null,null,null,null,null,null,null,null,null,null,null,null,84,null,null,"Soybeans","25-10RY"," Acceleron® Fungicide, Insecticide + Optimize®","Soybeans_25-10RY_ Acceleron® Fungicide, Insecticide + Optimize®",81.25,0.74,"No",null,null,"DKC54-77RIB","DKC35-20",null,null,null,null,"DKC38-15RIB"]
[null,null,null,null,null,null,null,null,null,null,null,null,null,85,null,null,"Soybeans","DKB0003-24","Untreated","Soybeans_DKB0003-24_Untreated",59.75,0.74,"No",null,null,"DKC55-05RIB","DKC38-15RIB",null,null,null,null,"DKC41-95"]
[null,null,null,null,null,null,null,null,null,null,null,null,null,86,null,null,"Soybeans","DKB0005-44","Untreated","Soybeans_DKB0005-44_Untreated",59.75,0.74,"Yes",null,null,"DKC56-15RIB","DKC39-55RIB",null,null,null,null,"DKC42-59"]
[null,null,null,null,null,null,null,null,null,null,null,null,null,87,null,null,"Soybeans","DKB0005-44"," Acceleron® fungicide + Optimize®","Soybeans_DKB0005-44_ Acceleron® fungicide + Optimize®",70.25,0.74,"No",null,null,"DKC56-65RIB","DKC41-95",null,null,null,null,"DKC46-40RIB"]
[null,null,null,null,null,null,null,null,null,null,null,null,null,88,null,null,"Soybeans","DKB0005-44"," Acceleron® Fungicide, Insecticide + Optimize®","Soybeans_DKB0005-44_ Acceleron® Fungicide, Insecticide + Optimize®",80.25,0.74,"No",null,null,"DKC57-16RIB","DKC42-59",null,null,null,null,"DKC48-70RIB"]
[null,null,null,null,null,null,null,null,null,null,null,null,null,89,null,null,"Soybeans","DKB0009-89","Untreated","Soybeans_DKB0009-89_Untreated",59.75,0.74,"Yes",null,null,"DKC58-06RIB","DKC46-40RIB",null,null,null,null,"DKC49-81"]
[null,null,null,null,null,null,null,null,null,null,null,null,null,90,null,null,"Soybeans","DKB0009-89"," Acceleron® fungicide + Optimize®","Soybeans_DKB0009-89_ Acceleron® fungicide + Optimize®",70.25,0.74,"No",null,null,"DKC59-50RIB","DKC48-70RIB",null,null,null,null,"DKC50-26RIB"]
[null,null,null,null,null,null,null,null,null,null,null,null,null,91,null,null,"Soybeans","DKB0009-89"," Acceleron® Fungicide, Insecticide + Optimize®","Soybeans_DKB0009-89_ Acceleron® Fungicide, Insecticide + Optimize®",80.25,0.74,"No",null,null,"DKC60-87RIB","DKC49-81",null,null,null,null,"DKC51-98RIB"]
[null,null,null,null,null,null,null,null,null,null,null,null,null,92,null,null,"Soybeans","DKB002-32","Untreated","Soybeans_DKB002-32_Untreated",59.75,0.74,"Yes",null,null,"DKC63-60RIB","DKC50-26RIB",null,null,null,null,"DKC52-34RIB"]
[null,null,null,null,null,null,null,null,null,null,null,null,null,93,null,null,"Soybeans","DKB002-32"," Acceleron® fungicide + Optimize®","Soybeans_DKB002-32_ Acceleron® fungicide + Optimize®",70.25,0.74,"No",null,"None",null,"DKC51-98RIB",null,null,null,null,"DKC53-87RIB"]
[null,null,null,null,null,null,null,null,null,null,null,null,null,94,null,null,"Soybeans","DKB002-32"," Acceleron® Fungicide, Insecticide + Optimize®","Soybeans_DKB002-32_ Acceleron® Fungicide, Insecticide + Optimize®",80.25,0.74,"No",null,"None",null,"DKC51-99RIB",null,null,null,null,"DKC54-45RIB"]
[null,null,null,null,null,null,null,null,null,null,null,null,null,95,null,null,"Soybeans","DKB003-29","Untreated","Soybeans_DKB003-29_Untreated",60.75,0.74,"Yes",null,null,null,"DKC52-34RIB",null,null,null,null,"DKC54-77RIB"]
[null,null,null,null,null,null,null,null,null,null,null,null,null,96,null,null,"Soybeans","DKB003-29"," Acceleron® fungicide + Optimize®","Soybeans_DKB003-29_ Acceleron® fungicide + Optimize®",71.25,0.74,"No",null,null,null,"DKC53-87RIB",null,null,null,null,"DKC56-15RIB"]
[null,null,null,null,null,null,null,null,null,null,null,null,null,97,null,null,"Soybeans","DKB003-29"," Acceleron® Fungicide, Insecticide + Optimize®","Soybeans_DKB003-29_ Acceleron® Fungicide, Insecticide + Optimize®",81.25,0.74,"No",null,null,null,"DKC54-45RIB",null,null,null,null,"DKC56-65RIB"]
[null,null,null,null,null,null,null,null,null,null,null,null,null,98,null,null,"Soybeans","DKB005-52","Untreated","Soybeans_DKB005-52_Untreated",60.75,0.74,"Yes",null,null,null,"DKC54-77RIB",null,null,null,null,"DKC57-16RIB"]
[null,null,null,null,null,null,null,null,null,null,null,null,null,99,null,null,"Soybeans","DKB005-52"," Acceleron® fungicide + Optimize®","Soybeans_DKB005-52_ Acceleron® fungicide + Optimize®",71.25,0.74,"No",null,null,null,"DKC56-15RIB",null,null,null,null,"DKC59-50RIB"]
[null,null,null,null,null,null,null,null,null,null,null,null,null,100,null,null,"Soybeans","DKB005-52"," Acceleron® Fungicide, Insecticide + Optimize®","Soybeans_DKB005-52_ Acceleron® Fungicide, Insecticide + Optimize®",81.25,0.74,"No",null,null,null,"DKC56-65RIB",null,null,null,null,"DKC60-87RIB"]
[null,null,null,null,null,null,null,null,null,null,null,null,null,101,null,null,"Soybeans","DKB006-29","Untreated","Soybeans_DKB006-29_Untreated",60.75,0.74,"Yes",null,null,null,"DKC57-16RIB"]
[null,null,null,null,null,null,null,null,null,null,null,null,null,102,null,null,"Soybeans","DKB006-29"," Acceleron® fungicide + Optimize®","Soybeans_DKB006-29_ Acceleron® fungicide + Optimize®",71.25,0.74,"No",null,null,null,"DKC59-50RIB"]
[null,null,null,null,null,null,null,null,null,null,null,null,null,103,null,null,"Soybeans","DKB006-29"," Acceleron® Fungicide, Insecticide + Optimize®","Soybeans_DKB006-29_ Acceleron® Fungicide, Insecticide + Optimize®",81.25,0.74,"No",null,null,null,"DKC60-87RIB"]
[null,null,null,null,null,null,null,null,null,null,null,null,null,104,null,null,"Soybeans","DKB0003-24"," Acceleron® fungicide + Optimize®",{"$f":"+Q266 & \"_\" & R266 & \"_\" & S266","v":"Soybeans_DKB0003-24_ Acceleron® fungicide + Optimize®"},70.25,0.74,"No",null,null,null,{"$f":"+AB266","v":"ST list13 Corn"},"ST list13 Corn","Corn List 7",6]
[null,null,null,null,null,null,null,null,null,null,null,null,null,105,null,null,"Soybeans","DKB0003-24"," Acceleron® Fungicide, Insecticide + Optimize®","Soybeans_DKB0003-24_ Acceleron® Fungicide, Insecticide + Optimize®",80.25,0.74,"No",null,null,null,"DKC34-57RIB","Acceleron (fungicide only)",null,null,null,"DKC38-55RIB"]
[null,null,null,null,null,null,null,null,null,null,null,null,null,106,null,null,"Soybeans","DKB0008-87","Untreated","Soybeans_DKB0008-87_Untreated",59.75,0.74,"No",null,null,null,"DKC38-55RIB","Acceleron (fungicide only) with Lumivia™ insecticide",null,null,null,"DKC38-55RIB"]
[null,null,null,null,null,null,null,null,null,null,null,null,null,107,null,null,"Soybeans","DKB0008-87"," Acceleron® fungicide + Optimize®","Soybeans_DKB0008-87_ Acceleron® fungicide + Optimize®",70.25,0.74,"No",null,null,null,"DKC39-97RIB","Acceleron (fungicides & insecticide-Poncho)",null,null,null,"DKC39-97RIB"]
[null,null,null,null,null,null,null,null,null,null,null,null,null,108,null,null,"Soybeans","DKB0008-87"," Acceleron® Fungicide, Insecticide + Optimize®","Soybeans_DKB0008-87_ Acceleron® Fungicide, Insecticide + Optimize®",80.25,0.74,"No",null,null,null,"DKC43-47RIB",null,"no need for \"NONE\" in choices",null,null,"DKC43-47RIB"]
[null,null,null,null,null,null,null,null,null,null,null,null,null,109,null,null,"Soybeans","DKB003-95","Untreated","Soybeans_DKB003-95_Untreated",60.75,0.74,"No",null,null,null,"DKC45-65RIB",null,null,null,null,"DKC45-65RIB"]
[null,null,null,null,null,null,null,null,null,null,null,null,null,110,null,null,"Soybeans","DKB003-95"," Acceleron® fungicide + Optimize®","Soybeans_DKB003-95_ Acceleron® fungicide + Optimize®",71.25,0.74,"No",null,null,null,"DKC45-65RIB",null,null,null,null,"DKC46-17RIB"]
[null,null,null,null,null,null,null,null,null,null,null,null,null,111,null,null,"Soybeans","DKB003-95"," Acceleron® Fungicide, Insecticide + Optimize®","Soybeans_DKB003-95_ Acceleron® Fungicide, Insecticide + Optimize®",81.25,0.74,"No",null,null,null,"DKC46-17RIB",null,null,null,null,"DKC48-56RIB"]
[null,null,null,null,null,null,null,null,null,null,null,null,null,112,null,null,"Soybeans","DKB008-48","Untreated","Soybeans_DKB008-48_Untreated",60.75,0.74,"No",null,null,null,"DKC48-56RIB",null,null,null,null,"DKC53-56RIB"]
[null,null,null,null,null,null,null,null,null,null,null,null,null,113,null,null,"Soybeans","DKB008-48"," Acceleron® fungicide + Optimize®","Soybeans_DKB008-48_ Acceleron® fungicide + Optimize®",71.25,0.74,"No",null,null,null,"DKC52-84RIB"]
[null,null,null,null,null,null,null,null,null,null,null,null,null,114,null,null,"Soybeans","DKB008-48"," Acceleron® Fungicide, Insecticide + Optimize®","Soybeans_DKB008-48_ Acceleron® Fungicide, Insecticide + Optimize®",81.25,0.74,"No",null,null,null,"DKC53-56RIB"]
[null,null,null,null,null,null,null,null,null,null,null,null,null,115,null,null,"Soybeans","DKB008-72","Untreated","Soybeans_DKB008-72_Untreated",60.75,0.74,"No",null,null,null,null,"List Prior to and after August 27, 2020"]
[null,null,null,null,null,null,null,null,null,null,null,null,null,116,null,null,"Soybeans","DKB008-72"," Acceleron® fungicide + Optimize®","Soybeans_DKB008-72_ Acceleron® fungicide + Optimize®",71.25,0.74,"No",null,null,null,{"$f":"+AB278","v":"ST list7 Corn"},"ST list7 Corn","MyCode List","BayerSourced No"]
[null,null,null,null,null,null,null,null,null,null,null,null,null,117,null,null,"Soybeans","DKB008-72"," Acceleron® Fungicide, Insecticide + Optimize®","Soybeans_DKB008-72_ Acceleron® Fungicide, Insecticide + Optimize®",81.25,0.74,"No",null,null,null,"DKC21-36RIB","Acceleron® fungicide + Poncho® insecticide","Corn List 1",1]
[null,null,null,null,null,null,null,null,null,null,null,null,null,118,null,null,"Corn","DKC21-36RIB","Acceleron (fungicide only)","Corn_DKC21-36RIB_Acceleron (fungicide only)",272,2.5,"No",null,null,null,"DKC23-17RIB","Acceleron® fungicide + Lumivia™ insecticide"]
[null,null,null,null,null,null,null,null,null,null,null,null,null,119,null,null,"Corn","DKC21-36RIB","Acceleron (fungicides & insecticide-Poncho 1250)","Corn_DKC21-36RIB_Acceleron (fungicides & insecticide-Poncho 1250)",292,2.5,"No",null,null,null,"DKC24-05"]
[null,null,null,null,null,null,null,null,null,null,null,null,null,120,null,null,"Corn","DKC23-17RIB","Acceleron (fungicide only)","Corn_DKC23-17RIB_Acceleron (fungicide only)",267,2.5,"No",null,null,null,"DKC24-06RIB"]
[null,null,null,null,null,null,null,null,null,null,null,null,null,121,null,null,"Corn","DKC23-17RIB","Acceleron (fungicides & insecticide-Poncho 1250)","Corn_DKC23-17RIB_Acceleron (fungicides & insecticide-Poncho 1250)",287,2.5,"No",null,null,null,"DKC26-40RIB"]
[null,null,null,null,null,null,null,null,null,null,null,null,null,122,null,null,"Corn","DKC23-21","Acceleron® fungicide + Poncho® insecticide","Corn_DKC23-21_Acceleron® fungicide + Poncho® insecticide",249,2.5,"No",null,null,null,"DKC29-89RIB"]
[null,null,null,null,null,null,null,null,null,null,null,null,null,123,null,null,"Corn","DKC24-06RIB","Acceleron (fungicide only)","Corn_DKC24-06RIB_Acceleron (fungicide only)",282,2.5,"No",null,null,null,"DKC30-07RIB"]
[null,null,null,null,null,null,null,null,null,null,null,null,null,124,null,null,"Corn","DKC24-06RIB","Acceleron (fungicides & insecticide-Poncho 1250)","Corn_DKC24-06RIB_Acceleron (fungicides & insecticide-Poncho 1250)",302,2.5,"No",null,null,null,"DKC31-85RIB"]
[null,null,null,null,null,null,null,null,null,null,null,null,null,125,null,null,"Corn","DKC26-25","Acceleron® fungicide + Poncho® insecticide","Corn_DKC26-25_Acceleron® fungicide + Poncho® insecticide",251,2.5,"No",null,null,null,"DKC32-12RIB"]
[null,null,null,null,null,null,null,null,null,null,null,null,null,126,null,null,"Corn","DKC26-40RIB","Acceleron (fungicide only)","Corn_DKC26-40RIB_Acceleron (fungicide only)",281,2.5,"No",null,null,null,"DKC33-37RIB"]
[null,null,null,null,null,null,null,null,null,null,null,null,null,127,null,null,"Corn","DKC26-40RIB","Acceleron (fungicides & insecticide-Poncho 1250)","Corn_DKC26-40RIB_Acceleron (fungicides & insecticide-Poncho 1250)",301,2.5,"No",null,null,null,"DKC33-78RIB"]
[null,null,null,null,null,null,null,null,null,null,null,null,null,128,null,null,"Corn","DKC27-29RIB","Acceleron® fungicide + Lumivia™ insecticide","Corn_DKC27-29RIB_Acceleron® fungicide + Lumivia™ insecticide",305,2.5,"No",null,null,null,"DKC34-57RIB"]
[null,null,null,null,null,null,null,null,null,null,null,null,null,129,null,null,"Corn","DKC27-29RIB","Acceleron® fungicide + Poncho® insecticide","Corn_DKC27-29RIB_Acceleron® fungicide + Poncho® insecticide",295,2.5,"No",null,null,null,"DKC35-37RIB"]
[null,null,null,null,null,null,null,null,null,null,null,null,null,130,null,null,"Corn","DKC27-29RIB","Acceleron (fungicides & insecticide-Poncho 1250)","Corn_DKC27-29RIB_Acceleron (fungicides & insecticide-Poncho 1250)",310,2.5,"No",null,null,null,"DKC35-88RIB"]
[null,null,null,null,null,null,null,null,null,null,null,null,null,131,null,null,"Corn","DKC29-89RIB","Acceleron (fungicide only)","Corn_DKC29-89RIB_Acceleron (fungicide only)",293,2.5,"No",null,null,null,"DKC37-85RIB"]
[null,null,null,null,null,null,null,null,null,null,null,null,null,132,null,null,"Corn","DKC29-89RIB","Acceleron (fungicides & insecticide-Poncho 1250)","Corn_DKC29-89RIB_Acceleron (fungicides & insecticide-Poncho 1250)",313,2.5,"No",null,null,null,"DKC38-55RIB"]
[null,null,null,null,null,null,null,null,null,null,null,null,null,133,null,null,"Corn","DKC30-07RIB","Acceleron (fungicide only)","Corn_DKC30-07RIB_Acceleron (fungicide only)",287,2.5,"No",null,null,null,{"$f":"+AB295","v":"ST list8 Corn"},"ST list8 Corn","Corn List 2",2]
[null,null,null,null,null,null,null,null,null,null,null,null,null,134,null,null,"Corn","DKC30-07RIB","Acceleron (fungicides & insecticide-Poncho 1250)","Corn_DKC30-07RIB_Acceleron (fungicides & insecticide-Poncho 1250)",307,2.5,"No",null,null,null,"DKC38-15RIB","Acceleron® fungicide + Lumivia™ insecticide"]
[null,null,null,null,null,null,null,null,null,null,null,null,null,135,null,null,"Corn","DKC31-07","Acceleron® fungicide + Lumivia™ insecticide",{"$f":"+Q297 & \"_\" & R297 & \"_\" & S297","v":"Corn_DKC31-07_Acceleron® fungicide + Lumivia™ insecticide"},280,2.5,"No"]
[null,null,null,null,null,null,null,null,null,null,null,null,null,136,null,null,"Corn","DKC31-07","Acceleron® fungicide + Poncho® insecticide","Corn_DKC31-07_Acceleron® fungicide + Poncho® insecticide",270,2.5,"No",null,null,null,{"$f":"+AB298","v":"ST list6 Soybeans"},"ST list6 Soybeans","Soybean List 1",1]
[null,null,null,null,null,null,null,null,null,null,null,null,null,137,null,null,"Corn","DKC31-85RIB","Acceleron (fungicide only)","Corn_DKC31-85RIB_Acceleron (fungicide only)",308,2.5,"No",null,null,null,"24-10RY","Untreated"]
[null,null,null,null,null,null,null,null,null,null,null,null,null,138,null,null,"Corn","DKC31-85RIB","Acceleron (fungicides & insecticide-Poncho 1250)","Corn_DKC31-85RIB_Acceleron (fungicides & insecticide-Poncho 1250)",328,2.5,"No",null,null,null,"25-10RY"," Acceleron® fungicide + Optimize®"]
[null,null,null,null,null,null,null,null,null,null,null,null,null,139,null,null,"Corn","DKC32-12RIB","Acceleron (fungicide only)","Corn_DKC32-12RIB_Acceleron (fungicide only)",303,2.5,"No",null,null,null,"DKB0005-44"," Acceleron® Fungicide, Insecticide + Optimize®"]
[null,null,null,null,null,null,null,null,null,null,null,null,null,140,null,null,"Corn","DKC32-12RIB","Acceleron (fungicides & insecticide-Poncho 1250)","Corn_DKC32-12RIB_Acceleron (fungicides & insecticide-Poncho 1250)",323,2.5,"No",null,null,null,"DKB0009-89"]
[null,null,null,null,null,null,null,null,null,null,null,null,null,141,null,null,"Corn","DKC33-37RIB","Acceleron (fungicide only)","Corn_DKC33-37RIB_Acceleron (fungicide only)",313,2.5,"No",null,null,null,"DKB002-32"]
[null,null,null,null,null,null,null,null,null,null,null,null,null,142,null,null,"Corn","DKC33-37RIB","Acceleron (fungicides & insecticide-Poncho 1250)","Corn_DKC33-37RIB_Acceleron (fungicides & insecticide-Poncho 1250)",333,2.5,"No",null,null,null,"DKB003-29"]
[null,null,null,null,null,null,null,null,null,null,null,null,null,143,null,null,"Corn","DKC33-78RIB","Acceleron (fungicide only)","Corn_DKC33-78RIB_Acceleron (fungicide only)",304,2.5,"No",null,null,null,"DKB005-52"]
[null,null,null,null,null,null,null,null,null,null,null,null,null,144,null,null,"Corn","DKC33-78RIB","Acceleron (fungicides & insecticide-Poncho 1250)","Corn_DKC33-78RIB_Acceleron (fungicides & insecticide-Poncho 1250)",324,2.5,"No",null,null,null,"ST list6 Soybeans","ST list6 Soybeans FOR Nov 1, 2020","Soybean List 2",2]
[null,null,null,null,null,null,null,null,null,null,null,null,null,145,null,null,"Corn","DKC34-48","Acceleron® fungicide + Lumivia™ insecticide","Corn_DKC34-48_Acceleron® fungicide + Lumivia™ insecticide",261,2.5,"No",null,null,null,"DKB0003-24","Untreated"]
[null,null,null,null,null,null,null,null,null,null,null,null,null,146,null,null,"Corn","DKC34-57RIB","Acceleron (fungicide only)","Corn_DKC34-57RIB_Acceleron (fungicide only)",309,2.5,"No",null,null,null,"DKB0008-87"," Acceleron® fungicide + Optimize®"]
[null,null,null,null,null,null,null,null,null,null,null,null,null,147,null,null,"Corn","DKC35-20","Acceleron® fungicide + Lumivia™ insecticide","Corn_DKC35-20_Acceleron® fungicide + Lumivia™ insecticide",261,2.5,"No",null,null,null,"DKB008-48"," Acceleron® Fungicide, Insecticide + Optimize®"]
[null,null,null,null,null,null,null,null,null,null,null,null,null,148,null,null,"Corn","DKC35-37RIB","Acceleron (fungicide only)","Corn_DKC35-37RIB_Acceleron (fungicide only)",322,2.5,"No",null,null,null,"DKB008-72"]
[null,null,null,null,null,null,null,null,null,null,null,null,null,149,null,null,"Corn","DKC35-37RIB","Acceleron (fungicides & insecticide-Poncho 1250)","Corn_DKC35-37RIB_Acceleron (fungicides & insecticide-Poncho 1250)",342,2.5,"No"]
[null,null,null,null,null,null,null,null,null,null,null,null,null,150,null,null,"Corn","DKC35-88RIB","Acceleron (fungicide only)","Corn_DKC35-88RIB_Acceleron (fungicide only)",314,2.5,"No"]
[null,null,null,null,null,null,null,null,null,null,null,null,null,151,null,null,"Corn","DKC35-88RIB","Acceleron (fungicides & insecticide-Poncho 1250)","Corn_DKC35-88RIB_Acceleron (fungicides & insecticide-Poncho 1250)",334,2.5,"No"]
[null,null,null,null,null,null,null,null,null,null,null,null,null,152,null,null,"Corn","DKC36-86RIB","Acceleron® fungicide + Lumivia™ insecticide","Corn_DKC36-86RIB_Acceleron® fungicide + Lumivia™ insecticide",341,2.5,"No"]
[null,null,null,null,null,null,null,null,null,null,null,null,null,153,null,null,"Corn","DKC36-86RIB","Acceleron® fungicide + Poncho® insecticide","Corn_DKC36-86RIB_Acceleron® fungicide + Poncho® insecticide",331,2.5,"No"]
[null,null,null,null,null,null,null,null,null,null,null,null,null,154,null,null,"Corn","DKC37-73RIB","Acceleron® fungicide + Lumivia™ insecticide","Corn_DKC37-73RIB_Acceleron® fungicide + Lumivia™ insecticide",341,2.5,"No"]
[null,null,null,null,null,null,null,null,null,null,null,null,null,155,null,null,"Corn","DKC37-73RIB","Acceleron® fungicide + Poncho® insecticide","Corn_DKC37-73RIB_Acceleron® fungicide + Poncho® insecticide",331,2.5,"No"]
[null,null,null,null,null,null,null,null,null,null,null,null,null,156,null,null,"Corn","DKC38-15RIB","Acceleron® fungicide + Lumivia™ insecticide","Corn_DKC38-15RIB_Acceleron® fungicide + Lumivia™ insecticide",341,2.5,"No"]
[null,null,null,null,null,null,null,null,null,null,null,null,null,157,null,null,"Corn","DKC38-55RIB","Acceleron (fungicide only)","Corn_DKC38-55RIB_Acceleron (fungicide only)",317,2.5,"No"]
[null,null,null,null,null,null,null,null,null,null,null,null,null,158,null,null,"Corn","DKC39-55RIB","Acceleron® fungicide + Lumivia™ insecticide","Corn_DKC39-55RIB_Acceleron® fungicide + Lumivia™ insecticide",344,2.5,"No"]
[null,null,null,null,null,null,null,null,null,null,null,null,null,159,null,null,"Corn","DKC39-97RIB","Acceleron® fungicide + Lumivia™ insecticide","Corn_DKC39-97RIB_Acceleron® fungicide + Lumivia™ insecticide",322,2.5,"No"]
[null,null,null,null,null,null,null,null,null,null,null,null,null,160,null,null,"Corn","DKC39-97RIB","Acceleron® fungicide + Poncho® insecticide","Corn_DKC39-97RIB_Acceleron® fungicide + Poncho® insecticide",312,2.5,"No"]
[null,null,null,null,null,null,null,null,null,null,null,null,null,161,null,null,"Corn","DKC39-97RIB","Acceleron (fungicide only)","Corn_DKC39-97RIB_Acceleron (fungicide only)",307,2.5,"No"]
[null,null,null,null,null,null,null,null,null,null,null,null,null,162,null,null,"Corn","DKC41-95","Acceleron® fungicide + Lumivia™ insecticide","Corn_DKC41-95_Acceleron® fungicide + Lumivia™ insecticide",322,2.5,"No"]
[null,null,null,null,null,null,null,null,null,null,null,null,null,163,null,null,"Corn","DKC41-99RIB","Acceleron® fungicide + Lumivia™ insecticide","Corn_DKC41-99RIB_Acceleron® fungicide + Lumivia™ insecticide",341,2.5,"No"]
[null,null,null,null,null,null,null,null,null,null,null,null,null,164,null,null,"Corn","DKC41-99RIB","Acceleron (fungicide only)","Corn_DKC41-99RIB_Acceleron (fungicide only)",326,2.5,"No"]
[null,null,null,null,null,null,null,null,null,null,null,null,null,165,null,null,"Corn","DKC42-04RIB","Acceleron® fungicide + Lumivia™ insecticide","Corn_DKC42-04RIB_Acceleron® fungicide + Lumivia™ insecticide",359,2.5,"No"]
[null,null,null,null,null,null,null,null,null,null,null,null,null,166,null,null,"Corn","DKC42-04RIB","Acceleron (fungicide only)","Corn_DKC42-04RIB_Acceleron (fungicide only)",344,2.5,"No"]
[null,null,null,null,null,null,null,null,null,null,null,null,null,167,null,null,"Corn","DKC42-05RIB","Acceleron® fungicide + Lumivia™ insecticide",{"$f":"+Q329 & \"_\" & R329 & \"_\" & S329","v":"Corn_DKC42-05RIB_Acceleron® fungicide + Lumivia™ insecticide"},349,2.5,"No"]
[null,null,null,null,null,null,null,null,null,null,null,null,null,168,null,null,"Corn","DKC42-05RIB","Acceleron (fungicide only)","Corn_DKC42-05RIB_Acceleron (fungicide only)",334,2.5,"No"]
[null,null,null,null,null,null,null,null,null,null,null,null,null,169,null,null,"Corn","DKC42-59","Acceleron® fungicide + Lumivia™ insecticide","Corn_DKC42-59_Acceleron® fungicide + Lumivia™ insecticide",265,2.5,"No"]
[null,null,null,null,null,null,null,null,null,null,null,null,null,170,null,null,"Corn","DKC42-60RIB","Acceleron® fungicide + Lumivia™ insecticide","Corn_DKC42-60RIB_Acceleron® fungicide + Lumivia™ insecticide",334,2.5,"No"]
[null,null,null,null,null,null,null,null,null,null,null,null,null,171,null,null,"Corn","DKC42-60RIB","Acceleron® fungicide + Poncho® insecticide","Corn_DKC42-60RIB_Acceleron® fungicide + Poncho® insecticide",324,2.5,"No"]
[null,null,null,null,null,null,null,null,null,null,null,null,null,172,null,null,"Corn","DKC43-47RIB","Acceleron® fungicide + Lumivia™ insecticide","Corn_DKC43-47RIB_Acceleron® fungicide + Lumivia™ insecticide",342,2.5,"No"]
[null,null,null,null,null,null,null,null,null,null,null,null,null,173,null,null,"Corn","DKC43-47RIB","Acceleron® fungicide + Poncho® insecticide","Corn_DKC43-47RIB_Acceleron® fungicide + Poncho® insecticide",332,2.5,"No"]
[null,null,null,null,null,null,null,null,null,null,null,null,null,174,null,null,"Corn","DKC43-47RIB","Acceleron (fungicide only)","Corn_DKC43-47RIB_Acceleron (fungicide only)",327,2.5,"No"]
[null,null,null,null,null,null,null,null,null,null,null,null,null,175,null,null,"Corn","DKC44-80RIB","Acceleron® fungicide + Lumivia™ insecticide","Corn_DKC44-80RIB_Acceleron® fungicide + Lumivia™ insecticide",349,2.5,"No"]
[null,null,null,null,null,null,null,null,null,null,null,null,null,176,null,null,"Corn","DKC44-80RIB","Acceleron (fungicide only)","Corn_DKC44-80RIB_Acceleron (fungicide only)",334,2.5,"No"]
[null,null,null,null,null,null,null,null,null,null,null,null,null,177,null,null,"Corn","DKC45-65RIB","Acceleron® fungicide + Lumivia™ insecticide","Corn_DKC45-65RIB_Acceleron® fungicide + Lumivia™ insecticide",350,2.5,"No"]
[null,null,null,null,null,null,null,null,null,null,null,null,null,178,null,null,"Corn","DKC45-65RIB","Acceleron® fungicide + Poncho® insecticide","Corn_DKC45-65RIB_Acceleron® fungicide + Poncho® insecticide",340,2.5,"No"]
[null,null,null,null,null,null,null,null,null,null,null,null,null,179,null,null,"Corn","DKC45-65RIB","Acceleron (fungicide only)","Corn_DKC45-65RIB_Acceleron (fungicide only)",335,2.5,"No"]
[null,null,null,null,null,null,null,null,null,null,null,null,null,180,null,null,"Corn","DKC46-17RIB","Acceleron® fungicide + Lumivia™ insecticide","Corn_DKC46-17RIB_Acceleron® fungicide + Lumivia™ insecticide",338,2.5,"No"]
[null,null,null,null,null,null,null,null,null,null,null,null,null,181,null,null,"Corn","DKC46-17RIB","Acceleron® fungicide + Poncho® insecticide","Corn_DKC46-17RIB_Acceleron® fungicide + Poncho® insecticide",328,2.5,"No"]
[null,null,null,null,null,null,null,null,null,null,null,null,null,182,null,null,"Corn","DKC46-17RIB","Acceleron (fungicide only)","Corn_DKC46-17RIB_Acceleron (fungicide only)",323,2.5,"No"]
[null,null,null,null,null,null,null,null,null,null,null,null,null,183,null,null,"Corn","DKC46-40RIB","Acceleron® fungicide + Lumivia™ insecticide","Corn_DKC46-40RIB_Acceleron® fungicide + Lumivia™ insecticide",359,2.5,"No"]
[null,null,null,null,null,null,null,null,null,null,null,null,null,184,null,null,"Corn","DKC47-55RIB","Acceleron® fungicide + Lumivia™ insecticide","Corn_DKC47-55RIB_Acceleron® fungicide + Lumivia™ insecticide",355,2.5,"No"]
[null,null,null,null,null,null,null,null,null,null,null,null,null,185,null,null,"Corn","DKC47-55RIB","Acceleron (fungicide only)","Corn_DKC47-55RIB_Acceleron (fungicide only)",340,2.5,"No"]
[null,null,null,null,null,null,null,null,null,null,null,null,null,186,null,null,"Corn","DKC48-28RIB","Acceleron® fungicide + Lumivia™ insecticide","Corn_DKC48-28RIB_Acceleron® fungicide + Lumivia™ insecticide",350,2.5,"No"]
[null,null,null,null,null,null,null,null,null,null,null,null,null,187,null,null,"Corn","DKC48-28RIB","Acceleron (fungicide only)","Corn_DKC48-28RIB_Acceleron (fungicide only)",335,2.5,"No"]
[null,null,null,null,null,null,null,null,null,null,null,null,null,188,null,null,"Corn","DKC48-56RIB","Acceleron® fungicide + Lumivia™ insecticide","Corn_DKC48-56RIB_Acceleron® fungicide + Lumivia™ insecticide",358,2.5,"No"]
[null,null,null,null,null,null,null,null,null,null,null,null,null,189,null,null,"Corn","DKC48-56RIB","Acceleron® fungicide + Poncho® insecticide","Corn_DKC48-56RIB_Acceleron® fungicide + Poncho® insecticide",348,2.5,"No"]
[null,null,null,null,null,null,null,null,null,null,null,null,null,190,null,null,"Corn","DKC48-56RIB","Acceleron (fungicide only)","Corn_DKC48-56RIB_Acceleron (fungicide only)",343,2.5,"No"]
[null,null,null,null,null,null,null,null,null,null,null,null,null,191,null,null,"Corn","DKC48-70RIB","Acceleron® fungicide + Lumivia™ insecticide","Corn_DKC48-70RIB_Acceleron® fungicide + Lumivia™ insecticide",362,2.5,"No"]
[null,null,null,null,null,null,null,null,null,null,null,null,null,192,null,null,"Corn","DKC49-09RIB","Acceleron® fungicide + Lumivia™ insecticide","Corn_DKC49-09RIB_Acceleron® fungicide + Lumivia™ insecticide",359,2.5,"No"]
[null,null,null,null,null,null,null,null,null,null,null,null,null,193,null,null,"Corn","DKC49-09RIB","Acceleron (fungicide only)","Corn_DKC49-09RIB_Acceleron (fungicide only)",344,2.5,"No"]
[null,null,null,null,null,null,null,null,null,null,null,null,null,194,null,null,"Corn","DKC49-44RIB","Acceleron® fungicide + Lumivia™ insecticide","Corn_DKC49-44RIB_Acceleron® fungicide + Lumivia™ insecticide",362,2.5,"No"]
[null,null,null,null,null,null,null,null,null,null,null,null,null,195,null,null,"Corn","DKC49-44RIB","Acceleron (fungicide only)","Corn_DKC49-44RIB_Acceleron (fungicide only)",347,2.5,"No"]
[null,null,null,null,null,null,null,null,null,null,null,null,null,196,null,null,"Corn","DKC49-81","Acceleron® fungicide + Lumivia™ insecticide","Corn_DKC49-81_Acceleron® fungicide + Lumivia™ insecticide",267,2.5,"No"]
[null,null,null,null,null,null,null,null,null,null,null,null,null,197,null,null,"Corn","DKC50-26RIB","Acceleron® fungicide + Lumivia™ insecticide","Corn_DKC50-26RIB_Acceleron® fungicide + Lumivia™ insecticide",366,2.5,"No"]
[null,null,null,null,null,null,null,null,null,null,null,null,null,198,null,null,"Corn","DKC50-78RIB","Acceleron® fungicide + Lumivia™ insecticide","Corn_DKC50-78RIB_Acceleron® fungicide + Lumivia™ insecticide",347,2.5,"No"]
[null,null,null,null,null,null,null,null,null,null,null,null,null,199,null,null,"Corn","DKC50-78RIB","Acceleron® fungicide + Poncho® insecticide",{"$f":"+Q361 & \"_\" & R361 & \"_\" & S361","v":"Corn_DKC50-78RIB_Acceleron® fungicide + Poncho® insecticide"},337,2.5,"No"]
[null,null,null,null,null,null,null,null,null,null,null,null,null,200,null,null,"Corn","DKC50-78RIB","Acceleron (fungicide only)","Corn_DKC50-78RIB_Acceleron (fungicide only)",332,2.5,"No"]
[null,null,null,null,null,null,null,null,null,null,null,null,null,201,null,null,"Corn","DKC50-78RIB","Acceleron (fungicides & insecticide-Poncho 1250)","Corn_DKC50-78RIB_Acceleron (fungicides & insecticide-Poncho 1250)",352,2.5,"No"]
[null,null,null,null,null,null,null,null,null,null,null,null,null,202,null,null,"Corn","DKC51-98RIB","Acceleron® fungicide + Lumivia™ insecticide","Corn_DKC51-98RIB_Acceleron® fungicide + Lumivia™ insecticide",364,2.5,"No"]
[null,null,null,null,null,null,null,null,null,null,null,null,null,203,null,null,"Corn","DKC51-99RIB","Acceleron® fungicide + Lumivia™ insecticide","Corn_DKC51-99RIB_Acceleron® fungicide + Lumivia™ insecticide",364,2.5,"No"]
[null,null,null,null,null,null,null,null,null,null,null,null,null,204,null,null,"Corn","DKC52-34RIB","Acceleron® fungicide + Lumivia™ insecticide","Corn_DKC52-34RIB_Acceleron® fungicide + Lumivia™ insecticide",361,2.5,"No"]
[null,null,null,null,null,null,null,null,null,null,null,null,null,205,null,null,"Corn","DKC52-84RIB","Acceleron® fungicide + Lumivia™ insecticide","Corn_DKC52-84RIB_Acceleron® fungicide + Lumivia™ insecticide",354,2.5,"No"]
[null,null,null,null,null,null,null,null,null,null,null,null,null,206,null,null,"Corn","DKC52-84RIB","Acceleron® fungicide + Poncho® insecticide","Corn_DKC52-84RIB_Acceleron® fungicide + Poncho® insecticide",344,2.5,"No"]
[null,null,null,null,null,null,null,null,null,null,null,null,null,207,null,null,"Corn","DKC52-84RIB","Acceleron (fungicide only)","Corn_DKC52-84RIB_Acceleron (fungicide only)",339,2.5,"No"]
[null,null,null,null,null,null,null,null,null,null,null,null,null,208,null,null,"Corn","DKC53-56RIB","Acceleron® fungicide + Lumivia™ insecticide","Corn_DKC53-56RIB_Acceleron® fungicide + Lumivia™ insecticide",351,2.5,"No"]
[null,null,null,null,null,null,null,null,null,null,null,null,null,209,null,null,"Corn","DKC53-56RIB","Acceleron® fungicide + Poncho® insecticide","Corn_DKC53-56RIB_Acceleron® fungicide + Poncho® insecticide",341,2.5,"No"]
[null,null,null,null,null,null,null,null,null,null,null,null,null,210,null,null,"Corn","DKC53-56RIB","Acceleron (fungicide only)","Corn_DKC53-56RIB_Acceleron (fungicide only)",336,2.5,"No"]
[null,null,null,null,null,null,null,null,null,null,null,null,null,211,null,null,"Corn","DKC53-87RIB","Acceleron® fungicide + Lumivia™ insecticide","Corn_DKC53-87RIB_Acceleron® fungicide + Lumivia™ insecticide",363,2.5,"No"]
[null,null,null,null,null,null,null,null,null,null,null,null,null,212,null,null,"Corn","DKC54-45RIB","Acceleron® fungicide + Lumivia™ insecticide","Corn_DKC54-45RIB_Acceleron® fungicide + Lumivia™ insecticide",363,2.5,"No"]
[null,null,null,null,null,null,null,null,null,null,null,null,null,213,null,null,"Corn","DKC54-77RIB","Acceleron® fungicide + Lumivia™ insecticide","Corn_DKC54-77RIB_Acceleron® fungicide + Lumivia™ insecticide",360,2.5,"No"]
[null,null,null,null,null,null,null,null,null,null,null,null,null,214,null,null,"Corn","DKC55-05RIB","Acceleron® fungicide + Lumivia™ insecticide","Corn_DKC55-05RIB_Acceleron® fungicide + Lumivia™ insecticide",358,2.5,"No"]
[null,null,null,null,null,null,null,null,null,null,null,null,null,215,null,null,"Corn","DKC55-05RIB","Acceleron® fungicide + Poncho® insecticide","Corn_DKC55-05RIB_Acceleron® fungicide + Poncho® insecticide",348,2.5,"No"]
[null,null,null,null,null,null,null,null,null,null,null,null,null,216,null,null,"Corn","DKC55-05RIB","Acceleron (fungicide only)","Corn_DKC55-05RIB_Acceleron (fungicide only)",343,2.5,"No"]
[null,null,null,null,null,null,null,null,null,null,null,null,null,217,null,null,"Corn","DKC55-05RIB","Acceleron (fungicides & insecticide-Poncho 1250)","Corn_DKC55-05RIB_Acceleron (fungicides & insecticide-Poncho 1250)",363,2.5,"No"]
[null,null,null,null,null,null,null,null,null,null,null,null,null,218,null,null,"Corn","DKC56-15RIB","Acceleron® fungicide + Lumivia™ insecticide","Corn_DKC56-15RIB_Acceleron® fungicide + Lumivia™ insecticide",365,2.5,"No"]
[null,null,null,null,null,null,null,null,null,null,null,null,null,219,null,null,"Corn","DKC56-65RIB","Acceleron® fungicide + Lumivia™ insecticide","Corn_DKC56-65RIB_Acceleron® fungicide + Lumivia™ insecticide",365,2.5,"No"]
[null,null,null,null,null,null,null,null,null,null,null,null,null,220,null,null,"Corn","DKC57-16RIB","Acceleron® fungicide + Lumivia™ insecticide","Corn_DKC57-16RIB_Acceleron® fungicide + Lumivia™ insecticide",365,2.5,"No"]
[null,null,null,null,null,null,null,null,null,null,null,null,null,221,null,null,"Corn","DKC58-06RIB","Acceleron® fungicide + Lumivia™ insecticide","Corn_DKC58-06RIB_Acceleron® fungicide + Lumivia™ insecticide",358,2.5,"No"]
[null,null,null,null,null,null,null,null,null,null,null,null,null,222,null,null,"Corn","DKC58-06RIB","Acceleron® fungicide + Poncho® insecticide","Corn_DKC58-06RIB_Acceleron® fungicide + Poncho® insecticide",348,2.5,"No"]
[null,null,null,null,null,null,null,null,null,null,null,null,null,223,null,null,"Corn","DKC58-06RIB","Acceleron (fungicide only)","Corn_DKC58-06RIB_Acceleron (fungicide only)",343,2.5,"No"]
[null,null,null,null,null,null,null,null,null,null,null,null,null,224,null,null,"Corn","DKC58-06RIB","Acceleron (fungicides & insecticide-Poncho 1250)","Corn_DKC58-06RIB_Acceleron (fungicides & insecticide-Poncho 1250)",363,2.5,"No"]
[null,null,null,null,null,null,null,null,null,null,null,null,null,225,null,null,"Corn","DKC59-50RIB","Acceleron® fungicide + Lumivia™ insecticide","Corn_DKC59-50RIB_Acceleron® fungicide + Lumivia™ insecticide",371,2.5,"No"]
[null,null,null,null,null,null,null,null,null,null,null,null,null,226,null,null,"Corn","DKC60-87RIB","Acceleron® fungicide + Lumivia™ insecticide","Corn_DKC60-87RIB_Acceleron® fungicide + Lumivia™ insecticide",360,2.5,"No"]
[null,null,null,null,null,null,null,null,null,null,null,null,null,227,null,null,"Corn","DKC63-60RIB","Acceleron® fungicide + Lumivia™ insecticide","Corn_DKC63-60RIB_Acceleron® fungicide + Lumivia™ insecticide",364,2.5,"No"]
[null,null,null,null,null,null,null,null,null,null,null,null,null,228,null,null,"Corn","DKC63-60RIB","Acceleron® fungicide + Poncho® insecticide","Corn_DKC63-60RIB_Acceleron® fungicide + Poncho® insecticide",354,2.5,"No"]
[null,null,null,null,null,null,null,null,null,null,null,null,null,null,null,null,null,"active and to be launched with initial launch of this Calculator."]
[null,null,null,null,null,null,null,null,null,null,null,null,null,null,null,null,null,"launch in Nov 1, 2020 so retail and activate at that time."]
[null,null,null,null,null,null,null,null,null,null,null,null,null,null,null,null,null,"are currently NOT activated and will probably not for 2021, but retain just in case decision changes"]

{"sheet":"RebateSummary","index":1,"n_rows":57,"n_cols":17,"rows_kept":57,"cut":false,"hidden":true,"merged":[[2,11,2,13],[4,3,4,6],[4,14,4,15],[12,0,39,0],[6,13,7,14],[6,15,7,16],[6,11,7,12],[6,7,7,8],[6,9,7,10],[7,3,8,4],[56,1,56,15],[50,15,50,16],[51,15,51,16],[53,15,53,16],[54,15,54,16],[55,15,55,16],[48,9,48,10],[48,11,48,12],[48,13,48,14],[47,4,47,5],[22,7,22,8],[34,7,34,8],[46,7,46,8],[48,7,48,8]]}
[]
[null,null,null,null,"2021 BayerValue Rebate Summary"]
[null,null,null,null,"Rebate Summary By Program and Brand ",null,null,null,null,null,{"$f":"+Purchases!B157","v":"Total Rebate"},{"$f":"+Q49+Purchases!K122","v":0}]
[]
[null,"Name of Grower:",null,{"$f":"+Purchases!C6","v":" "},null,null,null,null,null,null,null,null,null,null,{"$f":"+Purchases!M6","v":"2020-08-18"}]
[]
[null,"Product Brand","UOM","Acres","Units","SRP Value","Product Brand","Segment Savings",null,{"$f":"+Purchases!J24","v":"Season Starter Bonus"},null,"BUTEO start Bonus",null,"Incredible Bayer Offer",null,"Total Rewards"]
[null,null,null,"Summarized to Smallest Saleable Package"]
[null,null,null,null,null,null,null,"%","Rebate","%","Rebate","%","Rebate","$/Ac","Rebate","%","Rebate"]
[null,"Admire",{"$f":"+Pkge!Y5","v":"3.785 L"},{"$f":"+Pkge!L5","v":0},{"$f":"+Pkge!N5","v":0},{"$f":"+Pkge!M5","v":0},"Seed Treatment"]
[null,"Buctril M",{"$f":"+Pkge!Y8","v":"8 L"},{"$f":"+Pkge!L10","v":0},{"$f":"+Pkge!N10","v":0},{"$f":"+Pkge!M10","v":0},{"$f":"+B10","v":"Admire"},{"$f":"IF($F10>0, IF(Purchases!$N$13 >0, Purchases!$N$13, 0),0)","v":0},{"$f":"IF(ISNUMBER($F10), (H11/100)*$F10, \" \")","v":0},{"$f":"IF($F10>0,  IF(Purchases!M$13 >=300,   IF(Purchases!$N$24 >0,Purchases!$N$24, 0),0), 0 )","v":0},{"$f":"IF(ISNUMBER($F10), (J11/100)*$F10, \" \")","v":0},{"$f":"IF($F10>0,  IF(Purchases!M$13 >=300,   IF(Purchases!$N$26 >0,Purchases!$N$26, 0),0), 0 )","v":0},{"$f":"IF(ISNUMBER($F10), (L11/100)*$F10, \" \")","v":0},null,null,{"$f":"+H11+J11+L11","v":0},{"$f":"+I11+K11+M11","v":0}]
[null,"Delaro",{"$f":"+Pkge!Y12","v":"7.1 L"},{"$f":"+Pkge!L13","v":0},{"$f":"+Pkge!N13","v":0},{"$f":"+Pkge!M13","v":0},"Emesto Silver",{"$f":"IF($F13>0, IF(Purchases!$N$13 >0, Purchases!$N$13, 0),0)","v":0},{"$f":"IF(ISNUMBER($F13), (H12/100)*$F13, \" \")","v":0},{"$f":"IF($F13>0,  IF(Purchases!M$13 >= 300,   IF(Purchases!$N$24 >0, Purchases!$N$24, 0),0), 0 )","v":0},{"$f":"IF(ISNUMBER($F13), (J12/100)*$F13, \" \")","v":0},{"$f":"IF($F13>0,  IF(Purchases!M$13 >=300,   IF(Purchases!$N$26 >0, Purchases!$N$26, 0),0), 0 )","v":0},{"$f":"IF(ISNUMBER($F13), (L12/100)*$F13, \" \")","v":0},null,null,{"$f":"+H12+J12+L12","v":0},{"$f":"+I12+K12+M12","v":0}]
["<<<<--- Scroll Down for more products","Emesto Silver",{"$f":"+Pkge!Y14","v":"3.85 L"},{"$f":"+Pkge!L14","v":0},{"$f":"+Pkge!N14","v":0},{"$f":"+Pkge!M14","v":0},{"$f":"+B14","v":"EverGol Energy "},{"$f":"IF($F14>0, IF(Purchases!$N$13 >0, Purchases!$N$13, 0),0)","v":0},{"$f":"IF(ISNUMBER( $F14), (H13/100)*$F14, \"\")","v":0},{"$f":"IF($F14>0,IF(Purchases!M$13>=300,IF(Purchases!$N$24>0,Purchases!$N$24,0),0),0)","v":0},{"$f":"IF(ISNUMBER( $F14), (J13/100)*$F14, \"\")","v":0},{"$f":"IF($F14>0,  IF(Purchases!M$13 >=300,   IF(Purchases!$N$26 >0,Purchases!$N$26, 0),0), 0 )","v":0},{"$f":"IF(ISNUMBER( $F14), (L13/100)*$F14, \"\")","v":0},null,null,{"$f":"+H13+J13+L13","v":0},{"$f":"+I13+K13+M13","v":0}]
[null,"EverGol Energy ",{"$f":"+Pkge!Y15","v":"33.75 L"},{"$f":"+Pkge!L15","v":0},{"$f":"+Pkge!N15","v":0},{"$f":"+Pkge!M15","v":0},{"$f":"+B20","v":"Movento"},{"$f":"IF($F20>0, IF(Purchases!$N$13 >0,Purchases!$N$13, 0),0)","v":0},{"$f":"IF(ISNUMBER( $F20), (H14/100)*$F20, \"\")","v":0},{"$f":"IF($F20>0,  IF(Purchases!M$13 >=300,   IF(Purchases!$N$24 >0,Purchases!$N$24, 0),0), 0 )","v":0},{"$f":"IF(ISNUMBER( $F20), (J14/100)*$F20, \"\")","v":0},{"$f":"IF($F20>0,  IF(Purchases!M$13 >=300,   IF(Purchases!$N$26 >0,Purchases!$N$26, 0),0), 0 )","v":0},{"$f":"IF(ISNUMBER( $F20), (L14/100)*$F20, \"\")","v":0},null,null,0,0]
[null,"Folicur EW",{"$f":"+Pkge!Y16","v":"8.1 L"},{"$f":"+Pkge!L16","v":0},{"$f":"+Pkge!N16","v":0},{"$f":"+Pkge!M16","v":0},{"$f":"+B28","v":"Raxil Pro "},{"$f":"IF($F28>0, IF(Purchases!$N$13 >0,Purchases!$N$13, 0),0)","v":0},{"$f":"IF(ISNUMBER( $F28), (H15/100)*$F28, \" \")","v":0},{"$f":"IF($F28>0,  IF(Purchases!M$13 >= 300,   IF(Purchases!$N$24 >0,Purchases!$N$24, 0),0), 0 )","v":0},{"$f":"IF(ISNUMBER( $F28), (J15/100)*$F28, \" \")","v":0},{"$f":"IF($F28>0,  IF(Purchases!M$13 >=300,   IF(Purchases!$N$26 >0, Purchases!$N$26, 0),0), 0 )","v":0},{"$f":"IF(ISNUMBER( $F28), (L15/100)*$F28, \" \")","v":0},null,null,0,0]
[null,"Infinity",{"$f":"+Pkge!Y17","v":"6.7 L"},{"$f":"+Pkge!L19","v":0},{"$f":"+Pkge!N19","v":0},{"$f":"+Pkge!M19","v":0},{"$f":"+B29","v":"Raxil Pro Shield "},{"$f":"IF($F29>0, IF(Purchases!$N$13 >0,Purchases!$N$13, 0),0)","v":0},{"$f":"IF(ISNUMBER( $F29), (H16/100)*$F29, \" \")","v":0},{"$f":"IF($F29>0,  IF(Purchases!M$13 >=300,   IF(Purchases!$N$24 >0,Purchases!$N$24, 0),0), 0 )","v":0},{"$f":"IF(ISNUMBER( $F29), (J16/100)*$F29, \" \")","v":0},{"$f":"IF($F29>0,  IF(Purchases!M$13 >=300,   IF(Purchases!$N$26 >0,Purchases!$N$26, 0),0), 0 )","v":0},{"$f":"IF(ISNUMBER( $F29), (L16/100)*$F29, \" \")","v":0},null,null,0,0]
[null,"Infinity FX ",{"$f":"+Pkge!Y21","v":"8.1 L"},{"$f":"+Pkge!L23","v":0},{"$f":"+Pkge!N23","v":0},{"$f":"+Pkge!M23","v":0},"Stress Shield + Raxil Pro",{"$f":"IF(Pkge!Q$111 >0, IF(Purchases!$N$13 >0, Purchases!$N$13, 0),0)","v":0},{"$f":" IF( $D36 <>0, IF(ISNUMBER( $F36), (H17/100)*((Pkge!$Q111/$D36) * $F36), \"\"), 0)","v":0},{"$f":"IF(Pkge!Q$111>0,IF(Purchases!M$13 >=300, IF(Purchases!$N$24>0,Purchases!$N$24,0),0),0)","v":0},{"$f":"IF( $D36 <>0, IF(ISNUMBER( $F36), (J17/100)*((Pkge!$Q111/$D36) * $F36), \"\"), 0)","v":0},{"$f":"IF(Pkge!Q$111>0,IF(Purchases!M$13 >=300, IF(Purchases!$N$26>0,Purchases!$N$26,0),0),0)","v":0},{"$f":"IF( $D36 <>0, IF(ISNUMBER( $F36), (L17/100)*((Pkge!$Q111/$D36) * $F36), \"\"), 0)","v":0},null,null,0,0]
[null,"Luna Tranquility",{"$f":"+Pkge!Y24","v":"2 L"},{"$f":"+Pkge!L24","v":0},{"$f":"+Pkge!N24","v":0},{"$f":"+Pkge!M24","v":0},"Stress Shield + Trilex EverGol",{"$f":"IF(Pkge!S$112 >0, IF(Purchases!$N$13 >0, Purchases!$N$13, 0),0)","v":0},{"$f":"IF( $D36 <>0, IF(ISNUMBER( $F36), (H18/100)*((Pkge!$S112/$D36) * $F36), \"\"), 0)","v":0},{"$f":"IF(Pkge!S$112>0, IF(Purchases!M$13 >=300,  IF(Purchases!$N$24 >0, Purchases!$N$24, 0),0),0)","v":0},{"$f":" IF( $D36 <>0, IF(ISNUMBER( $F36), (J18/100)*((Pkge!$S112/$D36) * $F36), \"\"), 0)","v":0},{"$f":"IF(Pkge!S$112>0, IF(Purchases!M$13 >=300,  IF(Purchases!$N$26 >0,Purchases!$N$26, 0),0),0)","v":0},{"$f":" IF( $D36 <>0, IF(ISNUMBER( $F36), (L18/100)*((Pkge!$S112/$D36) * $F36), \"\"), 0)","v":0},null,null,0,0]
[null,"Luxxur  ",{"$f":"+Pkge!Y26","v":" (8L + 243g)"},{"$f":"+Pkge!L26","v":0},{"$f":"+Pkge!N26","v":0},{"$f":"+Pkge!M26","v":0},{"$f":"+B39","v":"Trilex EverGol"},{"$f":"IF($F39>0, IF(Purchases!$N$13 >0, Purchases!$N$13, 0),0)","v":0},{"$f":"IF(ISNUMBER( $F39), (H19/100)*$F39, \" \")","v":0},{"$f":"IF($F39>0,  IF(Purchases!M$13 >=300,   IF(Purchases!$N$24 >0, Purchases!$N$24, 0),0), 0 )","v":0},{"$f":"IF(ISNUMBER( $F39), (J19/100)*$F39, \" \")","v":0},{"$f":"IF($F39>0,  IF(Purchases!M$13 >=300,   IF(Purchases!$N$26 >0,Purchases!$N$26, 0),0), 0 )","v":0},{"$f":"IF(ISNUMBER( $F39), (L19/100)*$F39, \" \")","v":0},null,null,0,0]
[null,"Movento",{"$f":"+Pkge!Y28","v":"2 L"},{"$f":"+Pkge!L28","v":0},{"$f":"+Pkge!N28","v":0},{"$f":"+Pkge!M28","v":0},{"$f":"+B40","v":"Trilex EverGol Shield"},{"$f":"IF($F40>0, IF(Purchases!$N$13 >0, Purchases!$N$13, 0),0)","v":0},{"$f":"IF(ISNUMBER($F40), (H20/100)*$F40, \" \")","v":0},{"$f":"IF($F40>0,  IF(Purchases!M$13 >=300,   IF(Purchases!$N$24 >0, Purchases!$N$24, 0),0), 0 )","v":0},{"$f":"IF(ISNUMBER($F40), (J20/100)*$F40, \" \")","v":0},{"$f":"IF($F40>0,  IF(Purchases!M$13 >=300,   IF(Purchases!$N$26 >0,Purchases!$N$26, 0),0), 0 )","v":0},{"$f":"IF(ISNUMBER($F40), (L20/100)*$F40, \" \")","v":0},null,null,0,0]
[null,"Pardner",{"$f":"+Pkge!Y32","v":"8 L"},{"$f":"+Pkge!L33","v":0},{"$f":"+Pkge!N33","v":0},{"$f":"+Pkge!M33","v":0},{"$f":"+B35","v":"Sivanto Prime"},{"$f":"IF($F35>0, IF(Purchases!$N$13 >0, Purchases!$N$13, 0),0)","v":0},{"$f":"IF(ISNUMBER($F35), (H21/100)*$F35, \" \")","v":0},{"$f":"IF($F35>0,  IF(Purchases!M$13 >=300,   IF(Purchases!$N$24 >0,Purchases!$N$24, 0),0), 0 )","v":0},{"$f":"IF(ISNUMBER($F35), (J21/100)*$F35, \" \")","v":0},{"$f":"IF($F35>0,  IF(Purchases!M$13 >=300,   IF(Purchases!$N$26 >0,Purchases!$N$26, 0),0), 0 )","v":0},{"$f":"IF(ISNUMBER($F35), (L21/100)*$F35, \" \")","v":0},null,null,{"$f":"+H21+J21+L21","v":0},0]
[null,"Olympus",{"$f":"+Pkge!Y30","v":"463 G"},{"$f":"+Pkge!L31","v":0},{"$f":"+Pkge!N31","v":0},{"$f":"+Pkge!M31","v":0},{"$f":"+B46","v":"Vayego"},{"$f":"IF($F46>0, IF(Purchases!$N$13 >0, Purchases!$N$13, 0),0)","v":0},{"$f":"IF(ISNUMBER($F46), (H22/100)*$F46, \" \")","v":0},{"$f":"IF($F46>0,  IF(Purchases!M$13 >=300,   IF(Purchases!$N$24 >0, Purchases!$N$24, 0),0), 0 )","v":0},{"$f":"IF(ISNUMBER($F46), (J22/100)*$F46, \" \")","v":0},{"$f":"IF($F46>0,  IF(Purchases!M$13 >=300,   IF(Purchases!$N$26 >0, Purchases!$N$26, 0),0), 0 )","v":0},{"$f":"IF(ISNUMBER($F46), (L22/100)*$F46, \" \")","v":0},null,null,0,0]
[null,"Proline  ",{"$f":"+Pkge!Y34","v":"5.1 L"},{"$f":"+Pkge!L34","v":0},{"$f":"+Pkge!N34","v":0},{"$f":"+Pkge!M34","v":0},"Seed Treatment Segment Acres",{"$f":"+Purchases!M13","v":0},null,null,"Segment Qualified?",null,{"$f":"IF(H23 >=300, \"Yes\", \"No\")","v":"No"}]
[null,"Proline  Gold","10.12 L",{"$f":"+Pkge!L35","v":0},{"$f":"+Pkge!N35","v":0},{"$f":"+Pkge!M35","v":0},"Herbicide"]
[null,"Prosaro 115",{"$f":"+Pkge!Y36","v":"6.5 L"},{"$f":"+Pkge!L37","v":0},{"$f":"+Pkge!N37","v":0},{"$f":"+Pkge!M37","v":0},{"$f":"+B16","v":"Infinity"},{"$f":"IF($F16>0, IF(Purchases!$N$14 >0,Purchases!$N$14, 0),0)","v":0},{"$f":"IF(ISNUMBER( $F16), (H25/100)*$F16, \" \")","v":0},{"$f":"IF($F16>0,  IF(Purchases!M$14 >=300,   IF(Purchases!$N$24 >0,Purchases!$N$24, 0),0), 0 )","v":0},{"$f":"IF(ISNUMBER( $F16), (J25/100)*$F16, \" \")","v":0},{"$f":"IF($F16>0,  IF(Purchases!M$14 >=300,   IF(Purchases!$N$26 >0, Purchases!$N$26, 0),0), 0 )","v":0},{"$f":"IF(ISNUMBER( $F16), (L25/100)*$F16, \" \")","v":0},{"$f":"IF( (D$11+D$16+D$17+D$19+D$22+D$27+D$37+D$42) + ((D$41+D$43)*2) >=1000,1,0)","v":0},{"$f":"+N25*D16","v":0},{"$f":"+H25+J25+L25","v":0},{"$f":"+I25+K25+M25+O25","v":0}]
[null,"Prosaro XTR ",{"$f":"+Pkge!Y38","v":"6.5 L"},{"$f":"+Pkge!L39","v":0},{"$f":"+Pkge!N39","v":0},{"$f":"+Pkge!M39","v":0},{"$f":"+B17","v":"Infinity FX "},{"$f":"IF($F17>0, IF(Purchases!$N$14 >0, Purchases!$N$14, 0),0)","v":0},{"$f":"IF(ISNUMBER( $F17), (H26/100)*$F17, \" \")","v":0},{"$f":"IF($F17>0,  IF(Purchases!M$14 >= 300,   IF(Purchases!$N$24 >0,Purchases!$N$24, 0),0), 0 )","v":0},{"$f":"IF(ISNUMBER( $F17), (J26/100)*$F17, \" \")","v":0},{"$f":"IF($F17>0,  IF(Purchases!M$14 >=300,   IF(Purchases!$N$26 >0, Purchases!$N$26, 0),0), 0 )","v":0},0,{"$f":"IF( (D$11+D$16+D$17+D$19+D$22+D$27+D$37+D$42) + ((D$41+D$43)*2) >=1000,1,0)","v":0},{"$f":"+N26*D17","v":0},{"$f":"+H26+J26+L26","v":0},{"$f":"+I26+K26+M26+O26","v":0}]
[null,"Puma Advance ",{"$f":"+Pkge!Y40","v":"8.25 L"},{"$f":"+Pkge!L42","v":0},{"$f":"+Pkge!N42","v":0},{"$f":"+Pkge!M42","v":0},{"$f":"+B19","v":"Luxxur  "},{"$f":"IF($F19>0, IF(Purchases!$N$14 >0, Purchases!$N$14, 0),0)","v":0},{"$f":"IF(ISNUMBER( $F19), (H27/100)*$F19, \" \")","v":0},{"$f":"IF($F19>0,  IF(Purchases!M$14 >= 300,   IF(Purchases!$N$24 >0,Purchases!$N$24, 0),0), 0 )","v":0},{"$f":"IF(ISNUMBER( $F19), (J27/100)*$F19, \" \")","v":0},{"$f":"IF($F19>0,  IF(Purchases!M$14 >=300,   IF(Purchases!$N$26 >0,Purchases!$N$26, 0),0), 0 )","v":0},{"$f":"IF(ISNUMBER( $F19), (L27/100)*$F19, \" \")","v":0},{"$f":"IF( (D$11+D$16+D$17+D$19+D$22+D$27+D$37+D$42) + ((D$41+D$43)*2) >=1000,1,0)","v":0},{"$f":"+N27*D19","v":0},0,0]
[null,"Raxil Pro ",{"$f":"+Pkge!Y43","v":"10 L"},{"$f":"+Pkge!L46","v":0},{"$f":"+Pkge!N46","v":0},{"$f":"+Pkge!M46","v":0},{"$f":"+B22","v":"Olympus"},{"$f":"IF($F22>0, IF(Purchases!$N$14 >0, Purchases!$N$14, 0),0)","v":0},{"$f":"IF(ISNUMBER( $F22), (H28/100)*$F22, \" \")","v":0},{"$f":"IF($F22>0,  IF(Purchases!M$14 >=300,   IF(Purchases!$N$24 >0, Purchases!$N$24, 0),0), 0 )","v":0},{"$f":"IF(ISNUMBER( $F22), (J28/100)*$F22, \" \")","v":0},{"$f":"IF($F22>0,  IF(Purchases!M$14 >=300,   IF(Purchases!$N$26 >0,Purchases!$N$26, 0),0), 0 )","v":0},{"$f":"IF(ISNUMBER( $F22), (L28/100)*$F22, \" \")","v":0},null,null,0,{"$f":"+I28+K28+M28","v":0}]
[null,"Raxil Pro Shield ",{"$f":"+Pkge!Y47","v":"(10L + 1.54L)"},{"$f":"+Pkge!L47","v":0},{"$f":"+Pkge!N47","v":0},{"$f":"+Pkge!M47","v":0},{"$f":"+B21","v":"Pardner"},{"$f":"IF($F21>0, IF(Purchases!$N$14 >0, Purchases!$N$14, 0),0)","v":0},{"$f":"IF(ISNUMBER( $F21), (H29/100)*$F21, \" \")","v":0},{"$f":"IF($F21>0,  IF(Purchases!M$14 >=300,   IF(Purchases!$N$24 >0, Purchases!$N$24, 0),0), 0 )","v":0},{"$f":"IF(ISNUMBER( $F21), (J29/100)*$F21, \" \")","v":0},{"$f":"IF($F21>0,  IF(Purchases!M$14 >=300,   IF(Purchases!$N$26 >0, Purchases!$N$26, 0),0), 0 )","v":0},{"$f":"IF(ISNUMBER( $F21), (L29/100)*$F21, \" \")","v":0},null,null,0,{"$f":"+I29+K29+M29","v":0}]
[null,"Roundup Xtend",{"$f":"+Pkge!Y49","v":"10 L"},{"$f":"+Pkge!L50","v":0},{"$f":"+Pkge!N50","v":0},{"$f":"+Pkge!M50","v":0},"Roundup Xtend",{"$f":"IF($F30>0, IF(Purchases!$N$14 >0,Purchases!$N$14, 0),0)","v":0},{"$f":"IF(ISNUMBER( $F30), (H30/100)*$F30, \" \")","v":0},{"$f":"IF($F30>0,  IF(Purchases!M$14 >=300,   IF(Purchases!$N$24 >0, Purchases!$N$24, 0),0), 0 )","v":0},{"$f":"IF(ISNUMBER( $F30), (J30/100)*$F30, \" \")","v":0},{"$f":"IF($F30>0,  IF(Purchases!M$14 >=300,   IF(Purchases!$N$26 >0,Purchases!$N$26, 0),0), 0 )","v":0},{"$f":"IF(ISNUMBER( $F30), (L30/100)*$F30, \" \")","v":0},null,null,0,{"$f":"+I30+K30+M30","v":0}]
[null,"Roundup WeatherMAX",{"$f":"+Pkge!Y51","v":"10 L"},{"$f":"+Pkge!L54","v":0},{"$f":"+Pkge!N54","v":0},{"$f":"+Pkge!M54","v":0},{"$f":"+B41","v":"Tundra"},{"$f":"IF($F41>0, IF(Purchases!$N$14 >0, Purchases!$N$14, 0),0)","v":0},{"$f":"IF(ISNUMBER( $F41), (H31/100)*$F41, \" \")","v":0},{"$f":"IF($F41>0,  IF(Purchases!M$14 >= 300,   IF(Purchases!$N$24 >0, Purchases!$N$24, 0),0), 0 )","v":0},{"$f":"IF(ISNUMBER( $F41), (J31/100)*$F41, \" \")","v":0},{"$f":"IF($F41>0,  IF(Purchases!M$14 >=300,   IF(Purchases!$N$26 >0,Purchases!$N$26, 0),0), 0 )","v":0},{"$f":"IF(ISNUMBER( $F41), (L31/100)*$F41, \" \")","v":0},{"$f":"IF( (D$11+D$16+D$17+D$19+D$22+D$27+D$37+D$42) + ((D$41+D$43)*2) >=1000,2,0)","v":0},{"$f":"+N31*D41","v":0},0,{"$f":"+I31+K31+M31+O31","v":0}]
[null,"Scala",{"$f":"+Pkge!Y57","v":"2 L"},{"$f":"+Pkge!L58","v":0},{"$f":"+Pkge!N58","v":0},{"$f":"+Pkge!M58","v":0},{"$f":"+B42","v":"Varro"},{"$f":"IF($F42>0, IF(Purchases!$N$14 >0, Purchases!$N$14, 0),0)","v":0},{"$f":"IF(ISNUMBER( $F42), (H32/100)*$F42, \" \")","v":0},{"$f":"IF($F42>0,  IF(Purchases!M$14 >= 300,   IF(Purchases!$N$24 >0, Purchases!$N$24, 0),0), 0 )","v":0},{"$f":"IF(ISNUMBER( $F42), (J32/100)*$F42, \" \")","v":0},{"$f":"IF($F42>0,  IF(Purchases!M$14 >=300,   IF(Purchases!$N$26 >0, Purchases!$N$26, 0),0), 0 )","v":0},{"$f":"IF(ISNUMBER( $F42), (L32/100)*$F42, \" \")","v":0},{"$f":"IF( (D$11+D$16+D$17+D$19+D$22+D$27+D$37+D$42) + ((D$41+D$43)*2) >=1000,1,0)","v":0},{"$f":"+N32*D42","v":0},0,0]
[null,"Serenade Soil",{"$f":"+Pkge!Y56","v":"9.46 L"},{"$f":"+Pkge!L56","v":0},{"$f":"+Pkge!N56","v":0},{"$f":"+Pkge!M56","v":0},{"$f":"+B43","v":"Velocity M3"},{"$f":"IF($F43>0, IF(Purchases!$N$14 >0,Purchases!$N$14, 0),0)","v":0},{"$f":"IF(ISNUMBER( $F43), (H33/100)*$F43, \" \")","v":0},{"$f":"IF($F43>0,  IF(Purchases!M$14 >=300,   IF(Purchases!$N$24 >0, Purchases!$N$24, 0),0), 0 )","v":0},{"$f":"IF(ISNUMBER( $F43), (J33/100)*$F43, \" \")","v":0},{"$f":"IF($F43>0,  IF(Purchases!M$14 >=300,   IF(Purchases!$N$26 >0,Purchases!$N$26, 0),0), 0 )","v":0},{"$f":"IF(ISNUMBER( $F43), (L33/100)*$F43, \" \")","v":0},{"$f":"IF( (D$11+D$16+D$17+D$19+D$22+D$27+D$37+D$42) + ((D$41+D$43)*2) >=1000,2,0)","v":0},{"$f":"+N33*D43","v":0},{"$f":"+H33+J33+L33","v":0},0]
[null,"Sencor 75 DF",{"$f":"+Pkge!Y60","v":"2.5 KG"},{"$f":"+Pkge!L60","v":0},{"$f":"+Pkge!N60","v":0},{"$f":"+Pkge!M60","v":0},{"$f":"+B45","v":"XtendIMax"},{"$f":"IF($F45>0, IF(Purchases!$N$14 >0,Purchases!$N$14, 0),0)","v":0},{"$f":"IF(ISNUMBER( $F45), (H34/100)*$F45, \" \")","v":0},{"$f":"IF($F45>0,  IF(Purchases!M$14 >=300,   IF(Purchases!$N$24 >0,Purchases!$N$24, 0),0), 0 )","v":0},{"$f":"IF(ISNUMBER( $F45), (J34/100)*$F45, \" \")","v":0},{"$f":"IF($F45>0,  IF(Purchases!M$14 >=300,   IF(Purchases!$N$26 >0, Purchases!$N$26, 0),0), 0 )","v":0},{"$f":"IF(ISNUMBER( $F45), (L34/100)*$F45, \" \")","v":0},null,null,{"$f":"+H34+J34+L34","v":0},{"$f":"+I34+K34+M34+O34","v":0}]
[null,"Sivanto Prime",{"$f":"+Pkge!Y62","v":"2 L"},{"$f":"+Pkge!L62","v":0},{"$f":"+Pkge!N62","v":0},{"$f":"+Pkge!M62","v":0},"Herbicide Segment Acres",{"$f":"+Purchases!M14","v":0},null,null,"Segment Qualified?",null,{"$f":"IF(H35 >=300, \"Yes\", \"No\")","v":"No"}]
[null,"Stress Shield 600",{"$f":"+Pkge!Y61","v":"27 L"},{"$f":"+Pkge!L61","v":0},{"$f":"+Pkge!N61","v":0},{"$f":"+Pkge!M61","v":0},"Fungicide"]
[null,"Thumper",{"$f":"+Pkge!Y63","v":"8 L"},{"$f":"+Pkge!L65","v":0},{"$f":"+Pkge!N65","v":0},{"$f":"+Pkge!M65","v":0},{"$f":"+B12","v":"Delaro"},{"$f":"IF($F12>0, IF(Purchases!$N$15 >0,Purchases!$N$15, 0),0)","v":0},{"$f":"IF(ISNUMBER( $F12), (H37/100)*$F12, \" \")","v":0},{"$f":"IF($F12>0,  IF(Purchases!M$15 >=300,   IF(Purchases!$N$24 >0, Purchases!$N$24, 0),0), 0 )","v":0},{"$f":"IF(ISNUMBER( $F12), (J37/100)*$F12, \" \")","v":0},{"$f":"IF($F12>0,  IF(Purchases!M$15 >=300,   IF(Purchases!$N$26 >0, Purchases!$N$26, 0),0), 0 )","v":0},{"$f":"IF(ISNUMBER( $F12), (L37/100)*$F12, \" \")","v":0},null,null,{"$f":"+H37+J37+L37","v":0},0]
[null,"Tilmor",{"$f":"+Pkge!Y66","v":"10.12 L"},{"$f":"+Pkge!L66","v":0},{"$f":"+Pkge!N66","v":0},{"$f":"+Pkge!M66","v":0},{"$f":"+B15","v":"Folicur EW"},{"$f":"IF($F15>0, IF(Purchases!$N$15 >0, Purchases!$N$15, 0),0)","v":0},{"$f":"IF(ISNUMBER( $F15), (H38/100)*$F15, \" \")","v":0},{"$f":"IF($F15>0,  IF(Purchases!M$15 >=300,   IF(Purchases!$N$24 >0,Purchases!$N$24, 0),0), 0 )","v":0},{"$f":"IF(ISNUMBER( $F15), (J38/100)*$F15, \" \")","v":0},{"$f":"IF($F15>0,  IF(Purchases!M$15 >=300,   IF(Purchases!$N$26 >0, Purchases!$N$26, 0),0), 0 )","v":0},{"$f":"IF(ISNUMBER( $F15), (L38/100)*$F15, \" \")","v":0},null,null,0,0]
[null,"Trilex EverGol",{"$f":"+Pkge!Y67","v":"(1.5L+0.96L)"},{"$f":"+Pkge!L68","v":0},{"$f":"+Pkge!N68","v":0},{"$f":"+Pkge!M68","v":0},"Luna Tranquility",{"$f":"IF($F18>0, IF(Purchases!$N$15 >0,Purchases!$N$15, 0),0)","v":0},{"$f":"IF(ISNUMBER( $F18), (H39/100)*$F18, \" \")","v":0},{"$f":"IF($F18>0,  IF(Purchases!M$15 >=300,   IF(Purchases!$N$24 >0, Purchases!$N$24, 0),0), 0 )","v":0},{"$f":"IF(ISNUMBER( $F18), (J39/100)*$F18, \" \")","v":0},{"$f":"IF($F18>0,  IF(Purchases!M$15 >=300,   IF(Purchases!$N$26 >0, Purchases!$N$26, 0),0), 0 )","v":0},{"$f":"IF(ISNUMBER( $F18), (L39/100)*$F18, \" \")","v":0},null,null,0,0]
[null,"Trilex EverGol Shield",{"$f":"+Pkge!Y69","v":"(1.5L+0.96L+6.25L)"},{"$f":"+Pkge!L69","v":0},{"$f":"+Pkge!N69","v":0},{"$f":"+Pkge!M69","v":0},{"$f":"+B23","v":"Proline  "},{"$f":"IF($F23>0, IF(Purchases!$N$15 >0,Purchases!$N$15, 0),0)","v":0},{"$f":"IF(ISNUMBER( $F23), (H40/100)*$F23, \" \")","v":0},{"$f":"IF($F23>0,  IF(Purchases!M$15 >=300,   IF(Purchases!$N$24 >0, Purchases!$N$24, 0),0), 0 )","v":0},{"$f":"IF(ISNUMBER( $F23), (J40/100)*$F23, \" \")","v":0},{"$f":"IF($F23>0,  IF(Purchases!M$15 >=300,   IF(Purchases!$N$26 >0, Purchases!$N$26, 0),0), 0 )","v":0},{"$f":"IF(ISNUMBER( $F23), (L40/100)*$F23, \" \")","v":0},null,null,0,0]
[null,"Tundra",{"$f":"+Pkge!Y70","v":"8.1 L"},{"$f":"+Pkge!L72","v":0},{"$f":"+Pkge!N72","v":0},{"$f":"+Pkge!M72","v":0},{"$f":"+B24","v":"Proline  Gold"},{"$f":"IF($F24>0, IF(Purchases!$N$15 >0, Purchases!$N$15, 0),0)","v":0},{"$f":"IF(ISNUMBER( $F24), (H41/100)*$F24, \" \")","v":0},{"$f":"IF($F24>0,  IF(Purchases!M$15 >=300,   IF(Purchases!$N$24 >0,Purchases!$N$24, 0),0), 0 )","v":0},{"$f":"IF(ISNUMBER( $F24), (J41/100)*$F24, \" \")","v":0},{"$f":"IF($F24>0,  IF(Purchases!M$15 >=300,   IF(Purchases!$N$26 >0, Purchases!$N$26, 0),0), 0 )","v":0},{"$f":"IF(ISNUMBER( $F24), (L41/100)*$F24, \" \")","v":0},null,null,0,0]
[null,"Varro",{"$f":"+Pkge!Y73","v":"8 L"},{"$f":"+Pkge!L74","v":0},{"$f":"+Pkge!N74","v":0},{"$f":"+Pkge!M74","v":0},{"$f":"+B26","v":"Prosaro XTR "},{"$f":"IF($F26>0, IF(Purchases!$N$15 >0, Purchases!$N$15, 0),0)","v":0},{"$f":"IF(ISNUMBER( $F26), (H42/100)*$F26, \" \")","v":0},{"$f":"IF($F26>0,  IF(Purchases!M$15 >=300,   IF(Purchases!$N$24 >0,Purchases!$N$24, 0),0), 0 )","v":0},{"$f":"IF(ISNUMBER( $F26), (J42/100)*$F26, \" \")","v":0},{"$f":"IF($F26>0,  IF(Purchases!M$15 >=300,   IF(Purchases!$N$26 >0, Purchases!$N$26, 0),0), 0 )","v":0},{"$f":"IF(ISNUMBER( $F26), (L42/100)*$F26, \" \")","v":0},null,null,{"$f":"+H42+J42+L42","v":0},{"$f":"+I42+K42+M42","v":0}]
[null,"Velocity M3",{"$f":"+Pkge!Y76","v":"8.1 L"},{"$f":"+Pkge!L77","v":0},{"$f":"+Pkge!N77","v":0},{"$f":"+Pkge!M77","v":0},"Scala",{"$f":"IF($F32>0, IF(Purchases!$N$15 >0,Purchases!$N$15, 0),0)","v":0},{"$f":"IF(ISNUMBER( $F32), (H43/100)*$F32, \" \")","v":0},{"$f":"IF($F32>0,  IF(Purchases!M$15 >=300,   IF(Purchases!$N$24 >0,Purchases!$N$24, 0),0), 0 )","v":0},{"$f":"IF(ISNUMBER( $F32), (J43/100)*$F32, \" \")","v":0},{"$f":"IF($F32>0,  IF(Purchases!M$15 >=300,   IF(Purchases!$N$26 >0, Purchases!$N$26, 0),0), 0 )","v":0},{"$f":"IF(ISNUMBER( $F32), (L43/100)*$F32, \" \")","v":0},null,null,0,0]
[null,"Velum Prime",{"$f":"+Pkge!Y75","v":"4.04 L"},{"$f":"+Pkge!L75","v":0},{"$f":"+Pkge!N75","v":0},{"$f":"+Pkge!M75","v":0},{"$f":"+B33","v":"Serenade Soil"},{"$f":"IF($F33>0, IF(Purchases!$N$15 >0, Purchases!$N$15, 0),0)","v":0},{"$f":"IF(ISNUMBER( $F33), (H44/100)*$F33, \" \")","v":0},{"$f":"IF($F33>0,  IF(Purchases!M$15 >= 300,   IF(Purchases!$N$24 >0, Purchases!$N$24, 0),0), 0 )","v":0},{"$f":"IF(ISNUMBER( $F33), (J44/100)*$F33, \" \")","v":0},{"$f":"IF($F33>0,  IF(Purchases!M$15 >=300,   IF(Purchases!$N$26 >0,Purchases!$N$26, 0),0), 0 )","v":0},{"$f":"IF(ISNUMBER( $F33), (L44/100)*$F33, \" \")","v":0},null,null,{"$f":"+H44+J44+L44","v":0},{"$f":"+I44+K44+M44","v":0}]
[null,"XtendIMax",{"$f":"+Pkge!Y78","v":"10 L"},{"$f":"+Pkge!L79","v":0},{"$f":"+Pkge!N79","v":0},{"$f":"+Pkge!M79","v":0},{"$f":"+B38","v":"Tilmor"},{"$f":"IF($F38>0, IF(Purchases!$N$15 >0, Purchases!$N$15, 0),0)","v":0},{"$f":"IF(ISNUMBER( $F38), (H45/100)*$F38, \" \")","v":0},{"$f":"IF($F38>0,  IF(Purchases!M$15 >=300,   IF(Purchases!$N$24 >0,Purchases!$N$24, 0),0), 0 )","v":0},{"$f":"IF(ISNUMBER( $F38), (J45/100)*$F38, \" \")","v":0},{"$f":"IF($F38>0,  IF(Purchases!M$15 >=300,   IF(Purchases!$N$26 >0,Purchases!$N$26, 0),0), 0 )","v":0},{"$f":"IF(ISNUMBER( $F38), (L45/100)*$F38, \" \")","v":0},null,null,{"$f":"+H45+J45+L45","v":0},{"$f":"+I45+K45+M45","v":0}]
[null,"Vayego",{"$f":"+Pkge!Y80","v":"3 L"},{"$f":"+Pkge!L80","v":0},{"$f":"+Pkge!N80","v":0},{"$f":"+Pkge!M80","v":0},"Velum Prime",{"$f":"IF($F44>0, IF(Purchases!$N$15 >0,Purchases!$N$15, 0),0)","v":0},{"$f":"IF(ISNUMBER( $F44), (H46/100)*$F44, \" \")","v":0},{"$f":"IF($F44>0,  IF(Purchases!M$15 >300,   IF(Purchases!$N$24 >0, Purchases!$N$24, 0),0), 0 )","v":0},{"$f":"IF(ISNUMBER( $F44), (J46/100)*$F44, \" \")","v":0},{"$f":"IF($F44>0,  IF(Purchases!M$15 >=300,   IF(Purchases!$N$26 >0, Purchases!$N$26, 0),0), 0 )","v":0},{"$f":"IF(ISNUMBER( $F44), (L46/100)*$F44, \" \")","v":0},null,null,{"$f":"+H46+J46+L46","v":0},{"$f":"+I46+K46+M46","v":0}]
[null,null,null,null,null,null,"Fungicide Segment Acres",{"$f":"+Purchases!M15","v":0},null,null,"Segment Qualified?",null,{"$f":"IF(H47 >=300, \"Yes\", \"No\")","v":"No"}]
[null,"Total Crop Protection Purchases",null,null,{"$f":"SUM(F10:F46)","v":0}]
[null,null,null,"a control check:",null,{"$f":"+E48-Purchases!H52","v":0},"Totals",{"$f":"SUM(I11:I22) + SUM(I25:I34) + SUM(I37:I46)","v":0},null,{"$f":"SUM(K11:K22) + SUM(K25:K34) + SUM(K37:K46)","v":0},null,{"$f":"SUM(M11:M22) + SUM(M25:M34) + SUM(M37:M46)","v":0},null,{"$f":"+O25+O26+O27+O31+O32+O33","v":0},null,null,{"$f":"SUM(Q11:Q46)","v":0}]
[null,"Total Trait Acres",null,null,null,{"$f":"+Purchases!K$108","v":0}]
[null,"(from previous tab)",null,null,null,null,null,null,null,null,"Total BayerValue Segment Rewards",null,null,null,null,{"$f":"+Q49","v":0}]
[null,null,null,null,null,null,null,null,null,null,null,null,null,null,"Overall % Savings BayerValue",{"$f":"IF( $E48 >0,  $P51/$E48,0)","v":0}]
[]
[null,null,null,null,null,null,null,null,null,null,{"$f":"+Purchases!H122","v":"Total DEKALB BONUS ($)"},null,null,null,null,{"$f":"+Purchases!K122","v":0},{"$f":"+Purchases!K122","v":0}]
[null,null,null,null,null,null,null,null,null,null,null,null,null,null,{"$f":"+Purchases!H123","v":"Overall % Savings in DEKALB Traits"},{"$f":"+Purchases!L123","v":0}]
[null,null,null,null,null,null,null,null,null,null,"Tota BV Rebate",null,null,null,null,{"$f":"+P51+P54","v":0},{"$f":"+P51+P54","v":0}]
[null,"GO TO \"PrintableSummary\" tab to print a customer take-away plain copy of the rebate values and rebate summary "]

{"sheet":"Rebate_Summary","index":2,"n_rows":80,"n_cols":17,"rows_kept":80,"cut":false,"hidden":false,"merged":[[73,12,73,13],[73,1,74,5],[48,13,48,14],[4,1,4,2],[67,6,67,7],[67,8,67,9],[21,1,29,1],[41,9,41,10],[41,7,41,8],[65,8,65,9],[65,10,65,11],[31,1,40,1],[66,6,66,7],[6,2,8,2],[61,6,61,7],[61,8,61,9],[4,3,4,6],[4,7,4,8],[67,12,67,13],[68,6,68,7],[66,8,66,9],[49,13,49,14],[4,13,4,15],[6,15,7,16],[6,9,7,10],[6,11,7,12],[47,13,47,14],[42,13,42,14],[6,13,7,14],[4,10,4,12],[41,13,41,14],[43,15,43,16],[9,1,20,1],[69,6,69,7],[69,8,69,9],[68,8,68,9],[66,10,66,11],[68,10,68,11],[64,10,64,11],[65,6,65,7],[67,10,67,11],[64,6,64,7],[64,8,64,9],[62,6,62,11],[41,11,41,12],[61,10,61,11],[63,6,63,7],[63,8,63,9],[63,10,63,11],[63,12,63,13],[59,6,59,7],[59,8,59,9],[59,10,59,11],[6,3,8,3],[6,4,8,4],[6,5,8,5],[6,6,8,6],[56,6,56,11],[6,7,7,8],[77,12,77,13],[79,12,79,13],[61,12,61,13],[59,12,59,13],[60,6,60,7],[76,12,76,13],[71,10,71,11],[71,12,71,13],[69,10,69,11],[69,12,69,13],[65,12,65,13],[60,8,60,9],[60,10,60,11],[60,12,60,13],[71,6,71,7],[71,8,71,9]]}
[]
[null,null,null,null,null,null,{"$f":"+Purchases!D2","v":"2021 BayerValue Rebate Calculator "}]
[null,null,null,null,null,null,{"$f":"+Purchases!D3","v":"for Western Canada - for Estimate Purposes Only Version 21.10P"}]
[]
[null,"Name of Grower:",null,{"$f":"+Purchases!C6","v":" "},null,null,null,{"$f":"+Purchases!M6","v":"2020-08-18"},null,null,{"$f":"+Purchases!B157 & \" :\"","v":"Total Rebate :"},null,null,{"$f":"+Purchases!$J$4","v":0}]
[null,"A.","BayerValue Segment Rewards - Crop Protection"]
[null,null,"Product Brand","UOM","Acres","Units","SRP Value",{"$f":"+RebateSummary!H7","v":"Segment Savings"},null,{"$f":"+RebateSummary!J7","v":"Season Starter Bonus"},null,{"$f":"+RebateSummary!L7","v":"BUTEO start Bonus"},null,{"$f":"+RebateSummary!N7","v":"Incredible Bayer Offer"},null,"Total Rewards"]
[]
[null,null,null,null,null,null,null,{"$f":"+RebateSummary!H9","v":"%"},{"$f":"+RebateSummary!I9","v":"Rebate"},{"$f":"+RebateSummary!J9","v":"%"},{"$f":"+RebateSummary!K9","v":"Rebate"},{"$f":"+RebateSummary!L9","v":"%"},{"$f":"+RebateSummary!M9","v":"Rebate"},{"$f":"+RebateSummary!N9","v":"$/Ac"},{"$f":"+RebateSummary!O9","v":"Rebate"},{"$f":"+RebateSummary!P9","v":"%"},{"$f":"+RebateSummary!Q9","v":"Rebate"}]
[null,{"$f":"+RebateSummary!$G$10","v":"Seed Treatment"},{"$f":"+RebateSummary!G11","v":"Admire"},{"$f":"+RebateSummary!C10","v":"3.785 L"},{"$f":"+RebateSummary!D10","v":0},{"$f":"+RebateSummary!E10","v":0},{"$f":"+RebateSummary!F10","v":0},{"$f":"+RebateSummary!H11","v":0},{"$f":"+RebateSummary!I11","v":0},{"$f":"+RebateSummary!J11","v":0},{"$f":"+RebateSummary!K11","v":0},{"$f":"+RebateSummary!L11","v":0},{"$f":"+RebateSummary!M11","v":0},null,null,{"$f":"+RebateSummary!P11","v":0},{"$f":"+RebateSummary!Q11","v":0}]
[null,null,{"$f":"+RebateSummary!G12","v":"Emesto Silver"},{"$f":"+RebateSummary!C13","v":"3.85 L"},{"$f":"+RebateSummary!D13","v":0},{"$f":"+RebateSummary!E13","v":0},{"$f":"+RebateSummary!F13","v":0},{"$f":"+RebateSummary!H12","v":0},{"$f":"+RebateSummary!I12","v":0},{"$f":"+RebateSummary!J12","v":0},{"$f":"+RebateSummary!K12","v":0},{"$f":"+RebateSummary!L12","v":0},{"$f":"+RebateSummary!M12","v":0},null,null,{"$f":"+RebateSummary!P12","v":0},{"$f":"+RebateSummary!Q12","v":0}]
[null,null,{"$f":"+RebateSummary!G13","v":"EverGol Energy "},{"$f":"+RebateSummary!C14","v":"33.75 L"},{"$f":"+RebateSummary!D14","v":0},{"$f":"+RebateSummary!E14","v":0},{"$f":"+RebateSummary!F14","v":0},{"$f":"+RebateSummary!H13","v":0},{"$f":"+RebateSummary!I13","v":0},{"$f":"+RebateSummary!J13","v":0},{"$f":"+RebateSummary!K13","v":0},{"$f":"+RebateSummary!L13","v":0},{"$f":"+RebateSummary!M13","v":0},null,null,{"$f":"+RebateSummary!P13","v":0},{"$f":"+RebateSummary!Q13","v":0}]
[null,null,{"$f":"+RebateSummary!G14","v":"Movento"},{"$f":"+RebateSummary!C20","v":"2 L"},{"$f":"+RebateSummary!D20","v":0},{"$f":"+RebateSummary!E20","v":0},{"$f":"+RebateSummary!F20","v":0},{"$f":"+RebateSummary!H14","v":0},{"$f":"+RebateSummary!I14","v":0},{"$f":"+RebateSummary!J14","v":0},{"$f":"+RebateSummary!K14","v":0},{"$f":"+RebateSummary!L14","v":0},{"$f":"+RebateSummary!M14","v":0},null,null,{"$f":"+RebateSummary!P14","v":0},{"$f":"+RebateSummary!Q14","v":0}]
[null,null,{"$f":"+RebateSummary!G15","v":"Raxil Pro "},{"$f":"+RebateSummary!C28","v":"10 L"},{"$f":"+RebateSummary!D28","v":0},{"$f":"+RebateSummary!E28","v":0},{"$f":"+RebateSummary!F28","v":0},{"$f":"+RebateSummary!H15","v":0},{"$f":"+RebateSummary!I15","v":0},{"$f":"+RebateSummary!J15","v":0},{"$f":"+RebateSummary!K15","v":0},{"$f":"+RebateSummary!L15","v":0},{"$f":"+RebateSummary!M15","v":0},null,null,{"$f":"+RebateSummary!P15","v":0},{"$f":"+RebateSummary!Q15","v":0}]
[null,null,{"$f":"+RebateSummary!G16","v":"Raxil Pro Shield "},{"$f":"+RebateSummary!C29","v":"(10L + 1.54L)"},{"$f":"+RebateSummary!D29","v":0},{"$f":"+RebateSummary!E29","v":0},{"$f":"+RebateSummary!F29","v":0},{"$f":"+RebateSummary!H16","v":0},{"$f":"+RebateSummary!I16","v":0},{"$f":"+RebateSummary!J16","v":0},{"$f":"+RebateSummary!K16","v":0},{"$f":"+RebateSummary!L16","v":0},{"$f":"+RebateSummary!M16","v":0},null,null,{"$f":"+RebateSummary!P16","v":0},{"$f":"+RebateSummary!Q16","v":0}]
[null,null,{"$f":"+RebateSummary!G21","v":"Sivanto Prime"},{"$f":"+RebateSummary!C35","v":"2 L"},{"$f":"+RebateSummary!D35","v":0},{"$f":"+RebateSummary!E35","v":0},{"$f":"+RebateSummary!F35","v":0},{"$f":"+RebateSummary!H21","v":0},{"$f":"+RebateSummary!I21","v":0},{"$f":"+RebateSummary!J21","v":0},{"$f":"+RebateSummary!K21","v":0},{"$f":"+RebateSummary!L21","v":0},{"$f":"+RebateSummary!M21","v":0},null,null,{"$f":"+RebateSummary!P21","v":0},{"$f":"+RebateSummary!Q21","v":0}]
[null,null,{"$f":"+RebateSummary!G17","v":"Stress Shield + Raxil Pro"},{"$f":"+RebateSummary!C36 & \"/\" &RebateSummary!C28","v":"27 L/10 L"},{"$f":" IF( RebateSummary!$D36 <>0, IF(ISNUMBER(RebateSummary!$F36), (Pkge!$Q111/RebateSummary!$D36) * RebateSummary!$D36),0)","v":0},{"$f":" IF( RebateSummary!$D36 <>0, IF(ISNUMBER(RebateSummary!$F36), (Pkge!$Q111/RebateSummary!$D36) * RebateSummary!$E36),0)","v":0},{"$f":" IF( RebateSummary!$D36 <>0, IF(ISNUMBER(RebateSummary!$F36), (Pkge!$Q111/RebateSummary!$D36) * RebateSummary!$F36),0)","v":0},{"$f":"+RebateSummary!H17","v":0},{"$f":"+RebateSummary!I17","v":0},{"$f":"+RebateSummary!J17","v":0},{"$f":"+RebateSummary!K17","v":0},{"$f":"+RebateSummary!L17","v":0},{"$f":"+RebateSummary!M17","v":0},null,null,{"$f":"+RebateSummary!P17","v":0},{"$f":"+RebateSummary!Q17","v":0}]
[null,null,{"$f":"+RebateSummary!G18","v":"Stress Shield + Trilex EverGol"},{"$f":"+RebateSummary!C36 & \"/\" &RebateSummary!C39","v":"27 L/(1.5L+0.96L)"},{"$f":" IF( RebateSummary!$D36 <>0, IF(ISNUMBER(RebateSummary!$F36), (Pkge!$S112/RebateSummary!$D36) * RebateSummary!$D36),0)","v":0},{"$f":" IF( RebateSummary!$D36 <>0, IF(ISNUMBER(RebateSummary!$F36), (Pkge!$S112/RebateSummary!$D36) * RebateSummary!$E36),0)","v":0},{"$f":" IF( RebateSummary!$D36 <>0, IF(ISNUMBER(RebateSummary!$F36), (Pkge!$S112/RebateSummary!$D36) * RebateSummary!$F36),0)","v":0},{"$f":"+RebateSummary!H18","v":0},{"$f":"+RebateSummary!I18","v":0},{"$f":"+RebateSummary!J18","v":0},{"$f":"+RebateSummary!K18","v":0},{"$f":"+RebateSummary!L18","v":0},{"$f":"+RebateSummary!M18","v":0},null,null,{"$f":"+RebateSummary!P18","v":0},{"$f":"+RebateSummary!Q18","v":0}]
[null,null,{"$f":"+RebateSummary!G19","v":"Trilex EverGol"},{"$f":"+RebateSummary!C39","v":"(1.5L+0.96L)"},{"$f":"+RebateSummary!D39","v":0},{"$f":"+RebateSummary!E39","v":0},{"$f":"+RebateSummary!F39","v":0},{"$f":"+RebateSummary!H19","v":0},{"$f":"+RebateSummary!I19","v":0},{"$f":"+RebateSummary!J19","v":0},{"$f":"+RebateSummary!K19","v":0},{"$f":"+RebateSummary!L19","v":0},{"$f":"+RebateSummary!M19","v":0},null,null,{"$f":"+RebateSummary!P19","v":0},{"$f":"+RebateSummary!Q19","v":0}]
[null,null,{"$f":"+RebateSummary!G20","v":"Trilex EverGol Shield"},{"$f":"+RebateSummary!C40","v":"(1.5L+0.96L+6.25L)"},{"$f":"+RebateSummary!D40","v":0},{"$f":"+RebateSummary!E40","v":0},{"$f":"+RebateSummary!F40","v":0},{"$f":"+RebateSummary!H20","v":0},{"$f":"+RebateSummary!I20","v":0},{"$f":"+RebateSummary!J20","v":0},{"$f":"+RebateSummary!K20","v":0},{"$f":"+RebateSummary!L20","v":0},{"$f":"+RebateSummary!M20","v":0},null,null,{"$f":"+RebateSummary!P20","v":0},{"$f":"+RebateSummary!Q20","v":0}]
[null,null,{"$f":"+RebateSummary!G22","v":"Vayego"},{"$f":"+RebateSummary!C46","v":"3 L"},{"$f":"+RebateSummary!D46","v":0},{"$f":"+RebateSummary!E46","v":0},{"$f":"+RebateSummary!F46","v":0},{"$f":"+RebateSummary!H22","v":0},{"$f":"+RebateSummary!I22","v":0},{"$f":"+RebateSummary!J22","v":0},{"$f":"+RebateSummary!K22","v":0},{"$f":"+RebateSummary!L22","v":0},{"$f":"+RebateSummary!M22","v":0},null,null,{"$f":"+RebateSummary!P22","v":0},{"$f":"+RebateSummary!Q22","v":0}]
[null,{"$f":"+RebateSummary!G24","v":"Herbicide"},{"$f":"+RebateSummary!G25","v":"Infinity"},{"$f":"+RebateSummary!C16","v":"6.7 L"},{"$f":"+RebateSummary!D16","v":0},{"$f":"+RebateSummary!E16","v":0},{"$f":"+RebateSummary!F16","v":0},{"$f":"+RebateSummary!H25","v":0},{"$f":"+RebateSummary!I25","v":0},{"$f":"+RebateSummary!J25","v":0},{"$f":"+RebateSummary!K25","v":0},{"$f":"+RebateSummary!L25","v":0},{"$f":"+RebateSummary!M25","v":0},{"$f":"+RebateSummary!N25","v":0},{"$f":"+RebateSummary!O25","v":0},{"$f":"+RebateSummary!P25","v":0},{"$f":"+RebateSummary!Q25","v":0}]
[null,null,{"$f":"+RebateSummary!G26","v":"Infinity FX "},{"$f":"+RebateSummary!C17","v":"8.1 L"},{"$f":"+RebateSummary!D17","v":0},{"$f":"+RebateSummary!E17","v":0},{"$f":"+RebateSummary!F17","v":0},{"$f":"+RebateSummary!H26","v":0},{"$f":"+RebateSummary!I26","v":0},{"$f":"+RebateSummary!J26","v":0},{"$f":"+RebateSummary!K26","v":0},{"$f":"+RebateSummary!L26","v":0},{"$f":"+RebateSummary!M26","v":0},{"$f":"+RebateSummary!N26","v":0},{"$f":"+RebateSummary!O26","v":0},{"$f":"+RebateSummary!P26","v":0},{"$f":"+RebateSummary!Q26","v":0}]
[null,null,{"$f":"+RebateSummary!G27","v":"Luxxur  "},{"$f":"+RebateSummary!C19","v":" (8L + 243g)"},{"$f":"+RebateSummary!D19","v":0},{"$f":"+RebateSummary!E19","v":0},{"$f":"+RebateSummary!F19","v":0},{"$f":"+RebateSummary!H27","v":0},{"$f":"+RebateSummary!I27","v":0},{"$f":"+RebateSummary!J27","v":0},{"$f":"+RebateSummary!K27","v":0},{"$f":"+RebateSummary!L27","v":0},{"$f":"+RebateSummary!M27","v":0},{"$f":"+RebateSummary!N27","v":0},{"$f":"+RebateSummary!O27","v":0},{"$f":"+RebateSummary!P27","v":0},{"$f":"+RebateSummary!Q27","v":0}]
[null,null,{"$f":"+RebateSummary!G28","v":"Olympus"},{"$f":"+RebateSummary!C22","v":"463 G"},{"$f":"+RebateSummary!D22","v":0},{"$f":"+RebateSummary!E22","v":0},{"$f":"+RebateSummary!F22","v":0},{"$f":"+RebateSummary!H28","v":0},{"$f":"+RebateSummary!I28","v":0},{"$f":"+RebateSummary!J28","v":0},{"$f":"+RebateSummary!K28","v":0},{"$f":"+RebateSummary!L28","v":0},{"$f":"+RebateSummary!M28","v":0},null,null,{"$f":"+RebateSummary!P28","v":0},{"$f":"+RebateSummary!Q28","v":0}]
[null,null,{"$f":"+RebateSummary!G29","v":"Pardner"},{"$f":"+RebateSummary!C21","v":"8 L"},{"$f":"+RebateSummary!D21","v":0},{"$f":"+RebateSummary!E21","v":0},{"$f":"+RebateSummary!F21","v":0},{"$f":"+RebateSummary!H29","v":0},{"$f":"+RebateSummary!I29","v":0},{"$f":"+RebateSummary!J29","v":0},{"$f":"+RebateSummary!K29","v":0},{"$f":"+RebateSummary!L29","v":0},{"$f":"+RebateSummary!M29","v":0},null,null,{"$f":"+RebateSummary!P29","v":0},{"$f":"+RebateSummary!Q29","v":0}]
[null,null,{"$f":"+RebateSummary!G30","v":"Roundup Xtend"},{"$f":"+RebateSummary!C30","v":"10 L"},{"$f":"+RebateSummary!D30","v":0},{"$f":"+RebateSummary!E30","v":0},{"$f":"+RebateSummary!F30","v":0},{"$f":"+RebateSummary!H30","v":0},{"$f":"+RebateSummary!I30","v":0},{"$f":"+RebateSummary!J30","v":0},{"$f":"+RebateSummary!K30","v":0},{"$f":"+RebateSummary!L30","v":0},{"$f":"+RebateSummary!M30","v":0},null,null,{"$f":"+RebateSummary!P30","v":0},{"$f":"+RebateSummary!Q30","v":0}]
[null,null,{"$f":"+RebateSummary!G31","v":"Tundra"},{"$f":"+RebateSummary!C41","v":"8.1 L"},{"$f":"+RebateSummary!D41","v":0},{"$f":"+RebateSummary!E41","v":0},{"$f":"+RebateSummary!F41","v":0},{"$f":"+RebateSummary!H31","v":0},{"$f":"+RebateSummary!I31","v":0},{"$f":"+RebateSummary!J31","v":0},{"$f":"+RebateSummary!K31","v":0},{"$f":"+RebateSummary!L31","v":0},{"$f":"+RebateSummary!M31","v":0},{"$f":"+RebateSummary!N31","v":0},{"$f":"+RebateSummary!O31","v":0},{"$f":"+RebateSummary!P31","v":0},{"$f":"+RebateSummary!Q31","v":0}]
[null,null,{"$f":"+RebateSummary!G32","v":"Varro"},{"$f":"+RebateSummary!C42","v":"8 L"},{"$f":"+RebateSummary!D42","v":0},{"$f":"+RebateSummary!E42","v":0},{"$f":"+RebateSummary!F42","v":0},{"$f":"+RebateSummary!H32","v":0},{"$f":"+RebateSummary!I32","v":0},{"$f":"+RebateSummary!J32","v":0},{"$f":"+RebateSummary!K32","v":0},{"$f":"+RebateSummary!L32","v":0},{"$f":"+RebateSummary!M32","v":0},{"$f":"+RebateSummary!N32","v":0},{"$f":"+RebateSummary!O32","v":0},{"$f":"+RebateSummary!P32","v":0},{"$f":"+RebateSummary!Q32","v":0}]
[null,null,{"$f":"+RebateSummary!G33","v":"Velocity M3"},{"$f":"+RebateSummary!C43","v":"8.1 L"},{"$f":"+RebateSummary!D43","v":0},{"$f":"+RebateSummary!E43","v":0},{"$f":"+RebateSummary!F43","v":0},{"$f":"+RebateSummary!H33","v":0},{"$f":"+RebateSummary!I33","v":0},{"$f":"+RebateSummary!J33","v":0},{"$f":"+RebateSummary!K33","v":0},{"$f":"+RebateSummary!L33","v":0},{"$f":"+RebateSummary!M33","v":0},{"$f":"+RebateSummary!N33","v":0},{"$f":"+RebateSummary!O33","v":0},{"$f":"+RebateSummary!P33","v":0},{"$f":"+RebateSummary!Q33","v":0}]
[null,null,{"$f":"+RebateSummary!G34","v":"XtendIMax"},{"$f":"+RebateSummary!C45","v":"10 L"},{"$f":"+RebateSummary!D45","v":0},{"$f":"+RebateSummary!E45","v":0},{"$f":"+RebateSummary!F45","v":0},{"$f":"+RebateSummary!H34","v":0},{"$f":"+RebateSummary!I34","v":0},{"$f":"+RebateSummary!J34","v":0},{"$f":"+RebateSummary!K34","v":0},{"$f":"+RebateSummary!L34","v":0},{"$f":"+RebateSummary!M34","v":0},null,null,{"$f":"+RebateSummary!P34","v":0},{"$f":"+RebateSummary!Q34","v":0}]
[null,{"$f":"+RebateSummary!G36","v":"Fungicide"},{"$f":"+RebateSummary!G37","v":"Delaro"},{"$f":"+RebateSummary!C12","v":"7.1 L"},{"$f":"+RebateSummary!D12","v":0},{"$f":"+RebateSummary!E12","v":0},{"$f":"+RebateSummary!F12","v":0},{"$f":"+RebateSummary!H37","v":0},{"$f":"+RebateSummary!I37","v":0},{"$f":"+RebateSummary!J37","v":0},{"$f":"+RebateSummary!K37","v":0},{"$f":"+RebateSummary!L37","v":0},{"$f":"+RebateSummary!M37","v":0},null,null,{"$f":"+RebateSummary!P37","v":0},{"$f":"+RebateSummary!Q37","v":0}]
[null,null,{"$f":"+RebateSummary!G38","v":"Folicur EW"},{"$f":"+RebateSummary!C15","v":"8.1 L"},{"$f":"+RebateSummary!D15","v":0},{"$f":"+RebateSummary!E15","v":0},{"$f":"+RebateSummary!F15","v":0},{"$f":"+RebateSummary!H38","v":0},{"$f":"+RebateSummary!I38","v":0},{"$f":"+RebateSummary!J38","v":0},{"$f":"+RebateSummary!K38","v":0},{"$f":"+RebateSummary!L38","v":0},{"$f":"+RebateSummary!M38","v":0},null,null,{"$f":"+RebateSummary!P38","v":0},{"$f":"+RebateSummary!Q38","v":0}]
[null,null,{"$f":"+RebateSummary!G39","v":"Luna Tranquility"},{"$f":"+RebateSummary!C18","v":"2 L"},{"$f":"+RebateSummary!D18","v":0},{"$f":"+RebateSummary!E18","v":0},{"$f":"+RebateSummary!F18","v":0},{"$f":"+RebateSummary!H39","v":0},{"$f":"+RebateSummary!I39","v":0},{"$f":"+RebateSummary!J39","v":0},{"$f":"+RebateSummary!K39","v":0},{"$f":"+RebateSummary!L39","v":0},{"$f":"+RebateSummary!M39","v":0},null,null,{"$f":"+RebateSummary!P39","v":0},{"$f":"+RebateSummary!Q39","v":0}]
[null,null,{"$f":"+RebateSummary!G40","v":"Proline  "},{"$f":"+RebateSummary!C23","v":"5.1 L"},{"$f":"+RebateSummary!D23","v":0},{"$f":"+RebateSummary!E23","v":0},{"$f":"+RebateSummary!F23","v":0},{"$f":"+RebateSummary!H40","v":0},{"$f":"+RebateSummary!I40","v":0},{"$f":"+RebateSummary!J40","v":0},{"$f":"+RebateSummary!K40","v":0},{"$f":"+RebateSummary!L40","v":0},{"$f":"+RebateSummary!M40","v":0},null,null,{"$f":"+RebateSummary!P40","v":0},{"$f":"+RebateSummary!Q40","v":0}]
[null,null,{"$f":"+RebateSummary!G41","v":"Proline  Gold"},{"$f":"+RebateSummary!C24","v":"10.12 L"},{"$f":"+RebateSummary!D24","v":0},{"$f":"+RebateSummary!E24","v":0},{"$f":"+RebateSummary!F24","v":0},{"$f":"+RebateSummary!H41","v":0},{"$f":"+RebateSummary!I41","v":0},{"$f":"+RebateSummary!J41","v":0},{"$f":"+RebateSummary!K41","v":0},{"$f":"+RebateSummary!L41","v":0},{"$f":"+RebateSummary!M41","v":0},null,null,{"$f":"+RebateSummary!P41","v":0},{"$f":"+RebateSummary!Q41","v":0}]
[null,null,{"$f":"+RebateSummary!G42","v":"Prosaro XTR "},{"$f":"+RebateSummary!C26","v":"6.5 L"},{"$f":"+RebateSummary!D26","v":0},{"$f":"+RebateSummary!E26","v":0},{"$f":"+RebateSummary!F26","v":0},{"$f":"+RebateSummary!H42","v":0},{"$f":"+RebateSummary!I42","v":0},{"$f":"+RebateSummary!J42","v":0},{"$f":"+RebateSummary!K42","v":0},{"$f":"+RebateSummary!L42","v":0},{"$f":"+RebateSummary!M42","v":0},null,null,{"$f":"+RebateSummary!P42","v":0},{"$f":"+RebateSummary!Q42","v":0}]
[null,null,{"$f":"+RebateSummary!G43","v":"Scala"},{"$f":"+RebateSummary!C32","v":"2 L"},{"$f":"+RebateSummary!D32","v":0},{"$f":"+RebateSummary!E32","v":0},{"$f":"+RebateSummary!F32","v":0},{"$f":"+RebateSummary!H43","v":0},{"$f":"+RebateSummary!I43","v":0},{"$f":"+RebateSummary!J43","v":0},{"$f":"+RebateSummary!K43","v":0},{"$f":"+RebateSummary!L43","v":0},{"$f":"+RebateSummary!M43","v":0},null,null,{"$f":"+RebateSummary!P43","v":0},{"$f":"+RebateSummary!Q43","v":0}]
[null,null,{"$f":"+RebateSummary!G44","v":"Serenade Soil"},{"$f":"+RebateSummary!C33","v":"9.46 L"},{"$f":"+RebateSummary!D33","v":0},{"$f":"+RebateSummary!E33","v":0},{"$f":"+RebateSummary!F33","v":0},{"$f":"+RebateSummary!H44","v":0},{"$f":"+RebateSummary!I44","v":0},{"$f":"+RebateSummary!J44","v":0},{"$f":"+RebateSummary!K44","v":0},{"$f":"+RebateSummary!L44","v":0},{"$f":"+RebateSummary!M44","v":0},null,null,{"$f":"+RebateSummary!P44","v":0},{"$f":"+RebateSummary!Q44","v":0}]
[null,null,{"$f":"+RebateSummary!G45","v":"Tilmor"},{"$f":"+RebateSummary!C38","v":"10.12 L"},{"$f":"+RebateSummary!D38","v":0},{"$f":"+RebateSummary!E38","v":0},{"$f":"+RebateSummary!F38","v":0},{"$f":"+RebateSummary!H45","v":0},{"$f":"+RebateSummary!I45","v":0},{"$f":"+RebateSummary!J45","v":0},{"$f":"+RebateSummary!K45","v":0},{"$f":"+RebateSummary!L45","v":0},{"$f":"+RebateSummary!M45","v":0},null,null,{"$f":"+RebateSummary!P45","v":0},{"$f":"+RebateSummary!Q45","v":0}]
[null,null,{"$f":"+RebateSummary!G46","v":"Velum Prime"},{"$f":"+RebateSummary!C44","v":"4.04 L"},{"$f":"+RebateSummary!D44","v":0},{"$f":"+RebateSummary!E44","v":0},{"$f":"+RebateSummary!F44","v":0},{"$f":"+RebateSummary!H46","v":0},{"$f":"+RebateSummary!I46","v":0},{"$f":"+RebateSummary!J46","v":0},{"$f":"+RebateSummary!K46","v":0},{"$f":"+RebateSummary!L46","v":0},{"$f":"+RebateSummary!M46","v":0},null,null,{"$f":"+RebateSummary!P46","v":0},{"$f":"+RebateSummary!Q46","v":0}]
[null,null,null,null,null,null,"Subtotal",{"$f":"+RebateSummary!H49","v":0},null,{"$f":"+RebateSummary!J49","v":0},null,{"$f":"+RebateSummary!L49","v":0},null,{"$f":"+RebateSummary!N49","v":0},null,null,{"$f":"+RebateSummary!Q49","v":0}]
[]
[null,null,null,null,null,null,null,null,null,null,null,null,{"$f":"+RebateSummary!K51","v":"Total BayerValue Segment Rewards"},null,null,{"$f":"+RebateSummary!P51","v":0}]
[null,null,null,null,null,null,null,null,null,null,null,null,null,null,{"$f":"+RebateSummary!O52","v":"Overall % Savings BayerValue"},null,{"$f":"+RebateSummary!P52","v":0}]
[]
[null,"Qualifying Highlights"]
[null,"Seed Treatment Segment Acres",null,{"$f":"+RebateSummary!H23","v":0},"Segment Qualified?",null,{"$f":"IF(D48 >=300, \"Yes\", \"No\")","v":"No"},null,"Total crop protection purchases ",null,null,null,null,{"$f":"+RebateSummary!E48","v":0}]
[null,"Herbicide Segment Acres",null,{"$f":"+RebateSummary!H35","v":0},"Segment Qualified?",null,{"$f":"IF(D49 >=300, \"Yes\", \"No\")","v":"No"},null,{"$f":"+Purchases!B124","v":"Acres of BUTEO™ start + Prosper® EverGol® matched to Canola Seed Traits acres"},null,null,null,null,{"$f":"+Purchases!F125","v":0}]
[null,"Fungicide Segment Acres",null,{"$f":"+RebateSummary!H47","v":0},"Segment Qualified?",null,{"$f":"IF(D50 >=300, \"Yes\", \"No\")","v":"No"},null,{"$f":"+Purchases!B126","v":"BUTEO™ start Bonus (%)"},null,null,null,null,{"$f":"+Purchases!F126","v":0}]
[null,"Number of Segments Qualifying",null,{"$f":"+Purchases!M16","v":0}]
[]
[]
[null,"B.","DEKALB Bonus Rebates"]
[]
[]
[null,null,null,null,null,null,{"$f":"+Purchases!F105","v":"Total Seed Trait Purchases"}]
[]
[]
[null,null,null,null,null,null,{"$f":"+Purchases!F106","v":"DEKALB Canola"},null,{"$f":"+Purchases!G106","v":"DEKALB Corn"},{"$f":"+Purchases!H106","v":0},{"$f":"+Purchases!I106","v":"DEKALB Soybean"},{"$f":"+Purchases!J106","v":0},{"$f":"+Purchases!K106","v":"Totals"}]
[null,null,null,null,null,{"$f":"+Purchases!E107","v":"Value"},{"$f":"+Purchases!F107","v":0},null,{"$f":"+Purchases!G107","v":0},{"$f":"+Purchases!H107","v":0},{"$f":"+Purchases!I107","v":0},{"$f":"+Purchases!J107","v":0},{"$f":"+Purchases!K107","v":0}]
[null,null,null,null,null,{"$f":"+Purchases!E108","v":"Acres"},{"$f":"+Purchases!F108","v":0},null,{"$f":"+Purchases!G108","v":0},{"$f":"+Purchases!H108","v":0},{"$f":"+Purchases!I108","v":0},{"$f":"+Purchases!J108","v":0},{"$f":"+Purchases!K108","v":0}]
[null,null,null,null,null,null,{"$f":"+Purchases!F109","v":"Early Book Savings"}]
[null,null,null,null,null,null,{"$f":"+Purchases!F110","v":"DEKALB Canola"},null,{"$f":"+Purchases!G110","v":"DEKALB Corn"},{"$f":"+Purchases!H110","v":0},{"$f":"+Purchases!I110","v":"DEKALB Soybean"},{"$f":"+Purchases!J110","v":0},{"$f":"+Purchases!K110","v":"Totals"}]
[null,{"$f":"+Purchases!B111","v":"Early Book Bonus  (Book by December 15, 2020) "},null,null,{"$f":"+Purchases!E111","v":"(Minimum 300 acres)"},null,{"$f":"+Purchases!F111","v":0},null,{"$f":"+Purchases!G111","v":0},{"$f":"+Purchases!H111","v":0},{"$f":"+Purchases!I111","v":0},{"$f":"+Purchases!J111","v":0}]
[null,null,null,null,null,null,{"$f":"+Purchases!F112","v":0},null,{"$f":"+Purchases!G112","v":0},{"$f":"+Purchases!H112","v":0},{"$f":"+Purchases!I112","v":0},{"$f":"+Purchases!J112","v":0},{"$f":"+Purchases!K112","v":0}]
[null,{"$f":"+Purchases!B113","v":"Purchases of Seed Treatment matching seed trait acres"},null,null,null,null,{"$f":"+Purchases!F113","v":0},null,{"$f":"+Purchases!G113","v":0},{"$f":"+Purchases!H113","v":0},{"$f":"+Purchases!I113","v":0},{"$f":"+Purchases!J113","v":0}]
[null,{"$f":"+Purchases!B114","v":"(Raxil Pro brands, Trilex EverGol brands, Evergol Energy)"},null,null,{"$f":"+Purchases!E114","v":"(Minimum 300 acres)"},null,{"$f":"+Purchases!F114","v":0},null,{"$f":"+Purchases!G114","v":0},{"$f":"+Purchases!H114","v":0},{"$f":"+Purchases!I114","v":0},{"$f":"+Purchases!J114","v":0},{"$f":"+Purchases!K114","v":0}]
[null,{"$f":"+Purchases!B115","v":"Purchases of Trait Herbicides matching seed trait acres"},null,null,null,null,{"$f":"+Purchases!F115","v":0},null,{"$f":"+Purchases!G115","v":0},{"$f":"+Purchases!H115","v":0},{"$f":"+Purchases!I115","v":0},{"$f":"+Purchases!J115","v":0}]
[null,{"$f":"+Purchases!B116","v":"(Roundup WeatherMAX, Roundup Xtend, XtendiMax )"},null,null,{"$f":"+Purchases!E116","v":"(Minimum 300 acres)"},null,{"$f":"+Purchases!F116","v":0},null,{"$f":"+Purchases!G116","v":0},{"$f":"+Purchases!H116","v":0},{"$f":"+Purchases!I116","v":0},{"$f":"+Purchases!J116","v":0},{"$f":"+Purchases!K116","v":0}]
[]
[null,null,null,{"$f":"+Purchases!E118","v":"Total Rebate for Each Crop"},null,null,{"$f":"+Purchases!F118","v":0},null,{"$f":"+Purchases!G118","v":0},{"$f":"+Purchases!H118","v":0},{"$f":"+Purchases!I118","v":0},{"$f":"+Purchases!J118","v":0},{"$f":"+Purchases!K118","v":0}]
[]
[null,{"$f":"+Purchases!B120","v":"Additional Rebate on Roundup WeatherMAX for activating FieldView and uploading Data (Requires 300 acres of DEKALB seed early booked)"},null,null,null,null,null,null,null,null,null,null,{"$f":"+Purchases!K120","v":0}]
[]
[]
[null,null,null,null,null,null,null,null,{"$f":"+Purchases!H122","v":"Total DEKALB BONUS ($)"},null,null,null,{"$f":"+Purchases!K122","v":0}]
[null,null,null,null,null,null,null,null,{"$f":"+Purchases!H123","v":"Overall % Savings in DEKALB Traits"},null,null,null,{"$f":"+Purchases!L123","v":0}]
[]
[null,null,null,null,null,null,{"$f":"+Purchases!C130 & \" (A+B)\"","v":"Total BayerValue Rebate (A+B)"},null,null,null,null,null,{"$f":"+Purchases!F130","v":0}]

{"sheet":"Pkge","index":3,"n_rows":159,"n_cols":26,"rows_kept":159,"cut":false,"hidden":true,"merged":[[0,6,1,6],[0,7,1,7],[0,9,1,9]]}
["BrandName","Package Name","Acres/Package","Is BaseUnit?","SRP","Conversion Factor","Acres or Units ? (calculate/switches)","Data Entry - Acres OR Units?  (switches)","Product Value","Product Base Unit Equivalent (calculate)","Brand","Brand Acre","Brand Value","Brand Base Unit","Brand","Date of","Matching Acres Stress Shield","LeftOver Acres Stress Shield","Matching Acres Stress Shield","Product is ","Questions/Comments?","Region","Other Comments/Observations","Product Type","Package Size","Package Size Definition"]
["Chosen Acres or Units entry?",null,null,"Yes/No","2020","to Base Units",null,null,"@SRP",null,"Row ","Equivalents","Equivalents @SRP","Equivalents","Name","Update","with Raxil Pro","with Raxil Pro","with TrilexEverGol","Obsolete?"]
[{"$f":"IF(B$3 =1, \"Units\", \"Acres\")","v":"Acres"},0,null,"yes = 1, no = 0",null,null,{"$f":"IF(B$3 =1, \"Acres\", \"Units\")","v":"Units"},{"$f":"+A3","v":"Acres"},"(calculate)","Units","Num","Acres","(calculate)","Units"]
["ADMIRE","ADMIRE (1 L)",2.9,"N",88,0.26419999999999999,{"$f":"IF(B$3 =1, H4*C4, H4/C4)","v":0},0,{"$f":"IF(B$3 = 1, H4*E4, (H4/C4) *E4)","v":0},{"$f":"IF($B$3 =1, H4*F4, (H4/C4) *F4)","v":0},null,null,null,null,null,"2020-07-22",null,null,null,null,null,"West",null,"Insecticide","1 L"]
["ADMIRE","ADMIRE® (3.785L) ",11,"Y",306.5,1,0,{"$f":"+Purchases!C13","v":0},0,{"$f":"IF($B$3 =1, H5*F5, (H5/C5) *F5)","v":0},null,{"$f":"IF( $B$3 = 1,  SUM(G4:G5), SUM(H4:H5) )","v":0},{"$f":"SUM(I4:I5)","v":0},{"$f":"SUM(J4:J5)","v":0},{"$f":"+A5","v":"ADMIRE"},"2020-07-22",null,null,null,null,null,"West",null,"Insecticide","3.785 L"]
["ALIETTE","ALIETTE WDG (2.26 KG)",1,"Y",112.5,1,0,0,{"$f":"+E6*H6","v":0},{"$f":"+F6*H6","v":0},null,{"$f":"+G6","v":0},{"$f":"+I6","v":0},{"$f":"+J6","v":0},{"$f":"+A6","v":"ALIETTE"},"2019-09-10",null,null,null,null,"NOT IN 2020 BV","West",null,"Herbicide","2.26 KG"]
["BETAMIX B","BETAMIX B (10 L)",1,"Y",759,1,0,0,{"$f":"+E7*H7","v":0},{"$f":"+F7*H7","v":0},null,{"$f":"+G7","v":0},{"$f":"+I7","v":0},{"$f":"+J7","v":0},{"$f":"+A7","v":"BETAMIX B"},"2019-09-10",null,null,null,null,"NOT IN 2020 BV","West",null,"Herbicide","10 L"]
["BUCTRIL M","BUCTRIL® M (8L) ",20,"Y",167,1,{"$f":"IF(B$3 =1, H8*C8, H8/C8)","v":0},{"$f":"+Purchases!C14","v":0},{"$f":"IF(B$3 = 1, H8*E8, (H8/C8) *E8)","v":0},{"$f":"IF($B$3 =1, H8*F8, (H8/C8) *F8)","v":0},null," "," "," "," ","2020-07-22",null,null,null,null,null,"West",null,"Herbicide","8 L"]
["BUCTRIL M","BUCTRIL M (128 L)",320,"N",2672,16,{"$f":"IF(B$3 =1, H9*C9, H9/C9)","v":0},{"$f":"+Purchases!C15","v":0},{"$f":"IF(B$3 = 1, H9*E9, (H9/C9) *E9)","v":0},{"$f":"IF($B$3 =1, H9*F9, (H9/C9) *F9)","v":0},null,null,null,null,null,"2020-07-22",null,null,null,null,null,"West",null,"Herbicide","128 L"]
["BUCTRIL M","BUCTRIL M (400 L)",1000,"N",8350,50,0,{"$f":"+Purchases!C16","v":0},0,{"$f":"IF($B$3 =1, H10*F10, (H10/C10) *F10)","v":0},null,{"$f":"IF( $B$3 = 1,  SUM(G8:G10), SUM(H8:H10) )","v":0},{"$f":"SUM(I8:I10)","v":0},{"$f":"SUM(J8:J10)","v":0},"BUCTRIL M","2020-07-22",null,null,null,null,null,"West",null,"Herbicide","400 L"]
["CONCEPT","CONCEPT (5.26 L)",20,"Y",263,1,0,0,{"$f":"+E11*H11","v":0},{"$f":"+F11*H11","v":0},null,{"$f":"+G11","v":0},{"$f":"+I11","v":0},{"$f":"+J11","v":0},{"$f":"+A11","v":"CONCEPT"},"2020-07-22",null,null,null,null,"NOT IN 2020 BV","West",null,"Insecticide","5.26 L"]
["DELARO","DELARO (7.1 L)",20,"Y",451.5,1,0,{"$f":"+Purchases!C17","v":0},0,{"$f":"IF($B$3 =1, H12*F12, (H12/C12) *F12)","v":0},null,null,null,null,null,"2020-07-22",null,null,null,null,null,"West",null,"Fungicide","7.1 L"]
["DELARO","DELARO® (113.6L) ",320,"N",7224,16,0,{"$f":"+Purchases!C18","v":0},0,0,null,{"$f":"IF( $B$3 = 1,  SUM(G12:G13), SUM(H12:H13) )","v":0},{"$f":"SUM(I12:I13)","v":0},{"$f":"SUM(J12:J13)","v":0},{"$f":"+A13","v":"DELARO"},"2020-07-22",null,null,null,null,null,"West",null,"Fungicide","113.6 L"]
["EMESTO SILVER","EMESTO® SILVER (3.85L)",22,"Y",991,1,0,{"$f":"+Purchases!C19","v":0},0,0,null,{"$f":"IF( $B$3 = 1,  G14,H14 )","v":0},{"$f":"+I14","v":0},0,{"$f":"+A14","v":"EMESTO SILVER"},"2020-07-22",null,null,null,null,null,"West",null,"Seed Treatment","3.85 L"]
["EVERGOL ENERGY","EVERGOL® ENERGY (33.75L)",1696,"Y",10906,1,0,{"$f":"+Purchases!C20","v":0},0,0,null,{"$f":"IF( $B$3 = 1,  G15,H15 )","v":0},0,0,{"$f":"+A15","v":"EVERGOL ENERGY"},"2020-07-22",null,null,null,null,null,"West",null,"Seed Treatment","33.75 L"]
["FOLICUR EW","FOLICUR® EW (8.1L) ",40,"Y",526.5,1,0,{"$f":"+Purchases!C21","v":0},0,0,null,{"$f":"IF( $B$3 = 1,  G16,H16 )","v":0},0,0,{"$f":"+A16","v":"FOLICUR EW"},"2020-07-22",null,null,null,null,null,"West",null,"Fungicide","8.1 L"]
["INFINITY","INFINITY® (6.7L) ",20,"Y",219.5,1,0,{"$f":"+Purchases!C22","v":0},0,0,null,null,null,null,null,"2020-07-22",null,null,null,null,null,"West",null,"Herbicide","6.7 L"]
["INFINITY","INFINITY (107.2 L)",320,"N",3512,16,0,{"$f":"+Purchases!C23","v":0},0,0,null,null,null,null,null,"2020-07-22",null,null,null,null,null,"West",null,"Herbicide","107.2 L"]
["INFINITY","INFINITY (335 L)",1000,"N",10975,50,0,{"$f":"+Purchases!C24","v":0},0,0,null,{"$f":"IF( $B$3 = 1,  SUM(G17:G19), SUM(H17:H19) )","v":0},{"$f":"SUM(I17:I19)","v":0},{"$f":"SUM(J17:J19)","v":0},{"$f":"+A19","v":"INFINITY"},"2020-07-22",null,null,null,null,null,"West",null,"Herbicide","335 L"]
["INFINITY FX","INFINITY FX (13.4L+6.48L)",40,"Y",511,2,0,0,0,0,null,null,null,null,null,"2020-07-22",null,null,null,null,"NOT IN 2020 BV","West",null,"Herbicide"," (13.4L + 6.48L)"]
["INFINITY FX","INFINITY FX (8.1 L)",20,"Y",265,1,0,{"$f":"+Purchases!C25","v":0},0,0,null,null,null,null,null,"2020-07-22",null,null,null,null,null,"West",null,"Herbicide","8.1 L","JUG"]
["INFINITY FX","INFINITY FX (405 L)",1000,"N",13250,50,0,{"$f":"+Purchases!C27","v":0},0,0,null,null,null,null,null,"2020-07-22",null,null,null,null,null,"West",null,"Herbicide","405 L","TOTE"]
["INFINITY FX","INFINITY FX (129.6 L)",320,"N",4240,16,0,{"$f":"+Purchases!C26","v":0},0,0,null,{"$f":"IF( $B$3 = 1,  SUM(G20:G23), SUM(H20:H23) )","v":0},{"$f":"SUM(I20:I23)","v":0},{"$f":"SUM(J20:J23)","v":0},{"$f":"+A23","v":"INFINITY FX"},"2020-07-22",null,null,null,null,null,"West",null,"Herbicide","129.6 L","DRUM"]
["LUNA TRANQUILITY","LUNA TRANQUILITY® (2L) ",8,"Y",207,1,0,{"$f":"+Purchases!C28","v":0},0,0,null,{"$f":"IF( $B$3 = 1,  SUM(G24:G25), SUM(H24:H25) )","v":0},{"$f":"+I24+I25","v":0},{"$f":"+J24+J25","v":0},{"$f":"+A25","v":"LUNA TRANQUILITY"},"2020-07-22",null,null,null,null,null,"West",null,"Fungicide","2 L"]
["LUNA TRANQUILITY","LUNA TRANQUILITY (4.86 L)",20,"N",503.5,2.4300000000000002,0,{"$f":"+Purchases!C29","v":0},0,0,null,null,null,null,null,"2020-07-22",null,null,null,null,null,"West",null,"Fungicide","4.86 L"]
["LUXXUR","LUXXUR® (8L+243GR)",40,"Y",824,1,0,{"$f":"+Purchases!C30","v":0},0,0,null,{"$f":"IF( $B$3 = 1,  G26,H26 )","v":0},{"$f":"+I26","v":0},{"$f":"+J26","v":0},{"$f":"+A26","v":"LUXXUR"},"2020-07-22",null,null,null,null,null,"West",null,"Herbicide"," (8L + 243g)"]
["MOVENTO","MOVENTO (1 L)",11,"N",1,0.5,0,0,0,0,null,null,null,null,null,"2019-07-24",null,null,null,"Yes",null,"West",null,"Fungicide","1 L"]
["MOVENTO","MOVENTO® (2L) ",22,"Y",550,1,0,{"$f":"+Purchases!C31","v":0},0,0,null,{"$f":"IF( $B$3 = 1,  SUM(G27:G28), SUM(H27:H28) )","v":0},{"$f":"+I27+I28","v":0},{"$f":"+J27+J28","v":0},{"$f":"+A28","v":"MOVENTO"},"2020-07-22",null,null,null,null,null,"West",null,"Fungicide","2 L"]
["NORTRON","NORTRON SC (10 L)",1,"Y",426,1,0,0,{"$f":"+E29*H29","v":0},{"$f":"+F29*H29","v":0},null,{"$f":"+G29","v":0},{"$f":"+I29","v":0},{"$f":"+J29","v":0},null,"2019-09-10",null,null,null,null,null,"West",null,"Herbicide","10 L"]
["OLYMPUS","OLYMPUS® (463G) ",80,"Y",489.5,1,0,{"$f":"+Purchases!C32","v":0},0,{"$f":"IF($B$3 =1, H30*F30, (H30/C30) *F30)","v":0},null,null,null,null,null,"2020-07-22",null,null,null,null,null,"West",null,"Herbicide","463 G"]
["OLYMPUS","OLYMPUS SG70 (463G JUG)",80,"N",480,1,0,0,0,0,null,{"$f":"IF( $B$3 = 1,  SUM(G30:G31), SUM(H30:H31) )","v":0},{"$f":"+I30+I31","v":0},{"$f":"+J30+J31","v":0},{"$f":"+A31","v":"OLYMPUS"},"2019-07-24",null,null,null,"Yes","NOT IN 2020 BV","West",null,"Herbicide","463 G"]
["PARDNER","PARDNER® (8L) ",20,"Y",150,1,{"$f":"IF(B$3 =1, H32*C32, H32/C32)","v":0},{"$f":"+Purchases!C33","v":0},0,0,null,null,null,null,null,"2020-07-22",null,null,null,null,null,"West",null,"Herbicide","8 L"]
["PARDNER","PARDNER (128 L)",320,"N",2400,16,0,{"$f":"+Purchases!C34","v":0},0,0,null,{"$f":"IF( $B$3 = 1,  SUM(G32:G33), SUM(H32:H33) )","v":0},{"$f":"+I32+I33","v":0},{"$f":"+J32+J33","v":0},{"$f":"+A33","v":"PARDNER"},"2020-07-22",{"$f":"IF( $B$3 = 1,  SUM($G32:$G33), SUM($H32:$H33) )","v":0},{"$f":"+$J32+$J33","v":0},null,null,null,"West",null,"Herbicide","128 L"]
["PROLINE","PROLINE® (5.1L) ",40,"Y",867,1,0,{"$f":"+Purchases!C35","v":0},0,0,null,{"$f":"IF( $B$3 = 1,  G34,H34 )","v":0},{"$f":"+I34","v":0},0,"PROLINE","2020-07-22",null,null,null,null,null,"West",null,"Fungicide","5.1 L"]
["PROLINE GOLD","PROLINE GOLD (10.12 L)",40,"Y",927,1,{"$f":"IF(B$3 =1, H35*C35, H35/C35)","v":0},{"$f":"+Purchases!C36","v":0},{"$f":"IF(B$3 = 1, H35*E35, (H35/C35) *E35)","v":0},{"$f":"IF($B$3 =1, H35*F35, (H35/C35) *F35)","v":0},null,{"$f":"IF( $B$3 = 1,  G35,H35 )","v":0},{"$f":"+I35","v":0},{"$f":"+J35","v":0},"PROLINE","2020-07-22",null,null,null,null,null,"West",null,"Fungicide","10.12 L"]
["PROSARO 115","PROSARO 115 (6.5 L)",20,"Y",453,1,0,0,0,0,null,null,null,null,null,"2020-07-22",null,null,null,null,"NOT IN 2020 BV","West",null,"Fungicide","6.5 L"]
["PROSARO 115","PROSARO 115 (104 L)",320,"N",0,8.57,0,0,0,0,null,{"$f":"IF( $B$3 = 1,  SUM(G36:G37), SUM(H36:H37) )","v":0},{"$f":"+I36+I37","v":0},{"$f":"+J36+J37","v":0},{"$f":"+A37","v":"PROSARO 115"},"2020-07-22",null,null,null,null,"NOT IN 2020 BV","West",null,"Fungicide","104 L"]
["PROSARO XTR","PROSARO XTR (6.5 L)",20,"Y",433,1,0,{"$f":"+Purchases!C37","v":0},0,0,null,null,null,null,null,"2020-07-22",null,null,null,null,null,"West",null,"Fungicide","6.5 L"]
["PROSARO XTR","PROSARO® XTR (104L) ",320,"N",6928,16,0,{"$f":"+Purchases!C38","v":0},0,0,null,{"$f":"IF( $B$3 = 1,  SUM(G38:G39), SUM(H38:H39) )","v":0},{"$f":"SUM(I38:I39)","v":0},{"$f":"SUM(J38:J39)","v":0},{"$f":"+A38","v":"PROSARO XTR"},"2020-07-22",null,null,null,null,null,"West",null,"Fungicide","104 L"]
["PUMA ADVANCE","PUMA® ADVANCE (8.25L)",20,"Y",160,1,0,{"$f":"+Purchases!C39","v":0},0,0,null,null,null,null,null,"2020-07-22",null,null,null,null,null,"West",null,"Herbicide","8.25 L"]
["PUMA ADVANCE","PUMA ADVANCE (123.75 L)",300,"N",2400,15,0,{"$f":"+Purchases!C40","v":0},0,0,null,null,null,null,null,"2020-07-22",null,null,null,null,null,"West",null,"Herbicide","123.75 L"]
["PUMA ADVANCE","PUMA ADVANCE (412.5 L)",1000,"N",8000,50,0,{"$f":"+Purchases!C41","v":0},0,0,null,{"$f":"IF( $B$3 = 1,  SUM(G40:G42), SUM(H40:H42) )","v":0},{"$f":"SUM(I40:I42)","v":0},{"$f":"SUM(J40:J42)","v":0},{"$f":"+A42","v":"PUMA ADVANCE"},"2020-07-22",null,null,null,null,null,"West",null,"Herbicide","412.5 L"]
["RAXIL PRO","RAXIL® PRO (10L) ",65,"Y",384,1,0,{"$f":"+Purchases!C42","v":0},0,0,null,null,null,null,null,"2020-07-22",null,null,null,null,null,"West",null,"Seed Treatment","10 L","JUG"]
["RAXIL PRO","RAXIL PRO (58.5 L)",380.25,"N",2246,5.85,0,{"$f":"+Purchases!C43","v":0},0,0,null,null,null,null,null,"2020-07-22",null,null,null,null,null,"West",null,"Seed Treatment","58.5 L","TOTE"]
["RAXIL PRO","RAXIL PRO (175.5 L)",1140.75,"N",6738,17.55,0,{"$f":"+Purchases!C44","v":0},0,0,null,null,null,null,null,"2020-07-22",null,null,null,null,null,"West",null,"Seed Treatment","175.5 L","TOTE"]
["RAXIL PRO","RAXIL PRO (1000 L)",6500,"N",38400,100,0,{"$f":"+Purchases!C45","v":0},0,0,null,{"$f":"IF( $B$3 = 1,  SUM(G43:G46), SUM(H43:H46) )","v":0},{"$f":"SUM(I43:I46)","v":0},{"$f":"SUM(J43:J46)","v":0},{"$f":"+A46","v":"RAXIL PRO"},"2020-07-22",null,null,null,null,null,"West",null,"Seed Treatment","1000 L","TOTE"]
["RAXIL PRO SHIELD","RAXIL PRO SHIELD (10L+1.54L)",65,"Y",640,1,0,{"$f":"+Purchases!C46","v":0},0,0,null,{"$f":"IF( $B$3 = 1,  G47,H47 )","v":0},{"$f":"+I47","v":0},{"$f":"+J47","v":0},{"$f":"+A47","v":"RAXIL PRO SHIELD"},"2020-07-22",null,null,null,null,null,"West",null,"Seed Treatment","(10L + 1.54L)"]
["REASON","REASON (2 L)",1,"Y",224,1,0,0,{"$f":"+E48*H48","v":0},{"$f":"+F48*H48","v":0},null,{"$f":"+G48","v":0},{"$f":"+I48","v":0},{"$f":"+J48","v":0},{"$f":"+A48","v":"REASON"},"2019-09-10",null,null,null,null,null,"West",null,"Fungicide","2 L"]
["ROUNDUP XTEND","ROUNDUP XTEND® (10L) ",5,"Y",98,1,0,{"$f":"+Purchases!G17","v":0},0,0,null,null,null,null,null,"2020-07-22",null,null,null,null,null,"West",null,"Herbicide","10 L"]
["ROUNDUP XTEND","ROUNDUP XTEND (405 L)",225,"N",4410,45,{"$f":"IF(B$3 =1, H50*C50, H50/C50)","v":0},{"$f":"+Purchases!G18","v":0},{"$f":"IF(B$3 = 1, H50*E50, (H50/C50) *E50)","v":0},{"$f":"IF($B$3 =1, H50*F50, (H50/C50) *F50)","v":0},null,{"$f":"IF( $B$3 = 1,  SUM(G49:G50), SUM(H49:H50) )","v":0},{"$f":"SUM(I49:I50)","v":0},{"$f":"SUM(J49:J50)","v":0},{"$f":"+A50","v":"ROUNDUP XTEND"},"2020-07-22",null,null,null,null,null,"West",null,"Herbicide","405 L"]
["ROUNDUP WEATHERMAX","ROUNDUP WEATHERMAX® (10L)",15,"Y",76.2,1,{"$f":"IF(B$3 =1, H51*C51, H51/C51)","v":0},{"$f":"+Purchases!G13","v":0},{"$f":"IF(B$3 = 1, H51*E51, (H51/C51) *E51)","v":0},{"$f":"IF($B$3 =1, H51*F51, (H51/C51) *F51)","v":0},null,{"$f":"IF( $B$3 = 1,  G51,H51 )","v":0},{"$f":"+I51","v":0},{"$f":"+J51","v":0},{"$f":"+A51","v":"ROUNDUP WEATHERMAX"},"2020-07-22",null,null,null,null,null,"West",null,"Herbicide","10 L"]
["ROUNDUP WEATHERMAX","ROUNDUP WEATHERMAX (115 L)",172,"N",876.3,11.5,{"$f":"IF(B$3 =1, H52*C52, H52/C52)","v":0},{"$f":"+Purchases!G14","v":0},{"$f":"IF(B$3 = 1, H52*E52, (H52/C52) *E52)","v":0},{"$f":"IF($B$3 =1, H52*F52, (H52/C52) *F52)","v":0},null,null,null,null,{"$f":"+A52","v":"ROUNDUP WEATHERMAX"},"2020-08-12",null,null,null,null,null,"West",null,"Herbicide","115 L"]
["ROUNDUP WEATHERMAX","ROUNDUP WEATHERMAX (450 L)",675,"N",3429,45,0,{"$f":"+Purchases!G15","v":0},0,0,null,null,null,null,"ROUNDUP WEATHERMAX","2020-08-12",null,null,null,null,null,"West",null,"Herbicide","450 L"]
["ROUNDUP WEATHERMAX","ROUNDUP WEATHERMAX (800 L)",1200,"N",6096,80,0,{"$f":"+Purchases!G16","v":0},0,0,null,{"$f":"IF( $B$3 = 1,  SUM(G51:G54), SUM(H51:H54) )","v":0},{"$f":"SUM(I51:I54)","v":0},{"$f":"SUM(J51:J54)","v":0},"ROUNDUP WEATHERMAX","2020-08-12",null,null,null,null,null,"West",null,"Herbicide","800 L"]
["SERENADE SOIL","SERENADE SOIL (511 L)",324.10000000000002,"N",5620,54.02,{"$f":"IF(B$3 =1, H55*C55, H55/C55)","v":0},{"$f":"+Purchases!G22","v":0},{"$f":"IF(B$3 = 1, H55*E55, (H55/C55) *E55)","v":0},{"$f":"IF($B$3 =1, H55*F55, (H55/C55) *F55)","v":0},null,null,null,null,null,"2020-07-22",null,null,null,null,null,"West",null,"Fungicide","511 L"]
["SERENADE SOIL","SERENADE® SOIL (9.46L)",6,"Y",104,1,{"$f":"IF(B$3 =1, H56*C56, H56/C56)","v":0},{"$f":"+Purchases!G23","v":0},{"$f":"IF(B$3 = 1, H56*E56, (H56/C56) *E56)","v":0},{"$f":"IF($B$3 =1, H56*F56, (H56/C56) *F56)","v":0},null,{"$f":"IF( $B$3 = 1,  SUM(G55:G56), SUM(H55:H56) )","v":0},{"$f":"SUM(I55:I56)","v":0},{"$f":"SUM(J55:J56)","v":0},{"$f":"+A56","v":"SERENADE SOIL"},"2020-07-22",null,null,null,null,null,"West",null,"Fungicide","9.46 L"]
["SCALA","SCALA (2 L)",7,"Y",141.5,1,{"$f":"IF(B$3 =1, H57*C57, H57/C57)","v":0},{"$f":"+Purchases!G19","v":0},{"$f":"IF(B$3 = 1, H57*E57, (H57/C57) *E57)","v":0},{"$f":"IF($B$3 =1, H57*F57, (H57/C57) *F57)","v":0},null,null,null,null,null,"2020-07-22",null,null,null,null,null,"West",null,"Fungicide","2 L"]
["SCALA","SCALA® (6.07 L)",20,"N",428.5,2.8571,0,{"$f":"+Purchases!G20","v":0},0,0,null,{"$f":"IF( $B$3 = 1,  SUM(G57:G58), SUM(H57:H58) )","v":0},{"$f":"+I57+I58","v":0},{"$f":"+J57+J58","v":0},{"$f":"+A58","v":"SCALA"},"2020-07-22",null,null,null,null,null,"West",null,"Fungicide","6.07 L"]
["SENCOR","SENCOR (2.5 KG)",23,"Y",239,1,0,0,0,0,null,{"$f":"IF( $B$3 = 1,  G59,H59 )","v":0},{"$f":"+I59","v":0},0,{"$f":"+A59","v":"SENCOR"},"2018-10-12",null,null,null,"Yes","NOT IN 2020 BV","West",null,"Herbicide","2.5 KG"]
["SENCOR 75 DF","SENCOR® 75DF (2.5KG) ",28,"Y",162,1,0,{"$f":"+Purchases!G21","v":0},0,0,null,{"$f":"IF( $B$3 = 1,  G60,H60 )","v":0},0,0,{"$f":"+A60","v":"SENCOR 75 DF"},"2020-07-22",null,null,null,null,null,"West",null,"Herbicide","2.5 KG","JUG"]
["STRESS SHIELD","STRESS SHIELD® (27L) ",1323,"Y",4417.5,1,0,{"$f":"+Purchases!G25","v":0},0,0,null,{"$f":"IF( $B$3 = 1,  G61,H61 )","v":0},0,0,{"$f":"+A61","v":"STRESS SHIELD"},"2020-07-22",null,null,null,null,null,"West",null,"Seed Treatment","27 L"]
["SIVANTO PRIME","SIVANTO™ PRIME (2L) ",10,"Y",203,1,0,{"$f":"+Purchases!G24","v":0},0,0,null,{"$f":"IF( $B$3 = 1,  G62,H62 )","v":0},0,0,{"$f":"+A62","v":"SIVANTO PRIME"},"2020-07-22",null,null,null,null,null,"West",null,"Fungicide","2 L"]
["THUMPER","THUMPER® (8L) ",20,"Y",164.5,1,0,{"$f":"+Purchases!G26","v":0},0,0,null,null,null,null,null,"2020-07-22",null,null,null,null,null,"West",null,"Herbicide","8 L"]
["THUMPER","THUMPER (128 L)",320,"N",2632,16,0,{"$f":"+Purchases!G27","v":0},0,0,null,null,null,null,null,"2020-07-22",null,null,null,null,null,"West",null,"Herbicide","128 L"]
["THUMPER","THUMPER (400 L)",1000,"N",8225,50,0,{"$f":"+Purchases!G28","v":0},0,0,null,{"$f":"IF( $B$3 = 1,  SUM(G63:G65), SUM(H63:H65) )","v":0},{"$f":"SUM(I63:I65)","v":0},{"$f":"SUM(J63:J65)","v":0},{"$f":"+A65","v":"THUMPER"},"2020-07-22",null,null,null,null,null,"West",null,"Herbicide","400 L"]
["TILMOR","TILMOR® (10.12 L) ",40,"Y",526.5,1,{"$f":"IF(B$3 =1, H66*C66, H66/C66)","v":0},{"$f":"+Purchases!G29","v":0},{"$f":"IF(B$3 = 1, H66*E66, (H66/C66) *E66)","v":0},{"$f":"IF($B$3 =1, H66*F66, (H66/C66) *F66)","v":0},null,{"$f":"IF( $B$3 = 1,  G66,H66 )","v":0},{"$f":"+I66","v":0},{"$f":"+J66","v":0},{"$f":"+A66","v":"TILMOR"},"2020-07-22",null,null,null,null,null,"West",null,"Fungicide","10.12 L"]
["TRILEX EVERGOL","TRILEX® EVERGOL® (1.5L+0.96L)",110,"Y",1209,1,0,{"$f":"+Purchases!G30","v":0},0,0,null,null,null,null,null,"2020-07-22",null,null,null,null,null,"West",null,"Seed Treatment","(1.5L+0.96L)"]
["TRILEX EVERGOL","TRILEX EVERGOL (6.49L + 4.15L)",475.93,"N",5231,4.3266999999999998,0,{"$f":"+Purchases!G31","v":0},0,0,null,{"$f":"IF( $B$3 = 1,  SUM(G67:G68), SUM(H67:H68) )","v":0},{"$f":"SUM(I67:I68)","v":0},{"$f":"SUM(J67:J68)","v":0},{"$f":"+A67","v":"TRILEX EVERGOL"},"2020-07-22",null,null,null,null,null,"West",null,"Seed Treatment","(6.49L + 4.15L)"]
["TRILEX EVERGOL SHIELD","TRILEX EVERGOL SHIELD (1.5L+0.96L+6.25L)",110,"Y",2334,1,0,{"$f":"+Purchases!G32","v":0},0,0,null,{"$f":"IF( $B$3 = 1,  G69,H69 )","v":0},{"$f":"+I69","v":0},{"$f":"+J69","v":0},{"$f":"+A69","v":"TRILEX EVERGOL SHIELD"},"2020-07-22",null,null,null,null,null,"West",null,"Seed Treatment","(1.5L+0.96L+6.25L)"]
["TUNDRA","TUNDRA® (8.1L) ",10,"Y",211,1,0,{"$f":"+Purchases!G34","v":0},0,0,null,null,null,null,null,"2020-07-22",null,null,null,null,null,"West",null,"Herbicide","8.1 L"]
["TUNDRA","TUNDRA (129.6 L)",160,"N",3376,16,0,{"$f":"+Purchases!G35","v":0},0,0,null,null,null,null,null,"2020-07-22",null,null,null,null,null,"West",null,"Herbicide","129.6 L"]
["TUNDRA","TUNDRA (405 L)",500,"N",10550,50,0,{"$f":"+Purchases!G36","v":0},0,0,null,{"$f":"IF( $B$3 = 1,  SUM(G70:G72), SUM(H70:H72) )","v":0},{"$f":"SUM(I70:I72)","v":0},{"$f":"SUM(J70:J72)","v":0},{"$f":"+A72","v":"TUNDRA"},"2020-07-22",null,null,null,null,null,"West",null,"Herbicide","405 L"]
["VARRO","VARRO® (8L) ",40,"Y",703.5,1,0,{"$f":"+Purchases!G37","v":0},0,0,null,null,null,null," ","2020-07-22",null,null,null,null,null,"West",null,"Herbicide","8 L"]
["VARRO","VARRO (128 L)",640,"N",10816,16,0,0,0,0,null,{"$f":"IF( $B$3 = 1,  SUM(G73:G74), SUM(H73:H74) )","v":0},{"$f":"SUM(I73:I74)","v":0},{"$f":"SUM(J73:J74)","v":0},{"$f":"+A74","v":"VARRO"},"2020-07-22",null,null,null,null,null,"West",null,"Herbicide","128 L"]
["VELUM PRIME","VELUM® PRIME (4.04L) ",20,"Y",1167,1,0,{"$f":"+Purchases!G40","v":0},0,0,null,{"$f":"IF( $B$3 = 1,  G75,H75 )","v":0},{"$f":"+I75","v":0},{"$f":"+J75","v":0},{"$f":"+A75","v":"VELUM PRIME"},"2020-07-22",null,null,null,null,null,"West",null,"Fungicide","4.04 L"]
["VELOCITY","VELOCITY M3 (8.1 L)",20,"Y",558,1,0,{"$f":"+Purchases!G38","v":0},0,0,null,null,null,null,null,"2020-07-22",null,null,null,null,null,"West",null,"Herbicide","8.1 L"]
["VELOCITY","VELOCITY M3 (129.6 L)",320,"N",8928,16,0,{"$f":"+Purchases!G39","v":0},0,0,null,{"$f":"IF( $B$3 = 1,  SUM(G76:G77), SUM(H76:H77) )","v":0},{"$f":"SUM(I76:I77)","v":0},{"$f":"SUM(J76:J77)","v":0},{"$f":"+A77","v":"VELOCITY"},"2020-07-22",null,null,null,null,null,"West",null,"Herbicide","129.6 L"]
["XTENDIMAX","XTENDIMAX® (10L)",15,"Y",190.5,1,0,{"$f":"+Purchases!G41","v":0},0,0,null,null,null,null,null,"2020-07-22",null,null,null,null,null,"West",null,"Herbicide","10 L"]
["XTENDIMAX","XTENDIMAX (405 L)",675,"N",8572.5,45,{"$f":"IF(B$3 =1, H79*C79, H79/C79)","v":0},{"$f":"+Purchases!G42","v":0},{"$f":"IF(B$3 = 1, H79*E79, (H79/C79) *E79)","v":0},{"$f":"IF($B$3 =1, H79*F79, (H79/C79) *F79)","v":0},null,{"$f":"IF( $B$3 = 1,  SUM(G78:G79), SUM(H78:H79) )","v":0},{"$f":"SUM(I78:I79)","v":0},{"$f":"SUM(J78:J79)","v":0},{"$f":"+A79","v":"XTENDIMAX"},"2020-07-22",null,null,null,null,null,"West",null,"Herbicide","405 L"]
["VAYEGO","VAYEGO® (3L) ",50,"Y",1331,1,{"$f":"IF(B$3 =1, H80*C80, H80/C80)","v":0},{"$f":"+Purchases!G43","v":0},{"$f":"IF(B$3 = 1, H80*E80, (H80/C80) *E80)","v":0},{"$f":"IF($B$3 =1, H80*F80, (H80/C80) *F80)","v":0},null,{"$f":"IF( $B$3 = 1,  G80,H80 )","v":0},{"$f":"+I80","v":0},{"$f":"+J80","v":0},{"$f":"+A80","v":"VAYEGO"},"2020-07-22",null,null,null,null,null,"West",null,"Seed Treatment","3 L"]
["Canola Trait","Canola Trait (22.7 KG bag)",10,"Y",0,1,0,0,0,0,null,0,{"$f":"+I81","v":0},0,{"$f":"+A81","v":"Canola Trait"},"2020-07-22",null,null,null,null,null,"West",null,"Crop Trait","22.7 KG"]
["Corn Trait","Corn Trait (1 X Unit 80,000 seeds)",2.5,"Y",0,1,{"$f":"IF(B$3 =1, H82*C82, H82/C82)","v":0},0,0,0,null,0,0,0,{"$f":"+A82","v":"Corn Trait"},"2020-07-22",null,null,null,null,null,"West",null,"Crop Trait","1 X Unit ( 140,000 seeds)"]
["Soybean Trait","Soybean Trait (1 X Unit 140,000 seeds)",0.74,"Y",0,1,0,0,0,{"$f":"IF($B$3 =1, H83*F83, (H83/C83) *F83)","v":0},null,0,0,0,{"$f":"+A83","v":"Soybean Trait"},"2020-07-22",null,null,null,null,null,"West",null,"Crop Trait","1 X Unit ( 80,000 seeds)"]
["BlackHawk","BlackHawk (2x9 L Case)",60,"Y",0,1,{"$f":"IF(B$3 =1, H84*C84, H84/C84)","v":0},0,0,{"$f":"IF($B$3 =1, H84*F84, (H84/C84) *F84)","v":0},null,0," ",0,null,"2019-09-10","Only totals for a few products - temporary fix",null,null,null,"NOT IN 2020 BV","West",null,"Herbicide"]
["BlackHawk","BlackHawk Drum (95.8 L)",320,"N",0,5.33,0,0,0,{"$f":"IF($B$3 =1, H85*F85, (H85/C85) *F85)","v":0},null,0,{"$f":"+I84+I85","v":0},0,{"$f":"+A85","v":"BlackHawk"},"2019-09-10",{"$f":"IF( $B$3 = 1,  SUM($G84:$G85), SUM($H84:$H85) )","v":0},{"$f":"+$J84+$J85","v":0},null,null,"NOT IN 2020 BV","West",null,"Herbicide"]
["GoldWing","GoldWing (2 x 10.7 L Case)",160,"Y",0,1,0,0,0,0,null,{"$f":"IF( $B$3 = 1,  G86,H86 )","v":0}," ",{"$f":"+J86","v":0},null,"2019-09-10",null,null,null,null,"NOT IN 2020 BV","West",null,"Herbicide"]
["GoldWing","GoldWing Drum (85.5 L)",640,"N",0,4,0,0,0,0,null,0,{"$f":"+I86+I87","v":0},0,{"$f":"+A87","v":"GoldWing"},"2019-09-10",{"$f":"IF( $B$3 = 1,  SUM($G86:$G87), SUM($H86:$H87) )","v":0},{"$f":"+$J86+$J87","v":0},null,null,"NOT IN 2020 BV","West",null,"Herbicide"]
["Valtera","Valtera (2 x 4.54 KG Case)",160,"Y",0,1,0,0,0,0,null,0,{"$f":"+I88","v":0},0,{"$f":"+A88","v":"Valtera"},"2019-09-10",null,null,null,null,"NOT IN 2020 BV","West",null,"Herbicide"]
["Conquer","Conquer (2x9.71 L+2x600 ML Case)",80,"Y",0,1,0,0,0,0,null,0,0,0,"Conquer","2019-09-10",null,null,null,null,"NOT IN 2020 BV","West",null,"Herbicide"]
["Fierce","Fierce (4 x 2.72 KG Case)",128,"Y",0,1,0,0,0,0,null,0,0,0,"Fierce","2019-09-10",null,null,null,null,"NOT IN 2020 BV","West",null,"Herbicide"]
["Davai","Davai 80 SL (2x8 L Case)",213,"Y",0,1,0,0,0,0,null,0,0,0,"Davai","2019-09-10",null,null,null,null,"NOT IN 2020 BV","West",null,"Herbicide"]
["Command ","Command Charge (Case)",80,"Y",780,1,0,0,{"$f":"IF(B$3 = 1, H92*E92, (H92/C92) *E92)","v":0},{"$f":"IF($B$3 =1, H92*F92, (H92/C92) *F92)","v":0},null,{"$f":"IF( $B$3 = 1,  G92,H92 )","v":0},{"$f":"+I92","v":0},{"$f":"+J92","v":0},"Command ","2020-01-28",null,null,null,null,"NOT IN 2020 BV","West",null,"Herbicide"]
["Command","Command 360 ME (Jug)",40,"Y",252,1,0,0,{"$f":"IF(B$3 = 1, H93*E93, (H93/C93) *E93)","v":0},{"$f":"IF($B$3 =1, H93*F93, (H93/C93) *F93)","v":0},null,{"$f":"IF( $B$3 = 1,  G93,H93 )","v":0},{"$f":"+I93","v":0},{"$f":"+J93","v":0},"Command","2020-01-28",null,null,null,null,"NOT IN 2020 BV","West",null,"Herbicide"]
["Old section used for traits in 2020",{"$f":"+A94","v":"Old section used for traits in 2020"},10,"Y",0,1,0,0,0,0,null,0,0,0,null,"2019-10-07",null,null,null,null,"NOT IN 2020 BV","West",null,"Obsolete"]
["Old section used for traits in 2020",{"$f":"+A95","v":"Old section used for traits in 2020"},10,"Y",0,1,0,0,0,0,null,0,0,0,null,"2019-10-07",null,null,null,null,"NOT IN 2020 BV","West",null,"Obsolete"]
["Old section used for traits in 2020","Old section used for traits in 2020",10,"Y",0,1,0,0,0,0,null,0,0,0,null,"2019-10-07",null,null,null,null,"NOT IN 2020 BV","West",null,"Obsolete"]
["Old section used for traits in 2020","Old section used for traits in 2020",10,"Y",0,1,0,0,0,0,null,0,0,0,null,"2019-10-07",null,null,null,null,"NOT IN 2020 BV","West",null,"Obsolete"]
["Old section used for traits in 2020","Old section used for traits in 2020",10,"Y",0,1,0,0,0,0,null,0,0,0,null,"2019-10-07",null,null,null,null,"NOT IN 2020 BV","West",null,"Obsolete"]
["Old section used for traits in 2020","Old section used for traits in 2020",10,"Y",0,1,0,0,0,0,null,0,0,0,null,"2019-10-07",null,null,null,null,"NOT IN 2020 BV","West",null,"Obsolete"]
["Old section used for traits in 2020","Old section used for traits in 2020",10,"Y",0,1,0,0,0,0,null,0,0,0,null,"2019-10-07",null,null,null,null,"NOT IN 2020 BV","West",null,"Obsolete"]
["Old section used for traits in 2020","Old section used for traits in 2020",2.5,"Y",0,1,0,0,0,0,null,0,0,0,null,"2019-10-07",null,null,null,null,"NOT IN 2020 BV","West",null,"Obsolete"]
["Old section used for traits in 2020","Old section used for traits in 2020",2.5,"Y",0,1,0,0,0,0,null,0,0,0,null,"2019-10-07",null,null,null,null,"NOT IN 2020 BV","West",null,"Obsolete"]
["Old section used for traits in 2020","Old section used for traits in 2020",0.74,"Y",0,1,0,0,0,0,null,0,0,0,null,"2019-10-07",null,null,null,null,"NOT IN 2020 BV","West",null,"Obsolete"]
["Old section used for traits in 2020","Old section used for traits in 2020",0.74,"Y",0,1,0,0,0,0,null,0,0,0,null,"2019-10-07",null,null,null,null,"NOT IN 2020 BV","West",null,"Obsolete"]
["Old section used for traits in 2020","Old section used for traits in 2020",0.74,"Y",0,1,0,0,0,0,null,0,0,0,null,"2019-10-07",null,null,null,null,"NOT IN 2020 BV","West",null,"Obsolete"]
["Old section used for traits in 2020","Old section used for traits in 2020",0.74,"Y",0,1,0,0,0,0,null,0,0,0,null,"2019-10-07",null,null,null,null,"NOT IN 2020 BV","West",null,"Obsolete"]
[]
[]
[null,null,"Means these acre conversions have been verified with the BV West Program description for the year 2021 and what was supplied with the Bayer SRP list on AUG 10, 2020 by Urszula Lasecki. Prices have been updated as of this date from that file."]
["Source SRP and filename:",null,"SRP Filename :",null,"CP_prices_acres_08_10_2020.xlsx",null,null,"on T Holovach's laptop; original name from Urszul Lazecki is:",null,null,null,null,null,"Book1.xlsx","Received:","2020-08-10",null,null,null,null,null,null,"SRP file provided by Urszula Lasecki, July 22, 2020"]
["Stress Shield + Raxil Pro",null,"Highlighted in \"red\" means they were entered or verified against the Bayer price list as of the date in the column",null,null,null,null,null,null,null,null,null,null,null,null,null,{"$f":"IF(L46 >=L61, L61,L46)","v":0},{"$f":"+L61-Q111","v":0},"xx"]
["Stress Shield + Trilex EverGol",null,null,null,null,null,null,null,null,null,null,null,null,null,null,null,"xx","xx",{"$f":"IF(L68 >=R111,R111,L68)","v":0}]
[null,null,null,null,null,null,null,"Totals",{"$f":"SUM(I4:I106)","v":0},null,null,null,{"$f":"SUM(M4:M106) -M32-M33","v":0},null,null,null,"Total Stress Shield acres matched",null,{"$f":"+Q111+S112","v":0}]
[null,true,null,null,1230,"2020 SRP's as per Price List from Anna Reider on Sept 6, 2019 and re-sent after Bayer updates on Sept 10, 2019."]
["Obsolete section, used in 2019 only.",false,null,null,null,"Base Unit Equivalents"]
["Special Consideration - Hort AND Row Crop Products \"the Additional Payment Products\""]
["Admire",{"$f":"IF(RebateSummary!F10 <1500,RebateSummary!F10,0)","v":0}]
["Aliette",{"$f":"IF(RebateSummary!#REF! <1500,RebateSummary!#REF!,0)","v":{"$error":"#REF!"}}]
["BetamixB",{"$f":"IF(RebateSummary!#REF! <1500,RebateSummary!#REF!,0)","v":{"$error":"#REF!"}}]
["Concept",{"$f":"IF(RebateSummary!#REF! <1500,RebateSummary!#REF!,0)","v":{"$error":"#REF!"}}]
["Nortron",{"$f":"IF(RebateSummary!F21 <1500,RebateSummary!F21,0)","v":0}]
["Reason",{"$f":"IF(RebateSummary!#REF! <1500,RebateSummary!#REF!,0)","v":{"$error":"#REF!"}}]
["Serenade Soil",{"$f":"IF(RebateSummary!F33 <1500,RebateSummary!F33,0)","v":0}]
["sub-total",{"$f":"SUM(B117:B123)","v":{"$error":"#REF!"}},"Deduct from payment dollars for the 1 % Volume Bonus because these products have values below $1500 each."]
["Sencor DF",{"$f":"IF(RebateSummary!D13 <300, RebateSummary!F34,0)","v":0},"Deduct Sencor value from qualifing dollars contribution FOR THE 1 % threshold contribution for the Volume Bonus because Emesto Silver acres are less than 300."]
["Stress Shield",{"$f":"IF(RebateSummary!F36 >=1500, +IF(RebateSummary!D$36 > 0,RebateSummary!F36-((Pkge!S113/RebateSummary!D36)*RebateSummary!F36),0), RebateSummary!F36)","v":0},"Amount of Stress Shield to deduct from overall Crop Protection purchases for that part that does not match with Raxil Pro and/or Trilex EverGol, for 1 % payment and/or SS is less than $1500.00 in value."]
["Obsolete section, used in 2019 only."]
["OptionAcres",true]
["OptionUnits",false]
[null,"Acres","Units"]
["Total  Canola Trait Acres",{"$f":"SUM(L94:L100)","v":0},{"$f":"SUM(J94:J100)","v":0}]
["Total  DEKALB Canola Trait Acres",{"$f":"+L94+L95+L96+L97","v":0},{"$f":"+J94+J95+J96+J97","v":0}]
["Total  Corn Trait Acres",{"$f":"+L101+L102","v":0},{"$f":"+J101+J102","v":0}]
["Total  DEKALB Corn Trait Acres",{"$f":"+L101","v":0},{"$f":"+J101","v":0}]
["Total  Soybean Trait Acres",{"$f":"+L103+L104+L105+L106","v":0},{"$f":"+J103+J104+J105+J106","v":0}]
["Total  DEKALB Soybean Trait Acres",{"$f":"+L103+L104","v":0},{"$f":"+J103+J104","v":0}]
[]
["Seed Trait, Seed and Seed Treatment Purchases, Current for 2020"]
["Crop - Hybrid - Seed Treatment Chosen dfrom Drop-Down"]
[{"$f":"+Purchases!V92","v":"None_None_"},null,{"$f":"IF(ISERROR(+Purchases!W92),0, +Purchases!W92)","v":0},"Y",{"$f":"IF(ISERROR(+Purchases!X92),0, +Purchases!X92)","v":0},1,{"$f":"IF(C140 >0, ROUND(IF(B$3 =1, H140*C140, H140/C140),2),0)","v":0},{"$f":"+Purchases!G87","v":0},{"$f":"IF(B$3 = 1, H140*E140,IF(C140 >0,  (H140/C140) *E140,0))","v":0},{"$f":"ROUND(IF($B$3 =1, H140*F140, IF(C140>0,  (H140/C140) *F140,0)),2)","v":0},null,{"$f":"IF( $B$3 = 1,  G140,H140 )","v":0},{"$f":"+I140","v":0},{"$f":"+J140","v":0},{"$f":"+A140","v":"None_None_"},"2020-07-18",null,null,null,null,null,"West",null,null,"22.7 KG"]
[{"$f":"+Purchases!V93","v":"None_None_"},null,{"$f":"IF(ISERROR(+Purchases!W93),0, +Purchases!W93)","v":0},"Y",{"$f":"IF(ISERROR(+Purchases!X93),0, +Purchases!X93)","v":0},1,{"$f":"IF(C141 >0, ROUND(IF(B$3 =1, H141*C141, H141/C141),2),0)","v":0},{"$f":"+Purchases!G88","v":0},{"$f":"IF(B$3 = 1, H141*E141,IF(C141 >0,  (H141/C141) *E141,0))","v":0},{"$f":"ROUND(IF($B$3 =1, H141*F141, IF(C141>0,  (H141/C141) *F141,0)),2)","v":0},null,{"$f":"IF( $B$3 = 1,  G141,H141 )","v":0},{"$f":"+I141","v":0},{"$f":"+J141","v":0},{"$f":"+A141","v":"None_None_"},"2020-07-18",null,null,null,null,null,"West",null,null,"22.7 KG"]
[{"$f":"+Purchases!V94","v":"None_None_"},null,{"$f":"IF(ISERROR(+Purchases!W94),0, +Purchases!W94)","v":0},"Y",{"$f":"IF(ISERROR(+Purchases!X94),0, +Purchases!X94)","v":0},1,0,{"$f":"+Purchases!G89","v":0},0,0,null,0,0,0,"None_None_","2020-07-18",null,null,null,null,null,"West",null,null,"22.7 KG"]
[{"$f":"+Purchases!V95","v":"None_None_"},null,{"$f":"IF(ISERROR(+Purchases!W95),0, +Purchases!W95)","v":0},"Y",{"$f":"IF(ISERROR(+Purchases!X95),0, +Purchases!X95)","v":0},1,0,{"$f":"+Purchases!G90","v":0},0,0,null,0,0,0,"None_None_","2020-07-18",null,null,null,null,null,"West",null,null,"22.7 KG"]
[{"$f":"+Purchases!V96","v":"None_None_"},null,{"$f":"IF(ISERROR(+Purchases!W96),0, +Purchases!W96)","v":0},"Y",{"$f":"IF(ISERROR(+Purchases!X96),0, +Purchases!X96)","v":0},1,0,{"$f":"+Purchases!G91","v":0},0,0,null,0,0,0,"None_None_","2020-07-18",null,null,null,null,null,"West",null,null,"22.7 KG"]
[{"$f":"+Purchases!V97","v":"None_None_"},null,{"$f":"IF(ISERROR(+Purchases!W97),0, +Purchases!W97)","v":0},"Y",{"$f":"IF(ISERROR(+Purchases!X97),0, +Purchases!X97)","v":0},1,0,{"$f":"+Purchases!G92","v":0},0,0,null,0,0,0,"None_None_","2020-07-18",null,null,null,null,null,"West",null,null,"22.7 KG"]
[{"$f":"+Purchases!V98","v":"None_None_"},null,{"$f":"IF(ISERROR(+Purchases!W98),0, +Purchases!W98)","v":0},"Y",{"$f":"IF(ISERROR(+Purchases!X98),0, +Purchases!X98)","v":0},1,0,{"$f":"+Purchases!G93","v":0},0,0,null,0,0,0,"None_None_","2020-07-18",null,null,null,null,null,"West",null,null,"22.7 KG"]
[{"$f":"+Purchases!V99","v":"None_None_"},null,{"$f":"IF(ISERROR(+Purchases!W99),0, +Purchases!W99)","v":0},"Y",{"$f":"IF(ISERROR(+Purchases!X99),0, +Purchases!X99)","v":0},1,0,{"$f":"+Purchases!G94","v":0},0,0,null,0,0,0,"None_None_","2020-07-18",null,null,null,null,null,"West",null,null,"22.7 KG"]
[{"$f":"+Purchases!V100","v":"None_None_"},null,{"$f":"IF(ISERROR(+Purchases!W100),0, +Purchases!W100)","v":0},"Y",{"$f":"IF(ISERROR(+Purchases!X100),0, +Purchases!X100)","v":0},1,0,{"$f":"+Purchases!G95","v":0},0,0,null,0,0,0,"None_None_","2020-07-18",null,null,null,null,null,"West",null,null,"22.7 KG"]
[{"$f":"+Purchases!V101","v":"None_None_"},null,{"$f":"IF(ISERROR(+Purchases!W101),0, +Purchases!W101)","v":0},"Y",{"$f":"IF(ISERROR(+Purchases!X101),0, +Purchases!X101)","v":0},1,0,{"$f":"+Purchases!G96","v":0},0,0,null,0,0,0,"None_None_","2020-07-18",null,null,null,null,null,"West",null,null,"22.7 KG"]
[{"$f":"+Purchases!V102","v":"None_None_"},null,{"$f":"IF(ISERROR(+Purchases!W102),0, +Purchases!W102)","v":0},"Y",{"$f":"IF(ISERROR(+Purchases!X102),0, +Purchases!X102)","v":0},1,0,{"$f":"+Purchases!G97","v":0},0,0,null,0,0,0,"None_None_","2020-07-18",null,null,null,null,null,"West",null,null,"22.7 KG"]
[{"$f":"+Purchases!V103","v":"None_None_"},null,{"$f":"IF(ISERROR(+Purchases!W103),0, +Purchases!W103)","v":0},"Y",{"$f":"IF(ISERROR(+Purchases!X103),0, +Purchases!X103)","v":0},1,0,{"$f":"+Purchases!G98","v":0},0,0,null,0,0,0,"None_None_","2020-07-18",null,null,null,null,null,"West",null,null,"22.7 KG"]
[{"$f":"+Purchases!V104","v":"None_None_"},null,{"$f":"IF(ISERROR(+Purchases!W104),0, +Purchases!W104)","v":0},"Y",{"$f":"IF(ISERROR(+Purchases!X104),0, +Purchases!X104)","v":0},1,0,{"$f":"+Purchases!G99","v":0},0,0,null,{"$f":"IF( $B$3 = 1,  G152,H152 )","v":0},{"$f":"+I152","v":0},{"$f":"+J152","v":0},"None_None_","2020-07-18",null,null,null,null,null,"West",null,null,"22.7 KG"]
[{"$f":"+Purchases!V105","v":"None_None_"},null,{"$f":"IF(ISERROR(+Purchases!W105),0, +Purchases!W105)","v":0},"Y",{"$f":"IF(ISERROR(+Purchases!X105),0, +Purchases!X105)","v":0},1,0,{"$f":"+Purchases!G100","v":0},0,0,null,0,0,0,"None_None_","2020-07-18",null,null,null,null,null,"West",null,null,"22.7 KG"]
[{"$f":"+Purchases!V106","v":"None_None_"},null,{"$f":"IF(ISERROR(+Purchases!W106),0, +Purchases!W106)","v":0},"Y",{"$f":"IF(ISERROR(+Purchases!X106),0, +Purchases!X106)","v":0},1,0,{"$f":"+Purchases!G101","v":0},0,0,null,0,0,0,"None_None_","2020-07-18",null,null,null,null,null,"West",null,null,"22.7 KG"]
[{"$f":"+Purchases!V107","v":"SPARE__"},null,{"$f":"IF(ISERROR(+Purchases!W107),0, +Purchases!W107)","v":0},"Y",{"$f":"IF(ISERROR(+Purchases!X107),0, +Purchases!X107)","v":0},1,0,null,0,0,null,0,0,0,"SPARE__","2020-07-18",null,null,null,null,null,"West",null,null,"22.7 KG"]
[{"$f":"+Purchases!V108","v":"SPARE__"},null,{"$f":"IF(ISERROR(+Purchases!W108),0, +Purchases!W108)","v":0},"Y",{"$f":"IF(ISERROR(+Purchases!X108),0, +Purchases!X108)","v":0},1,0,null,0,0,null,0,0,0,"SPARE__","2020-07-18",null,null,null,null,null,"West",null,null,"22.7 KG"]
[{"$f":"+Purchases!V109","v":"SPARE__"},null,{"$f":"IF(ISERROR(+Purchases!W109),0, +Purchases!W109)","v":0},"Y",{"$f":"IF(ISERROR(+Purchases!X109),0, +Purchases!X109)","v":0},1,0,null,0,0,null,0,0,0,"SPARE__","2020-07-18",null,null,null,null,null,"West",null,null,"22.7 KG"]
[{"$f":"+Purchases!V110","v":"SPARE__"},null,{"$f":"IF(ISERROR(+Purchases!W110),0, +Purchases!W110)","v":0},"Y",{"$f":"IF(ISERROR(+Purchases!X110),0, +Purchases!X110)","v":0},1,0,null,0,0,null,0,0,0,"SPARE__","2020-07-18",null,null,null,null,null,"West",null,null,"22.7 KG"]
[{"$f":"+Purchases!V111","v":"SPARE__"},null,{"$f":"IF(ISERROR(+Purchases!W111),0, +Purchases!W111)","v":0},"Y",{"$f":"IF(ISERROR(+Purchases!X111),0, +Purchases!X111)","v":0},1,0,null,0,0,null,0,0,0,"SPARE__","2020-07-18",null,null,null,null,null,"West",null,null,"22.7 KG"]